BIOGUIDE_ID,OFFICE,QUARTER,CATEGORY,DATE,PAYEE,START DATE,END DATE,PURPOSE,AMOUNT,YEAR,TRANSCODE,TRANSCODELONG,RECORDID,RECIP (orig.)
,OFFICE OF THE SPEAKER,2015Q1,PERSONNEL BENEFITS,01-15,HON JOHN A BOEHNER,01/03/15,02/02/15,OFFICIAL EXPENSES FOR LEADERS,"2,083.33",2015,AP,Accounts payable,00769099,HON JOHN A BOEHNER
,OFFICE OF THE SPEAKER,2015Q1,PERSONNEL BENEFITS,02-13,HON JOHN A BOEHNER,02/03/15,03/02/15,OFFICIAL EXPENSES FOR LEADERS,"2,083.33",2015,AP,Accounts payable,00775743,HON JOHN A BOEHNER
,OFFICE OF THE SPEAKER,2015Q1,PERSONNEL BENEFITS,03-20,HON JOHN A BOEHNER,03/03/15,04/02/15,OFFICIAL EXPENSES FOR LEADERS,"2,083.33",2015,AP,Accounts payable,00783967,HON JOHN A BOEHNER
,OFFICE OF THE SPEAKER,2015Q1,PERSONNEL COMPENSATION,"","ANDREWS,THOMAS S",01/03/15,03/31/15,SPECIAL ASST TO THE SPEAKER,"14,666.67",2015,"","","","ANDREWS,THOMAS S"
,OFFICE OF THE SPEAKER,2015Q1,PERSONNEL COMPENSATION,"","BAILEY,BRADLEY",01/03/15,03/31/15,ASSIST TO SPEAKER FOR POLICY,"29,333.33",2015,"","","","BAILEY,BRADLEY"
,OFFICE OF THE SPEAKER,2015Q1,PERSONNEL COMPENSATION,"","BECKER,ALEXANDER M",01/03/15,03/31/15,FLOOR ASSISTANT,"11,000.00",2015,"","","","BECKER,ALEXANDER M"
,OFFICE OF THE SPEAKER,2015Q1,PERSONNEL COMPENSATION,"","BENJAMIN, WILLIAM C",01/03/15,03/31/15,DIR OF INFORMATION TECHNOLOGY,"23,955.57",2015,"","","","BENJAMIN, WILLIAM C"
,OFFICE OF THE SPEAKER,2015Q1,PERSONNEL COMPENSATION,"","BLAKE,KRISTENE",01/03/15,03/31/15,DIRECTOR OF SCHDLNG/EXEC ASST,"27,777.77",2015,"","","","BLAKE,KRISTENE"
,OFFICE OF THE SPEAKER,2015Q1,PERSONNEL COMPENSATION,"","BORDEN III, R C",01/03/15,03/31/15,SHARED EMPLOYEE,"40,822.23",2015,"","","","BORDEN III, R C"
,OFFICE OF THE SPEAKER,2015Q1,PERSONNEL COMPENSATION,"","BOYD,KATHRYN E",01/03/15,03/31/15,ASST COMMUNICATIONS DIRECTOR,"24,444.44",2015,"","","","BOYD,KATHRYN E"
,OFFICE OF THE SPEAKER,2015Q1,PERSONNEL COMPENSATION,"","BROWN,MARYAM S",01/03/15,03/31/15,ASST TO SPEAKER FOR POLICY,"41,066.67",2015,"","","","BROWN,MARYAM S"
,OFFICE OF THE SPEAKER,2015Q1,PERSONNEL COMPENSATION,"","CRAVEN, KELLY F",01/03/15,03/31/15,DIRECTOR OF HOUSE OPERATIONS,"42,166.67",2015,"","","","CRAVEN, KELLY F"
,OFFICE OF THE SPEAKER,2015Q1,PERSONNEL COMPENSATION,"","EASBY-SMITH,ANNE S",01/03/15,02/28/15,SPECIAL EVENTS COORDINATOR,"7,250.00",2015,"","","","EASBY-SMITH,ANNE S"
,OFFICE OF THE SPEAKER,2015Q1,PERSONNEL COMPENSATION,"","EASBY-SMITH,ANNE S",03/01/15,03/31/15,SPECIAL EVENTS ASSOCIATE,"4,416.67",2015,"","","","EASBY-SMITH,ANNE S"
,OFFICE OF THE SPEAKER,2015Q1,PERSONNEL COMPENSATION,"","ECKARD,NASTASHA",01/03/15,03/31/15,ASSIST TO SPEAKER FOR POLICY,"24,077.77",2015,"","","","ECKARD,NASTASHA"
,OFFICE OF THE SPEAKER,2015Q1,PERSONNEL COMPENSATION,"","EICHHORN, JARED D",01/03/15,03/31/15,FLOOR ASSISTANT,"14,666.67",2015,"","","","EICHHORN, JARED D"
,OFFICE OF THE SPEAKER,2015Q1,PERSONNEL COMPENSATION,"","FRANKS,JESSICA L",01/03/15,03/31/15,STAFF ASSISTANT,"8,555.57",2015,"","","","FRANKS,JESSICA L"
,OFFICE OF THE SPEAKER,2015Q1,PERSONNEL COMPENSATION,"","FRANKS,JESSICA L",01/01/15,02/28/15,STAFF ASSISTANT (OVERTIME),883.40,2015,"","","","FRANKS,JESSICA L"
,OFFICE OF THE SPEAKER,2015Q1,PERSONNEL COMPENSATION,"","FRITZ,CORY M",01/03/15,03/31/15,PRESS SECRETARY,"29,333.33",2015,"","","","FRITZ,CORY M"
,OFFICE OF THE SPEAKER,2015Q1,PERSONNEL COMPENSATION,"","GILLESPIE,MAURA M",01/03/15,03/31/15,PRESS ADVISOR,"15,888.90",2015,"","","","GILLESPIE,MAURA M"
,OFFICE OF THE SPEAKER,2015Q1,PERSONNEL COMPENSATION,"","GREEN, JO-MARIE S",01/03/15,03/31/15,GEN COUNSEL/CHIEF OF LEG OPS,"42,166.67",2015,"","","","GREEN, JO-MARIE S"
,OFFICE OF THE SPEAKER,2015Q1,PERSONNEL COMPENSATION,"","GREENE,WILLIAM P",01/03/15,03/31/15,DIRECTOR-OUTREACH,"35,444.44",2015,"","","","GREENE,WILLIAM P"
,OFFICE OF THE SPEAKER,2015Q1,PERSONNEL COMPENSATION,"","GRIEVE,ALEXANDER G",01/03/15,03/31/15,STAFF ASSISTANT,"7,750.00",2015,"","","","GRIEVE,ALEXANDER G"
,OFFICE OF THE SPEAKER,2015Q1,PERSONNEL COMPENSATION,"","GRIEVE,ALEXANDER G",01/01/15,02/28/15,STAFF ASSISTANT (OVERTIME),870.79,2015,"","","","GRIEVE,ALEXANDER G"
,OFFICE OF THE SPEAKER,2015Q1,PERSONNEL COMPENSATION,"","HALEY, KATHERINE C",01/03/15,03/31/15,ASST TO SPEAKER FOR POLICY,"26,888.90",2015,"","","","HALEY, KATHERINE C"
,OFFICE OF THE SPEAKER,2015Q1,PERSONNEL COMPENSATION,"","HARROUN, TIMOTHY J",01/03/15,03/31/15,MANAGER REPUBLICAN CLOAKROOM,"32,547.77",2015,"","","","HARROUN, TIMOTHY J"
,OFFICE OF THE SPEAKER,2015Q1,PERSONNEL COMPENSATION,"","HENRIQUEZ,RAUL E",01/03/15,03/31/15,STAFF ASSISTANT,"10,555.56",2015,"","","","HENRIQUEZ,RAUL E"
,OFFICE OF THE SPEAKER,2015Q1,PERSONNEL COMPENSATION,"","HENRIQUEZ,RAUL E",01/01/15,02/28/15,STAFF ASSISTANT (OVERTIME),"1,460.32",2015,"","","","HENRIQUEZ,RAUL E"
,OFFICE OF THE SPEAKER,2015Q1,PERSONNEL COMPENSATION,"","HERRLE, CYNTHIA A",01/03/15,03/31/15,ASST TO THE SPEAKER FOR POLICY,"41,066.67",2015,"","","","HERRLE, CYNTHIA A"
,OFFICE OF THE SPEAKER,2015Q1,PERSONNEL COMPENSATION,"","HUSTON,JOHNATHON B",01/14/15,03/31/15,SHARED EMPLOYEE,"6,545.00",2015,"","","","HUSTON,JOHNATHON B"
,OFFICE OF THE SPEAKER,2015Q1,PERSONNEL COMPENSATION,"","IVANCIC,CHARLOTTE S",01/03/15,03/31/15,ASSIST TO SPEAKER FOR POLICY,"41,066.67",2015,"","","","IVANCIC,CHARLOTTE S"
,OFFICE OF THE SPEAKER,2015Q1,PERSONNEL COMPENSATION,"","KITTLE,ALLIE M",01/14/15,03/31/15,SHARED EMPLOYEE,"5,240.28",2015,"","","","KITTLE,ALLIE M"
,OFFICE OF THE SPEAKER,2015Q1,PERSONNEL COMPENSATION,"","KOLEGO, TREVOR W",01/03/15,03/31/15,DIR OF MEMBER SERVICES,"41,066.67",2015,"","","","KOLEGO, TREVOR W"
,OFFICE OF THE SPEAKER,2015Q1,PERSONNEL COMPENSATION,"","LAMPERT,JUSTIN",01/03/15,03/31/15,RESEARCH ASSISTANT,"11,000.00",2015,"","","","LAMPERT,JUSTIN"
,OFFICE OF THE SPEAKER,2015Q1,PERSONNEL COMPENSATION,"","LEOPOLD,PATRICK R",01/03/15,03/31/15,SHARED EMPLOYEE,"23,944.44",2015,"","","","LEOPOLD,PATRICK R"
,OFFICE OF THE SPEAKER,2015Q1,PERSONNEL COMPENSATION,"","LOHMEYER,SONJA M",01/03/15,03/31/15,DIRECTOR OF PUBLIC LIAISON,"35,733.33",2015,"","","","LOHMEYER,SONJA M"
,OFFICE OF THE SPEAKER,2015Q1,PERSONNEL COMPENSATION,"","LOZUPONE, AMY S",01/03/15,03/31/15,DIRECTOR OF ADMIN OPERATIONS,"42,166.67",2015,"","","","LOZUPONE, AMY S"
,OFFICE OF THE SPEAKER,2015Q1,PERSONNEL COMPENSATION,"","MACDONALD, BRIAN C",01/03/15,03/31/15,SHARED EMPLOYEE,"19,555.57",2015,"","","","MACDONALD, BRIAN C"
,OFFICE OF THE SPEAKER,2015Q1,PERSONNEL COMPENSATION,"","MARROLETTI,CHRISTOPHER V",01/26/15,03/31/15,STAFF ASSISTANT,"5,777.78",2015,"","","","MARROLETTI,CHRISTOPHER V"
,OFFICE OF THE SPEAKER,2015Q1,PERSONNEL COMPENSATION,"","MARROLETTI,CHRISTOPHER V",01/26/15,02/28/15,STAFF ASSISTANT (OVERTIME),444.22,2015,"","","","MARROLETTI,CHRISTOPHER V"
,OFFICE OF THE SPEAKER,2015Q1,PERSONNEL COMPENSATION,"","MILAM, LAURA M",01/03/15,03/31/15,DEPUTY SCHEDULER,"14,666.67",2015,"","","","MILAM, LAURA M"
,OFFICE OF THE SPEAKER,2015Q1,PERSONNEL COMPENSATION,"","MILLER,WILLIAM",01/03/15,01/30/15,SENIOR STAFF ASSISTANT,"1,125.00",2015,"","","","MILLER,WILLIAM"
,OFFICE OF THE SPEAKER,2015Q1,PERSONNEL COMPENSATION,"","MILLER,WILLIAM",01/01/15,01/11/15,SENIOR STAFF ASSISTANT (OVERTIME),405.64,2015,"","","","MILLER,WILLIAM"
,OFFICE OF THE SPEAKER,2015Q1,PERSONNEL COMPENSATION,"","MILLER,WILLIAM",01/11/15,01/30/15,SENIOR STAFF ASSISTANT (OTHER COMPENSATION),"1,375.00",2015,"","","","MILLER,WILLIAM"
,OFFICE OF THE SPEAKER,2015Q1,PERSONNEL COMPENSATION,"","MINGO,ZACHARY F",01/03/15,01/30/15,STAFF ASSISTANT,"2,333.33",2015,"","","","MINGO,ZACHARY F"
,OFFICE OF THE SPEAKER,2015Q1,PERSONNEL COMPENSATION,"","MINGO,ZACHARY F",01/01/15,01/30/15,STAFF ASSISTANT (OVERTIME),302.88,2015,"","","","MINGO,ZACHARY F"
,OFFICE OF THE SPEAKER,2015Q1,PERSONNEL COMPENSATION,"","MINGO,ZACHARY F",01/30/15,01/30/15,STAFF ASSISTANT (OTHER COMPENSATION),833.33,2015,"","","","MINGO,ZACHARY F"
,OFFICE OF THE SPEAKER,2015Q1,PERSONNEL COMPENSATION,"","MINKLER,ANN W",01/03/15,03/31/15,FLOOR ASSISTANT,"12,222.23",2015,"","","","MINKLER,ANN W"
,OFFICE OF THE SPEAKER,2015Q1,PERSONNEL COMPENSATION,"","MOORE,DYLAN M",02/17/15,03/31/15,STAFF ASSISTANT,"4,277.78",2015,"","","","MOORE,DYLAN M"
,OFFICE OF THE SPEAKER,2015Q1,PERSONNEL COMPENSATION,"","MOORE,DYLAN M",02/17/15,02/28/15,STAFF ASSISTANT (OVERTIME),100.96,2015,"","","","MOORE,DYLAN M"
,OFFICE OF THE SPEAKER,2015Q1,PERSONNEL COMPENSATION,"","PALISI,ANNIE",01/03/15,03/31/15,DEPUTY DIRECTOR OF MEMBER SVCS,"37,888.90",2015,"","","","PALISI,ANNIE"
,OFFICE OF THE SPEAKER,2015Q1,PERSONNEL COMPENSATION,"","PALMER, ASHLEY M",01/03/15,01/30/15,SHARED EMPLOYEE,666.67,2015,"","","","PALMER, ASHLEY M"
,OFFICE OF THE SPEAKER,2015Q1,PERSONNEL COMPENSATION,"","PIETKIEWICZ,ANNE K",01/03/15,03/31/15,STAFF ASSISTANT,"7,750.00",2015,"","","","PIETKIEWICZ,ANNE K"
,OFFICE OF THE SPEAKER,2015Q1,PERSONNEL COMPENSATION,"","PIETKIEWICZ,ANNE K",01/01/15,02/28/15,STAFF ASSISTANT (OVERTIME),638.21,2015,"","","","PIETKIEWICZ,ANNE K"
,OFFICE OF THE SPEAKER,2015Q1,PERSONNEL COMPENSATION,"","RATCLIFFE,RAMSEY E",01/03/15,02/28/15,SPECIAL EVENTS COORDINATOR,"7,250.00",2015,"","","","RATCLIFFE,RAMSEY E"
,OFFICE OF THE SPEAKER,2015Q1,PERSONNEL COMPENSATION,"","RATCLIFFE,RAMSEY E",03/01/15,03/31/15,SPECIAL EVENTS ASSOCIATE,"4,166.67",2015,"","","","RATCLIFFE,RAMSEY E"
,OFFICE OF THE SPEAKER,2015Q1,PERSONNEL COMPENSATION,"","REED, HEATHER E",01/03/15,03/31/15,DEPUTY PRESS SECRETARY,"15,888.90",2015,"","","","REED, HEATHER E"
,OFFICE OF THE SPEAKER,2015Q1,PERSONNEL COMPENSATION,"","RENZ, BRANDON",01/03/15,03/31/15,SHARED EMPLOYEE,"23,944.44",2015,"","","","RENZ, BRANDON"
,OFFICE OF THE SPEAKER,2015Q1,PERSONNEL COMPENSATION,"","RICCI,MICHAEL",01/03/15,03/31/15,DEPUTY COMMUNICATIONS DIRECTOR,"37,888.90",2015,"","","","RICCI,MICHAEL"
,OFFICE OF THE SPEAKER,2015Q1,PERSONNEL COMPENSATION,"","ROBINSON,GREGORY J",01/03/15,03/31/15,ASSOCIATE COUNSEL,"12,711.10",2015,"","","","ROBINSON,GREGORY J"
,OFFICE OF THE SPEAKER,2015Q1,PERSONNEL COMPENSATION,"","SAGER,MICHAEL J",01/03/15,03/31/15,SYSTEMS ADMINISTRATOR,"20,777.77",2015,"","","","SAGER,MICHAEL J"
,OFFICE OF THE SPEAKER,2015Q1,PERSONNEL COMPENSATION,"","SCHNITTGER, DAVID M",01/03/15,01/11/15,DEPUTY CHIEF OF STAFF,"4,312.50",2015,"","","","SCHNITTGER, DAVID M"
,OFFICE OF THE SPEAKER,2015Q1,PERSONNEL COMPENSATION,"","SCHNITTGER, DAVID M",01/11/15,01/30/15,DEPUTY CHIEF OF STAFF (OTHER COMPENSATION),"9,104.17",2015,"","","","SCHNITTGER, DAVID M"
,OFFICE OF THE SPEAKER,2015Q1,PERSONNEL COMPENSATION,"","SMITH, CALEB J",01/03/15,03/31/15,DIGITAL COMMUNICATIONS DIRECTO,"24,444.44",2015,"","","","SMITH, CALEB J"
,OFFICE OF THE SPEAKER,2015Q1,PERSONNEL COMPENSATION,"","SMITH, KEVIN",01/03/15,03/31/15,DIRECTOR OF COMMUNICATIONS,"42,166.67",2015,"","","","SMITH, KEVIN"
,OFFICE OF THE SPEAKER,2015Q1,PERSONNEL COMPENSATION,"","SOMMERS, MICHAEL J",01/03/15,03/31/15,CHIEF OF STAFF,"42,166.67",2015,"","","","SOMMERS, MICHAEL J"
,OFFICE OF THE SPEAKER,2015Q1,PERSONNEL COMPENSATION,"","STEEL, MICHAEL",01/03/15,03/31/15,PRESS SECRETARY,"39,111.10",2015,"","","","STEEL, MICHAEL"
,OFFICE OF THE SPEAKER,2015Q1,PERSONNEL COMPENSATION,"","STEWART, DAVID B",01/03/15,03/31/15,POLICY DIRECTOR (STAT),"42,166.67",2015,"","","","STEWART, DAVID B"
,OFFICE OF THE SPEAKER,2015Q1,PERSONNEL COMPENSATION,"","STEWART, JENNIFER M",01/03/15,03/31/15,ASST TO SPEAKER FOR POLICY,"29,333.33",2015,"","","","STEWART, JENNIFER M"
,OFFICE OF THE SPEAKER,2015Q1,PERSONNEL COMPENSATION,"","STRUNK, LYDIA",01/03/15,03/31/15,DEPUTY FLOOR DIRECTOR,"24,444.43",2015,"","","","STRUNK, LYDIA"
,OFFICE OF THE SPEAKER,2015Q1,PERSONNEL COMPENSATION,"","SWINEHART,SARAH V",01/03/15,03/31/15,DIRECTOR OF MEDIA AFFAIRS,"23,222.23",2015,"","","","SWINEHART,SARAH V"
,OFFICE OF THE SPEAKER,2015Q1,PERSONNEL COMPENSATION,"","TALLENT,REBECCA A",01/03/15,03/31/15,ASST TO SPEAKER FOR POLICY,"41,066.67",2015,"","","","TALLENT,REBECCA A"
,OFFICE OF THE SPEAKER,2015Q1,PERSONNEL COMPENSATION,"","THORSEN, ANNE B",01/03/15,03/31/15,FLOOR DIRECTOR,"42,166.67",2015,"","","","THORSEN, ANNE B"
,OFFICE OF THE SPEAKER,2015Q1,PERSONNEL COMPENSATION,"","WHITE, JERRY L",01/03/15,03/31/15,SHARED EMPLOYEE,"19,555.56",2015,"","","","WHITE, JERRY L"
,OFFICE OF THE SPEAKER,2015Q1,PERSONNEL COMPENSATION,"","WOLKING,MATTHEW D",01/03/15,03/31/15,COMMUNICATIONS ADVISOR,"23,833.33",2015,"","","","WOLKING,MATTHEW D"
,OFFICE OF THE SPEAKER,2015Q1,PERSONNEL COMPENSATION,"","ZULKOSKY,ERIC T",01/03/15,03/31/15,SHARED EMPLOYEE,"24,444.43",2015,"","","","ZULKOSKY,ERIC T"
,OFFICE OF THE SPEAKER,2015Q1,TRAVEL,01-23,"SWINEHART,SARAH V",01/09/15,01/17/15,TRAVEL SUBSISTENCE,976.64,2015,AP,Accounts payable,E0239149,"SWINEHART,SARAH V"
,OFFICE OF THE SPEAKER,2015Q1,TRAVEL,02-13,"SMITH, KEVIN",01/16/15,01/16/15,TRAVEL SUBSISTENCE,214.00,2015,AP,Accounts payable,E0246744,"SMITH, KEVIN"
,OFFICE OF THE SPEAKER,2015Q1,TRAVEL,02-27,"BENJAMIN, WILLIAM C",02/05/15,02/05/15,TAXI/PARKING/TOLLS,17.00,2015,AP,Accounts payable,E0251587,"BENJAMIN, WILLIAM C"
,OFFICE OF THE SPEAKER,2015Q1,"RENT, COMMUNICATION, UTILITIES",03-12,AMARYLLIS INC,03/03/15,03/03/15,EQUIP RENTAL (EFF 1/3/03),"1,110.00",2015,AP,Accounts payable,E0256365,AMARYLLIS INC
,OFFICE OF THE SPEAKER,2015Q1,"RENT, COMMUNICATION, UTILITIES",03-31,AMARYLLIS INC,03/03/15,03/03/15,EQUIP RENTAL (EFF 1/3/03),"-1,110.00",2015,AP,Accounts payable,00785136,AMARYLLIS INC
,OFFICE OF THE SPEAKER,2015Q1,PRINTING AND REPRODUCTION,01-29,"",01/01/15,01/31/15,PHOTOGRAPHIC (TRANSFER),"1,912.00",2015,GL,General ledger,PIX0046093,""
,OFFICE OF THE SPEAKER,2015Q1,PRINTING AND REPRODUCTION,02-24,"",02/01/15,02/28/15,PHOTOGRAPHIC (TRANSFER),946.60,2015,GL,General ledger,PIX0046771,""
,OFFICE OF THE SPEAKER,2015Q1,PRINTING AND REPRODUCTION,03-27,"",03/01/15,03/31/15,PHOTOGRAPHIC (TRANSFER),721.00,2015,GL,General ledger,PIX0047659,""
,OFFICE OF THE SPEAKER,2015Q1,SUPPLIES AND MATERIALS,01-13,AMARYLLIS INC,01/06/15,01/06/15,HABITATION EXPENSE,"1,280.00",2015,AP,Accounts payable,E0235118,AMARYLLIS INC
,OFFICE OF THE SPEAKER,2015Q1,SUPPLIES AND MATERIALS,01-13,HAGUE QUALITY WATER OF MD INC,01/04/15,01/03/16,WATER,"3,780.00",2015,AP,Accounts payable,E0235133,HAGUE QUALITY WATER OF MD INC
,OFFICE OF THE SPEAKER,2015Q1,SUPPLIES AND MATERIALS,01-14,COCA-COLA REFRESHMENTS USA INC,01/13/15,01/13/15,FOOD & BEVERAGE,231.84,2015,AP,Accounts payable,E0235851,COCA-COLA REFRESHMENTS USA INC
,OFFICE OF THE SPEAKER,2015Q1,SUPPLIES AND MATERIALS,01-23,DESIGN CUISINE,01/07/15,01/07/15,FOOD & BEVERAGE,"12,518.00",2015,AP,Accounts payable,E0239144,DESIGN CUISINE
,OFFICE OF THE SPEAKER,2015Q1,SUPPLIES AND MATERIALS,01-23,AMARYLLIS INC,01/20/15,01/20/15,HABITATION EXPENSE,"1,775.00",2015,AP,Accounts payable,E0239146,AMARYLLIS INC
,OFFICE OF THE SPEAKER,2015Q1,SUPPLIES AND MATERIALS,01-23,FIRST CHOICE COFFEE SERVICES,01/15/15,01/15/15,FOOD & BEVERAGE,499.46,2015,AP,Accounts payable,E0239148,FIRST CHOICE COFFEE SERVICES
,OFFICE OF THE SPEAKER,2015Q1,SUPPLIES AND MATERIALS,02-12,FIRST CHOICE COFFEE SERVICES,01/22/15,01/22/15,FOOD & BEVERAGE,704.58,2015,AP,Accounts payable,E0246742,FIRST CHOICE COFFEE SERVICES
,OFFICE OF THE SPEAKER,2015Q1,SUPPLIES AND MATERIALS,02-12,FIRST CHOICE COFFEE SERVICES,01/07/15,01/07/15,FOOD & BEVERAGE,"1,097.06",2015,AP,Accounts payable,E0246748,FIRST CHOICE COFFEE SERVICES
,OFFICE OF THE SPEAKER,2015Q1,SUPPLIES AND MATERIALS,02-12,FIRST CHOICE COFFEE SERVICES,01/29/15,01/29/15,FOOD & BEVERAGE,535.92,2015,AP,Accounts payable,E0246751,FIRST CHOICE COFFEE SERVICES
,OFFICE OF THE SPEAKER,2015Q1,SUPPLIES AND MATERIALS,02-13,COCA-COLA REFRESHMENTS USA INC,01/27/15,01/27/15,FOOD & BEVERAGE,156.00,2015,AP,Accounts payable,E0246727,COCA-COLA REFRESHMENTS USA INC
,OFFICE OF THE SPEAKER,2015Q1,SUPPLIES AND MATERIALS,02-13,DESIGN CUISINE,01/06/15,01/06/15,FOOD & BEVERAGE,"5,947.00",2015,AP,Accounts payable,E0246732,DESIGN CUISINE
,OFFICE OF THE SPEAKER,2015Q1,SUPPLIES AND MATERIALS,02-13,"WHITE, JERRY L",01/21/15,01/21/15,FOOD & BEVERAGE,111.08,2015,AP,Accounts payable,E0246736,"WHITE, JERRY L"
,OFFICE OF THE SPEAKER,2015Q1,SUPPLIES AND MATERIALS,02-13,COCA-COLA REFRESHMENTS USA INC,01/30/15,01/30/15,FOOD & BEVERAGE,136.00,2015,AP,Accounts payable,E0246740,COCA-COLA REFRESHMENTS USA INC
,OFFICE OF THE SPEAKER,2015Q1,SUPPLIES AND MATERIALS,02-13,LEADERSHIP DIRECTORIES INC,03/01/15,03/01/16,PUBLICATIONS/REFERENCE MAT'L,635.00,2015,AP,Accounts payable,E0246741,LEADERSHIP DIRECTORIES INC
,OFFICE OF THE SPEAKER,2015Q1,SUPPLIES AND MATERIALS,02-13,"KITTLE, ALLIE M",02/04/15,02/04/15,FOOD & BEVERAGE,208.15,2015,AP,Accounts payable,E0246752,"KITTLE, ALLIE M"
,OFFICE OF THE SPEAKER,2015Q1,SUPPLIES AND MATERIALS,02-13,DESIGN CUISINE,01/20/15,01/20/15,FOOD & BEVERAGE,"6,624.35",2015,AP,Accounts payable,E0246758,DESIGN CUISINE
,OFFICE OF THE SPEAKER,2015Q1,SUPPLIES AND MATERIALS,02-19,CITI PCARD-CORNER BAKERY,01/03/15,01/28/15,FOOD & BEVERAGE,751.50,2015,AP,Accounts payable,00775819,CITI PCARD-CORNER BAKERY
,OFFICE OF THE SPEAKER,2015Q1,SUPPLIES AND MATERIALS,02-19,CITI PCARD-TAYLOR GOURMET 1750 PE,01/03/15,01/28/15,FOOD & BEVERAGE,"1,329.74",2015,AP,Accounts payable,00775819,CITI PCARD-TAYLOR GOURMET 1750 PE
,OFFICE OF THE SPEAKER,2015Q1,SUPPLIES AND MATERIALS,02-19,CITI PCARD-WHOLEFDS PST,01/03/15,01/28/15,FOOD & BEVERAGE,918.80,2015,AP,Accounts payable,00775819,CITI PCARD-WHOLEFDS PST
,OFFICE OF THE SPEAKER,2015Q1,SUPPLIES AND MATERIALS,02-24,COCA-COLA REFRESHMENTS USA INC,02/19/15,02/19/15,FOOD & BEVERAGE,117.60,2015,AP,Accounts payable,E0249878,COCA-COLA REFRESHMENTS USA INC
,OFFICE OF THE SPEAKER,2015Q1,SUPPLIES AND MATERIALS,02-24,"LOHMEYER, SONJA M",02/16/15,02/16/15,HABITATION EXPENSE,13.77,2015,AP,Accounts payable,E0249884,"LOHMEYER, SONJA M"
,OFFICE OF THE SPEAKER,2015Q1,SUPPLIES AND MATERIALS,02-27,"KITTLE, ALLIE M",02/24/15,02/24/15,FOOD & BEVERAGE,4.53,2015,AP,Accounts payable,E0251580,"KITTLE, ALLIE M"
,OFFICE OF THE SPEAKER,2015Q1,SUPPLIES AND MATERIALS,02-27,"WHITE, JERRY L",02/25/15,02/25/15,FOOD & BEVERAGE,124.56,2015,AP,Accounts payable,E0251586,"WHITE, JERRY L"
,OFFICE OF THE SPEAKER,2015Q1,SUPPLIES AND MATERIALS,02-27,LEXIS-NEXIS,05/01/15,12/31/15,PUBLICATIONS/REFERENCE MAT'L,"6,456.00",2015,AP,Accounts payable,E0251589,LEXIS-NEXIS
,OFFICE OF THE SPEAKER,2015Q1,SUPPLIES AND MATERIALS,03-06,FIRST CHOICE COFFEE SERVICES,02/05/15,02/26/15,FOOD & BEVERAGE,"2,521.95",2015,AP,Accounts payable,E0254059,FIRST CHOICE COFFEE SERVICES
,OFFICE OF THE SPEAKER,2015Q1,SUPPLIES AND MATERIALS,03-06,"WHITE, JERRY L",03/04/15,03/04/15,FOOD & BEVERAGE,120.50,2015,AP,Accounts payable,E0254061,"WHITE, JERRY L"
,OFFICE OF THE SPEAKER,2015Q1,SUPPLIES AND MATERIALS,03-13,THE KOSHER KITCHEN CATERING COMPANY,03/03/15,03/03/15,FOOD & BEVERAGE,"8,150.00",2015,AP,Accounts payable,E0254043,THE KOSHER KITCHEN CATERING COMPANY
,OFFICE OF THE SPEAKER,2015Q1,SUPPLIES AND MATERIALS,03-19,CITI PCARD-AMAZON MKTPLACE PMTS,01/29/15,02/28/15,PUBLICATIONS/REFERENCE MAT'L,116.52,2015,AP,Accounts payable,00783862,CITI PCARD-AMAZON MKTPLACE PMTS
,OFFICE OF THE SPEAKER,2015Q1,SUPPLIES AND MATERIALS,03-19,CITI PCARD-CORNER BAKERY,01/29/15,02/28/15,FOOD & BEVERAGE,"1,387.17",2015,AP,Accounts payable,00783862,CITI PCARD-CORNER BAKERY
,OFFICE OF THE SPEAKER,2015Q1,SUPPLIES AND MATERIALS,03-19,CITI PCARD-HILL COUNTRY BARBECUE,01/29/15,02/28/15,FOOD & BEVERAGE,"5,590.00",2015,AP,Accounts payable,00783862,CITI PCARD-HILL COUNTRY BARBECUE
,OFFICE OF THE SPEAKER,2015Q1,SUPPLIES AND MATERIALS,03-19,CITI PCARD-POTBELLY,01/29/15,02/28/15,FOOD & BEVERAGE,359.50,2015,AP,Accounts payable,00783862,CITI PCARD-POTBELLY
,OFFICE OF THE SPEAKER,2015Q1,SUPPLIES AND MATERIALS,03-19,CITI PCARD-SARDI S CATERING,01/29/15,02/28/15,FOOD & BEVERAGE,830.00,2015,AP,Accounts payable,00783862,CITI PCARD-SARDI S CATERING
,OFFICE OF THE SPEAKER,2015Q1,SUPPLIES AND MATERIALS,03-19,CITI PCARD-SOMETHING SWEET,01/29/15,02/28/15,FOOD & BEVERAGE,"1,031.36",2015,AP,Accounts payable,00783862,CITI PCARD-SOMETHING SWEET
,OFFICE OF THE SPEAKER,2015Q1,SUPPLIES AND MATERIALS,03-19,CITI PCARD-TAYLOR GOURMET 1750 PE,01/29/15,02/28/15,FOOD & BEVERAGE,308.71,2015,AP,Accounts payable,00783862,CITI PCARD-TAYLOR GOURMET 1750 PE
,OFFICE OF THE SPEAKER,2015Q1,SUPPLIES AND MATERIALS,03-19,CITI PCARD-TAYLOR GOURMET 624 E L,01/29/15,02/28/15,FOOD & BEVERAGE,742.39,2015,AP,Accounts payable,00783862,CITI PCARD-TAYLOR GOURMET 624 E L
,OFFICE OF THE SPEAKER,2015Q1,SUPPLIES AND MATERIALS,03-19,CITI PCARD-WHOLEFDS PST,01/29/15,02/28/15,FOOD & BEVERAGE,369.37,2015,AP,Accounts payable,00783862,CITI PCARD-WHOLEFDS PST
,OFFICE OF THE SPEAKER,2015Q1,SUPPLIES AND MATERIALS,03-20,POLITICO,02/13/15,02/12/16,PUBLICATIONS/REFERENCE MAT'L,"4,995.00",2015,AP,Accounts payable,E0259835,POLITICO
,OFFICE OF THE SPEAKER,2015Q1,SUPPLIES AND MATERIALS,03-20,"WHITE, JERRY L",03/18/15,03/18/15,FOOD & BEVERAGE,133.20,2015,AP,Accounts payable,E0259854,"WHITE, JERRY L"
,OFFICE OF THE SPEAKER,2015Q1,SUPPLIES AND MATERIALS,03-31,AMARYLLIS INC,03/03/15,03/03/15,HABITATION EXPENSE,"1,110.00",2015,AP,Accounts payable,00785136,AMARYLLIS INC
,OFFICE OF THE SPEAKER,2015Q1,PERSONNEL COMPENSATION,"","ALTMAN,MICHELLE E",01/01/15,01/02/15,SHARED EMPLOYEE,444.44,2014,"","","","ALTMAN,MICHELLE E"
,OFFICE OF THE SPEAKER,2015Q1,PERSONNEL COMPENSATION,"","ANDREWS,THOMAS S",01/01/15,01/02/15,SPECIAL ASST TO THE SPEAKER,333.33,2014,"","","","ANDREWS,THOMAS S"
,OFFICE OF THE SPEAKER,2015Q1,PERSONNEL COMPENSATION,"","BAILEY,BRADLEY",01/01/15,01/02/15,ASSIST TO SPEAKER FOR POLICY,666.67,2014,"","","","BAILEY,BRADLEY"
,OFFICE OF THE SPEAKER,2015Q1,PERSONNEL COMPENSATION,"","BECKER,ALEXANDER M",01/01/15,01/02/15,FLOOR ASSISTANT,250.00,2014,"","","","BECKER,ALEXANDER M"
,OFFICE OF THE SPEAKER,2015Q1,PERSONNEL COMPENSATION,"","BENJAMIN, WILLIAM C",01/01/15,01/02/15,DIR OF INFORMATION TECHNOLOGY,544.44,2014,"","","","BENJAMIN, WILLIAM C"
,OFFICE OF THE SPEAKER,2015Q1,PERSONNEL COMPENSATION,"","BLAKE,KRISTENE",01/01/15,01/02/15,DIRECTOR OF SCHDLNG/EXEC ASST,555.56,2014,"","","","BLAKE,KRISTENE"
,OFFICE OF THE SPEAKER,2015Q1,PERSONNEL COMPENSATION,"","BORDEN III, R C",01/01/15,01/02/15,SHARED EMPLOYEE,927.78,2014,"","","","BORDEN III, R C"
,OFFICE OF THE SPEAKER,2015Q1,PERSONNEL COMPENSATION,"","BOYD,KATHRYN E",01/01/15,01/02/15,ASST COMMUNICATIONS DIRECTOR,527.78,2014,"","","","BOYD,KATHRYN E"
,OFFICE OF THE SPEAKER,2015Q1,PERSONNEL COMPENSATION,"","BROWN,MARYAM S",01/01/15,01/02/15,ASST TO SPEAKER FOR POLICY,933.33,2014,"","","","BROWN,MARYAM S"
,OFFICE OF THE SPEAKER,2015Q1,PERSONNEL COMPENSATION,"","CRAVEN, KELLY F",01/01/15,01/02/15,DIRECTOR OF HOUSE OPERATIONS,958.33,2014,"","","","CRAVEN, KELLY F"
,OFFICE OF THE SPEAKER,2015Q1,PERSONNEL COMPENSATION,"","EASBY-SMITH,ANNE S",01/01/15,01/02/15,SPECIAL EVENTS COORDINATOR,250.00,2014,"","","","EASBY-SMITH,ANNE S"
,OFFICE OF THE SPEAKER,2015Q1,PERSONNEL COMPENSATION,"","ECKARD,NASTASHA",01/01/15,01/02/15,ASSIST TO SPEAKER FOR POLICY,547.22,2014,"","","","ECKARD,NASTASHA"
,OFFICE OF THE SPEAKER,2015Q1,PERSONNEL COMPENSATION,"","EICHHORN, JARED D",01/01/15,01/02/15,FLOOR ASSISTANT,333.33,2014,"","","","EICHHORN, JARED D"
,OFFICE OF THE SPEAKER,2015Q1,PERSONNEL COMPENSATION,"","FRANKS,JESSICA L",01/01/15,01/02/15,STAFF ASSISTANT,194.44,2014,"","","","FRANKS,JESSICA L"
,OFFICE OF THE SPEAKER,2015Q1,PERSONNEL COMPENSATION,"","FRANKS,JESSICA L",12/01/14,12/31/14,STAFF ASSISTANT (OVERTIME),220.85,2014,"","","","FRANKS,JESSICA L"
,OFFICE OF THE SPEAKER,2015Q1,PERSONNEL COMPENSATION,"","FRITZ,CORY M",01/01/15,01/02/15,PRESS SECRETARY,666.67,2014,"","","","FRITZ,CORY M"
,OFFICE OF THE SPEAKER,2015Q1,PERSONNEL COMPENSATION,"","GILLESPIE,MAURA M",01/01/15,01/02/15,PRESS ADVISOR,333.33,2014,"","","","GILLESPIE,MAURA M"
,OFFICE OF THE SPEAKER,2015Q1,PERSONNEL COMPENSATION,"","GREEN, JO-MARIE S",01/01/15,01/02/15,GEN COUNSEL/CHIEF OF LEG OPS,958.33,2014,"","","","GREEN, JO-MARIE S"
,OFFICE OF THE SPEAKER,2015Q1,PERSONNEL COMPENSATION,"","GREENE,WILLIAM P",01/01/15,01/02/15,DIRECTOR-OUTREACH,777.78,2014,"","","","GREENE,WILLIAM P"
,OFFICE OF THE SPEAKER,2015Q1,PERSONNEL COMPENSATION,"","GRIEVE,ALEXANDER G",01/01/15,01/02/15,STAFF ASSISTANT,166.67,2014,"","","","GRIEVE,ALEXANDER G"
,OFFICE OF THE SPEAKER,2015Q1,PERSONNEL COMPENSATION,"","GRIEVE,ALEXANDER G",12/01/14,12/31/14,STAFF ASSISTANT (OVERTIME),373.19,2014,"","","","GRIEVE,ALEXANDER G"
,OFFICE OF THE SPEAKER,2015Q1,PERSONNEL COMPENSATION,"","HALEY, KATHERINE C",01/01/15,01/02/15,ASST TO SPEAKER FOR POLICY,611.11,2014,"","","","HALEY, KATHERINE C"
,OFFICE OF THE SPEAKER,2015Q1,PERSONNEL COMPENSATION,"","HARROUN, TIMOTHY J",01/01/15,01/02/15,MANAGER REPUBLICAN CLOAKROOM,739.72,2014,"","","","HARROUN, TIMOTHY J"
,OFFICE OF THE SPEAKER,2015Q1,PERSONNEL COMPENSATION,"","HENRIQUEZ,RAUL E",01/01/15,01/02/15,STAFF ASSISTANT,194.44,2014,"","","","HENRIQUEZ,RAUL E"
,OFFICE OF THE SPEAKER,2015Q1,PERSONNEL COMPENSATION,"","HENRIQUEZ,RAUL E",12/01/14,12/31/14,STAFF ASSISTANT (OVERTIME),353.36,2014,"","","","HENRIQUEZ,RAUL E"
,OFFICE OF THE SPEAKER,2015Q1,PERSONNEL COMPENSATION,"","HERRLE, CYNTHIA A",01/01/15,01/02/15,ASST TO THE SPEAKER FOR POLICY,933.33,2014,"","","","HERRLE, CYNTHIA A"
,OFFICE OF THE SPEAKER,2015Q1,PERSONNEL COMPENSATION,"","IVANCIC,CHARLOTTE S",01/01/15,01/02/15,ASSIST TO SPEAKER FOR POLICY,933.33,2014,"","","","IVANCIC,CHARLOTTE S"
,OFFICE OF THE SPEAKER,2015Q1,PERSONNEL COMPENSATION,"","KOLEGO, TREVOR W",01/01/15,01/02/15,DIR OF MEMBER SERVICES,933.33,2014,"","","","KOLEGO, TREVOR W"
,OFFICE OF THE SPEAKER,2015Q1,PERSONNEL COMPENSATION,"","LAMPERT,JUSTIN",01/01/15,01/02/15,RESEARCH ASSISTANT,250.00,2014,"","","","LAMPERT,JUSTIN"
,OFFICE OF THE SPEAKER,2015Q1,PERSONNEL COMPENSATION,"","LEOPOLD,PATRICK R",01/01/15,01/02/15,SHARED EMPLOYEE,444.44,2014,"","","","LEOPOLD,PATRICK R"
,OFFICE OF THE SPEAKER,2015Q1,PERSONNEL COMPENSATION,"","LOHMEYER,SONJA M",01/01/15,01/02/15,DIRECTOR OF PUBLIC LIAISON,766.67,2014,"","","","LOHMEYER,SONJA M"
,OFFICE OF THE SPEAKER,2015Q1,PERSONNEL COMPENSATION,"","LOZUPONE, AMY S",01/01/15,01/02/15,DIRECTOR OF ADMIN OPERATIONS,958.33,2014,"","","","LOZUPONE, AMY S"
,OFFICE OF THE SPEAKER,2015Q1,PERSONNEL COMPENSATION,"","MACDONALD, BRIAN C",01/01/15,01/02/15,SHARED EMPLOYEE,444.44,2014,"","","","MACDONALD, BRIAN C"
,OFFICE OF THE SPEAKER,2015Q1,PERSONNEL COMPENSATION,"","MILAM, LAURA M",01/01/15,01/02/15,DEPUTY SCHEDULER,222.22,2014,"","","","MILAM, LAURA M"
,OFFICE OF THE SPEAKER,2015Q1,PERSONNEL COMPENSATION,"","MILLER,WILLIAM",01/01/15,01/02/15,SENIOR STAFF ASSISTANT,250.00,2014,"","","","MILLER,WILLIAM"
,OFFICE OF THE SPEAKER,2015Q1,PERSONNEL COMPENSATION,"","MILLER,WILLIAM",12/01/14,12/31/14,SENIOR STAFF ASSISTANT (OVERTIME),657.14,2014,"","","","MILLER,WILLIAM"
,OFFICE OF THE SPEAKER,2015Q1,PERSONNEL COMPENSATION,"","MINGO,ZACHARY F",01/01/15,01/02/15,STAFF ASSISTANT,166.67,2014,"","","","MINGO,ZACHARY F"
,OFFICE OF THE SPEAKER,2015Q1,PERSONNEL COMPENSATION,"","MINGO,ZACHARY F",12/01/14,12/31/14,STAFF ASSISTANT (OVERTIME),265.02,2014,"","","","MINGO,ZACHARY F"
,OFFICE OF THE SPEAKER,2015Q1,PERSONNEL COMPENSATION,"","MINKLER,ANN W",01/01/15,01/02/15,FLOOR ASSISTANT,277.78,2014,"","","","MINKLER,ANN W"
,OFFICE OF THE SPEAKER,2015Q1,PERSONNEL COMPENSATION,"","PALISI,ANNIE",01/01/15,01/02/15,DEPUTY DIRECTOR OF MEMBER SVCS,861.11,2014,"","","","PALISI,ANNIE"
,OFFICE OF THE SPEAKER,2015Q1,PERSONNEL COMPENSATION,"","PALMER, ASHLEY M",01/01/15,01/02/15,SHARED EMPLOYEE,111.11,2014,"","","","PALMER, ASHLEY M"
,OFFICE OF THE SPEAKER,2015Q1,PERSONNEL COMPENSATION,"","PIETKIEWICZ,ANNE K",01/01/15,01/02/15,STAFF ASSISTANT,166.67,2014,"","","","PIETKIEWICZ,ANNE K"
,OFFICE OF THE SPEAKER,2015Q1,PERSONNEL COMPENSATION,"","PIETKIEWICZ,ANNE K",12/01/14,12/31/14,STAFF ASSISTANT (OVERTIME),216.34,2014,"","","","PIETKIEWICZ,ANNE K"
,OFFICE OF THE SPEAKER,2015Q1,PERSONNEL COMPENSATION,"","RATCLIFFE,RAMSEY E",01/01/15,01/02/15,SPECIAL EVENTS COORDINATOR,250.00,2014,"","","","RATCLIFFE,RAMSEY E"
,OFFICE OF THE SPEAKER,2015Q1,PERSONNEL COMPENSATION,"","REED, HEATHER E",01/01/15,01/02/15,DEPUTY PRESS SECRETARY,361.11,2014,"","","","REED, HEATHER E"
,OFFICE OF THE SPEAKER,2015Q1,PERSONNEL COMPENSATION,"","RENZ, BRANDON",01/01/15,01/02/15,SHARED EMPLOYEE,444.45,2014,"","","","RENZ, BRANDON"
,OFFICE OF THE SPEAKER,2015Q1,PERSONNEL COMPENSATION,"","RICCI,MICHAEL",01/01/15,01/02/15,DEPUTY COMMUNICATIONS DIRECTOR,805.56,2014,"","","","RICCI,MICHAEL"
,OFFICE OF THE SPEAKER,2015Q1,PERSONNEL COMPENSATION,"","ROBINSON,GREGORY J",01/01/15,01/02/15,ASSOCIATE COUNSEL,288.89,2014,"","","","ROBINSON,GREGORY J"
,OFFICE OF THE SPEAKER,2015Q1,PERSONNEL COMPENSATION,"","SAGER,MICHAEL J",01/01/15,01/02/15,SYSTEMS ADMINISTRATOR,472.22,2014,"","","","SAGER,MICHAEL J"
,OFFICE OF THE SPEAKER,2015Q1,PERSONNEL COMPENSATION,"","SCHNITTGER, DAVID M",01/01/15,01/02/15,DEPUTY CHIEF OF STAFF,958.33,2014,"","","","SCHNITTGER, DAVID M"
,OFFICE OF THE SPEAKER,2015Q1,PERSONNEL COMPENSATION,"","SMITH, CALEB J",01/01/15,01/02/15,DIGITAL COMMUNICATIONS DIRECTO,500.00,2014,"","","","SMITH, CALEB J"
,OFFICE OF THE SPEAKER,2015Q1,PERSONNEL COMPENSATION,"","SMITH, KEVIN",01/01/15,01/02/15,DIRECTOR OF COMMUNICATIONS,958.33,2014,"","","","SMITH, KEVIN"
,OFFICE OF THE SPEAKER,2015Q1,PERSONNEL COMPENSATION,"","SOMMERS, MICHAEL J",01/01/15,01/02/15,CHIEF OF STAFF,958.33,2014,"","","","SOMMERS, MICHAEL J"
,OFFICE OF THE SPEAKER,2015Q1,PERSONNEL COMPENSATION,"","STEEL, MICHAEL",01/01/15,01/02/15,PRESS SECRETARY,833.33,2014,"","","","STEEL, MICHAEL"
,OFFICE OF THE SPEAKER,2015Q1,PERSONNEL COMPENSATION,"","STEWART, DAVID B",01/01/15,01/02/15,POLICY DIRECTOR (STAT),958.33,2014,"","","","STEWART, DAVID B"
,OFFICE OF THE SPEAKER,2015Q1,PERSONNEL COMPENSATION,"","STEWART, JENNIFER M",01/01/15,01/02/15,ASST TO SPEAKER FOR POLICY,666.67,2014,"","","","STEWART, JENNIFER M"
,OFFICE OF THE SPEAKER,2015Q1,PERSONNEL COMPENSATION,"","STRUNK, LYDIA",01/01/15,01/02/15,DEPUTY FLOOR DIRECTOR,555.56,2014,"","","","STRUNK, LYDIA"
,OFFICE OF THE SPEAKER,2015Q1,PERSONNEL COMPENSATION,"","SWINEHART,SARAH V",01/01/15,01/02/15,DIRECTOR OF MEDIA AFFAIRS,527.78,2014,"","","","SWINEHART,SARAH V"
,OFFICE OF THE SPEAKER,2015Q1,PERSONNEL COMPENSATION,"","TALLENT,REBECCA A",01/01/15,01/02/15,ASST TO SPEAKER FOR POLICY,933.33,2014,"","","","TALLENT,REBECCA A"
,OFFICE OF THE SPEAKER,2015Q1,PERSONNEL COMPENSATION,"","THORSEN, ANNE B",01/01/15,01/02/15,FLOOR DIRECTOR,958.33,2014,"","","","THORSEN, ANNE B"
,OFFICE OF THE SPEAKER,2015Q1,PERSONNEL COMPENSATION,"","WOLKING,MATTHEW D",01/01/15,01/02/15,COMMUNICATIONS ADVISOR,500.00,2014,"","","","WOLKING,MATTHEW D"
,OFFICE OF THE SPEAKER,2015Q1,PERSONNEL COMPENSATION,"","ZULKOSKY,ERIC T",01/01/15,01/02/15,SHARED EMPLOYEE,555.56,2014,"","","","ZULKOSKY,ERIC T"
,OFFICE OF THE SPEAKER,2015Q1,TRAVEL,02-13,"SMITH, KEVIN",10/23/14,12/19/14,TAXI/PARKING/TOLLS,117.00,2014,AP,Accounts payable,E0246750,"SMITH, KEVIN"
,OFFICE OF THE SPEAKER,2015Q1,OTHER SERVICES,02-13,"ROBINSON, JANICE C",02/12/14,02/12/14,REPRESENTATIONAL EXPENSES,294.93,2014,AP,Accounts payable,E0247183,"ROBINSON, JANICE C"
,OFFICE OF THE SPEAKER,2015Q1,SUPPLIES AND MATERIALS,01-05,"BLAKE, KRISTENE",01/02/15,01/02/15,HABITATION EXPENSE,40.00,2014,AP,Accounts payable,E0232199,"BLAKE, KRISTENE"
,OFFICE OF THE SPEAKER,2015Q1,SUPPLIES AND MATERIALS,01-13,COCA-COLA REFRESHMENTS USA INC,12/16/14,12/16/14,FOOD & BEVERAGE,117.60,2014,AP,Accounts payable,E0232183,COCA-COLA REFRESHMENTS USA INC
,OFFICE OF THE SPEAKER,2015Q1,SUPPLIES AND MATERIALS,01-20,CITI PCARD-ARTISTIC FRAMING,11/29/14,12/28/14,HABITATION EXPENSE,"2,517.76",2014,AP,Accounts payable,00772401,CITI PCARD-ARTISTIC FRAMING
,OFFICE OF THE SPEAKER,2015Q1,SUPPLIES AND MATERIALS,01-20,CITI PCARD-CORNER BAKERY,11/29/14,12/28/14,FOOD & BEVERAGE,751.50,2014,AP,Accounts payable,00772401,CITI PCARD-CORNER BAKERY
,OFFICE OF THE SPEAKER,2015Q1,SUPPLIES AND MATERIALS,01-20,CITI PCARD-CVS/PHARMACY,11/29/14,12/28/14,FOOD & BEVERAGE,28.79,2014,AP,Accounts payable,00772401,CITI PCARD-CVS/PHARMACY
,OFFICE OF THE SPEAKER,2015Q1,SUPPLIES AND MATERIALS,01-20,CITI PCARD-DISTRICT TACO,11/29/14,12/28/14,FOOD & BEVERAGE,639.75,2014,AP,Accounts payable,00772401,CITI PCARD-DISTRICT TACO
,OFFICE OF THE SPEAKER,2015Q1,SUPPLIES AND MATERIALS,01-20,CITI PCARD-TAYLOR GOURMET,11/29/14,12/28/14,FOOD & BEVERAGE,680.23,2014,AP,Accounts payable,00772401,CITI PCARD-TAYLOR GOURMET
,OFFICE OF THE SPEAKER,2015Q1,SUPPLIES AND MATERIALS,01-20,CITI PCARD-WHOLEFDS PST,11/29/14,12/28/14,FOOD & BEVERAGE,761.90,2014,AP,Accounts payable,00772401,CITI PCARD-WHOLEFDS PST
,OFFICE OF THE SPEAKER,2015Q1,SUPPLIES AND MATERIALS,02-12,FIRST CHOICE COFFEE SERVICES,10/31/14,10/31/14,FOOD & BEVERAGE,443.12,2014,AP,Accounts payable,E0246726,FIRST CHOICE COFFEE SERVICES
,OFFICE OF THE SPEAKER,2015Q1,SUPPLIES AND MATERIALS,02-12,FIRST CHOICE COFFEE SERVICES,12/04/14,12/04/14,FOOD & BEVERAGE,362.22,2014,AP,Accounts payable,E0246729,FIRST CHOICE COFFEE SERVICES
,OFFICE OF THE SPEAKER,2015Q1,SUPPLIES AND MATERIALS,02-12,FIRST CHOICE COFFEE SERVICES,12/18/14,12/18/14,FOOD & BEVERAGE,514.03,2014,AP,Accounts payable,E0246731,FIRST CHOICE COFFEE SERVICES
,OFFICE OF THE SPEAKER,2015Q1,SUPPLIES AND MATERIALS,02-12,FIRST CHOICE COFFEE SERVICES,11/13/14,11/13/14,FOOD & BEVERAGE,405.56,2014,AP,Accounts payable,E0246737,FIRST CHOICE COFFEE SERVICES
,OFFICE OF THE SPEAKER,2015Q1,SUPPLIES AND MATERIALS,02-12,FIRST CHOICE COFFEE SERVICES,11/06/14,11/06/14,FOOD & BEVERAGE,478.89,2014,AP,Accounts payable,E0246738,FIRST CHOICE COFFEE SERVICES
,OFFICE OF THE SPEAKER,2015Q1,SUPPLIES AND MATERIALS,02-12,FIRST CHOICE COFFEE SERVICES,12/15/14,12/15/14,FOOD & BEVERAGE,156.62,2014,AP,Accounts payable,E0246743,FIRST CHOICE COFFEE SERVICES
,OFFICE OF THE SPEAKER,2015Q1,SUPPLIES AND MATERIALS,02-12,FIRST CHOICE COFFEE SERVICES,12/01/14,12/01/14,FOOD & BEVERAGE,697.79,2014,AP,Accounts payable,E0246746,FIRST CHOICE COFFEE SERVICES
,OFFICE OF THE SPEAKER,2015Q1,SUPPLIES AND MATERIALS,02-12,FIRST CHOICE COFFEE SERVICES,11/19/14,11/19/14,FOOD & BEVERAGE,"1,105.16",2014,AP,Accounts payable,E0246747,FIRST CHOICE COFFEE SERVICES
,OFFICE OF THE SPEAKER,2015Q1,SUPPLIES AND MATERIALS,02-13,DESIGN CUISINE,12/02/14,12/02/14,FOOD & BEVERAGE,"3,885.28",2014,AP,Accounts payable,E0246734,DESIGN CUISINE
,OFFICE OF THE SPEAKER,2015Q1,SUPPLIES AND MATERIALS,02-13,DESIGN CUISINE,12/01/14,12/01/14,FOOD & BEVERAGE,"6,505.46",2014,AP,Accounts payable,E0246735,DESIGN CUISINE
,OFFICE OF THE SPEAKER,2015Q1,SUPPLIES AND MATERIALS,02-13,DESIGN CUISINE,12/02/14,12/02/14,FOOD & BEVERAGE,"6,449.07",2014,AP,Accounts payable,E0246745,DESIGN CUISINE
,OFFICE OF THE MAJORITY LEADER,2015Q1,PERSONNEL COMPENSATION,"","BERRY,TIMOTHY J",01/03/15,03/31/15,CHIEF OF STAFF,"42,166.67",2015,"","","","BERRY,TIMOTHY J"
,OFFICE OF THE MAJORITY LEADER,2015Q1,PERSONNEL COMPENSATION,"","BIEN,CHRISTOPHER A",01/07/15,03/31/15,STAFF ASSISTANT,"7,500.00",2015,"","","","BIEN,CHRISTOPHER A"
,OFFICE OF THE MAJORITY LEADER,2015Q1,PERSONNEL COMPENSATION,"","BORDEN III, R C",01/03/15,03/31/15,DIRECTOR OF OVERSIGHT,733.33,2015,"","","","BORDEN III, R C"
,OFFICE OF THE MAJORITY LEADER,2015Q1,PERSONNEL COMPENSATION,"","BRADLEY, NEIL L",01/03/15,02/28/15,DEP CHIEF OF STAFF FOR POLICY,"27,791.67",2015,"","","","BRADLEY, NEIL L"
,OFFICE OF THE MAJORITY LEADER,2015Q1,PERSONNEL COMPENSATION,"","BUCHANAN,NATALIE L",01/03/15,03/31/15,DIR OF MEMBER SERVICES,"25,666.67",2015,"","","","BUCHANAN,NATALIE L"
,OFFICE OF THE MAJORITY LEADER,2015Q1,PERSONNEL COMPENSATION,"","BURR,DANIELLE M",01/03/15,03/31/15,DIRECTOR OF EXTERNAL AFFAIRS,"36,666.67",2015,"","","","BURR,DANIELLE M"
,OFFICE OF THE MAJORITY LEADER,2015Q1,PERSONNEL COMPENSATION,"","CAREY,BRITTANY M",01/03/15,03/31/15,EXTERN AFFAIR ASST/ASST TO COS,"12,466.67",2015,"","","","CAREY,BRITTANY M"
,OFFICE OF THE MAJORITY LEADER,2015Q1,PERSONNEL COMPENSATION,"","DIXON, KELLY A",01/03/15,03/31/15,DIR OF LEGISLATIVE OPERATIONS,"26,400.00",2015,"","","","DIXON, KELLY A"
,OFFICE OF THE MAJORITY LEADER,2015Q1,PERSONNEL COMPENSATION,"","FRANC,MICHAEL G",01/03/15,03/06/15,POLICY DIRECTOR AND COUNSEL,"29,333.33",2015,"","","","FRANC,MICHAEL G"
,OFFICE OF THE MAJORITY LEADER,2015Q1,PERSONNEL COMPENSATION,"","GLANCEY,TESSICA M",01/03/15,03/31/15,DIGITAL COORDINATOR,"12,466.67",2015,"","","","GLANCEY,TESSICA M"
,OFFICE OF THE MAJORITY LEADER,2015Q1,PERSONNEL COMPENSATION,"","GOURDIKIAN,ALEXANDRA G",03/01/15,03/31/15,STAFF ASSISTANT,"2,500.00",2015,"","","","GOURDIKIAN,ALEXANDRA G"
,OFFICE OF THE MAJORITY LEADER,2015Q1,PERSONNEL COMPENSATION,"","HENEHAN, EMILY A",01/03/15,03/31/15,SENIOR POLICY ADVISOR,"22,000.00",2015,"","","","HENEHAN, EMILY A"
,OFFICE OF THE MAJORITY LEADER,2015Q1,PERSONNEL COMPENSATION,"","HOWARD,BENJAMIN R",01/03/15,03/31/15,DIRECTOR OF FLOOR OPERATIONS,"20,533.33",2015,"","","","HOWARD,BENJAMIN R"
,OFFICE OF THE MAJORITY LEADER,2015Q1,PERSONNEL COMPENSATION,"","KAREM,ROBERT S",01/03/15,03/31/15,SENIOR POLICY ADVISOR,"31,533.33",2015,"","","","KAREM,ROBERT S"
,OFFICE OF THE MAJORITY LEADER,2015Q1,PERSONNEL COMPENSATION,"","KARR,ELIZABETH B",02/25/15,03/31/15,DEPUTY CHIEF OF STAFF FOR POLI,"17,173.33",2015,"","","","KARR,ELIZABETH B"
,OFFICE OF THE MAJORITY LEADER,2015Q1,PERSONNEL COMPENSATION,"","KLUTTZ,LAWSON T",01/03/15,03/31/15,SPECIAL ASSISTANT,"8,800.00",2015,"","","","KLUTTZ,LAWSON T"
,OFFICE OF THE MAJORITY LEADER,2015Q1,PERSONNEL COMPENSATION,"","LEGANSKI,JOHN G",01/03/15,03/31/15,SHARED EMPLOYEE,"8,800.00",2015,"","","","LEGANSKI,JOHN G"
,OFFICE OF THE MAJORITY LEADER,2015Q1,PERSONNEL COMPENSATION,"","LONG,MICHAEL P",01/03/15,03/31/15,COMMUNICATIONS DIRECTOR,"25,666.67",2015,"","","","LONG,MICHAEL P"
,OFFICE OF THE MAJORITY LEADER,2015Q1,PERSONNEL COMPENSATION,"","MAHAN,ROGER A",01/03/15,03/31/15,POLICY ADVISOR,"31,533.33",2015,"","","","MAHAN,ROGER A"
,OFFICE OF THE MAJORITY LEADER,2015Q1,PERSONNEL COMPENSATION,"","MCCLELLAND, WESLEY R",01/03/15,03/31/15,SENIOR POLICY ADVISOR,"22,000.00",2015,"","","","MCCLELLAND, WESLEY R"
,OFFICE OF THE MAJORITY LEADER,2015Q1,PERSONNEL COMPENSATION,"","MIN, JAMES B",01/03/15,03/31/15,DEPUTY CHIEF OF STAFF/COUNSEL,"20,533.33",2015,"","","","MIN, JAMES B"
,OFFICE OF THE MAJORITY LEADER,2015Q1,PERSONNEL COMPENSATION,"","SPARKS, MATTHEW E",01/03/15,03/31/15,PRESS SECRETARY,"13,200.00",2015,"","","","SPARKS, MATTHEW E"
,OFFICE OF THE MAJORITY LEADER,2015Q1,PERSONNEL COMPENSATION,"","STIPICEVIC, JOHN A",01/03/15,03/31/15,DEP COS FOR FLOOR AND MEM SERV,"39,600.00",2015,"","","","STIPICEVIC, JOHN A"
,OFFICE OF THE MAJORITY LEADER,2015Q1,PERSONNEL COMPENSATION,"","STIPICEVIC, KRISTIN",01/03/15,03/31/15,EXECUTIVE ASSISTANT,"19,066.67",2015,"","","","STIPICEVIC, KRISTIN"
,OFFICE OF THE MAJORITY LEADER,2015Q1,PERSONNEL COMPENSATION,"","THIELE,AARON J",01/03/15,02/28/15,SENIOR STAFF ASSISTANT,"5,800.00",2015,"","","","THIELE,AARON J"
,OFFICE OF THE MAJORITY LEADER,2015Q1,PERSONNEL COMPENSATION,"","TORRES,ALEC C",01/03/15,03/31/15,COMM AIDE AND SPEECHWRITER,"11,000.00",2015,"","","","TORRES,ALEC C"
,OFFICE OF THE MAJORITY LEADER,2015Q1,TRAVEL,03-17,"MAHAN, ROGER A",03/12/15,03/12/15,TAXI/PARKING/TOLLS,12.00,2015,AP,Accounts payable,E0257721,"MAHAN, ROGER A"
,OFFICE OF THE MAJORITY LEADER,2015Q1,"RENT, COMMUNICATION, UTILITIES",02-10,FEDERAL EXPRESS CORPORATION,01/09/15,01/09/15,POSTAGE / COURIER / BOX RENTAL,8.84,2015,AP,Accounts payable,00774068,FEDERAL EXPRESS CORPORATION
,OFFICE OF THE MAJORITY LEADER,2015Q1,"RENT, COMMUNICATION, UTILITIES",03-02,FEDERAL EXPRESS CORPORATION,02/27/15,02/27/15,POSTAGE / COURIER / BOX RENTAL,5.11,2015,AP,Accounts payable,00778912,FEDERAL EXPRESS CORPORATION
,OFFICE OF THE MAJORITY LEADER,2015Q1,"RENT, COMMUNICATION, UTILITIES",03-30,FEDERAL EXPRESS CORPORATION,03/27/15,03/27/15,POSTAGE / COURIER / BOX RENTAL,31.97,2015,AP,Accounts payable,00784370,FEDERAL EXPRESS CORPORATION
,OFFICE OF THE MAJORITY LEADER,2015Q1,PRINTING AND REPRODUCTION,03-19,CITI PCARD-CQ ROLL CALL GROUP,01/29/15,02/28/15,PRINTING & REPRODUCTION,57.00,2015,AP,Accounts payable,00783862,CITI PCARD-CQ ROLL CALL GROUP
,OFFICE OF THE MAJORITY LEADER,2015Q1,PRINTING AND REPRODUCTION,03-27,"",03/01/15,03/31/15,PHOTOGRAPHIC (TRANSFER),51.20,2015,GL,General ledger,PIX0047659,""
,OFFICE OF THE MAJORITY LEADER,2015Q1,SUPPLIES AND MATERIALS,02-11,DEER PARK WATER,12/27/14,01/26/15,WATER,667.42,2015,AP,Accounts payable,E0245846,DEER PARK WATER
,OFFICE OF THE MAJORITY LEADER,2015Q1,SUPPLIES AND MATERIALS,02-11,TVEYES INC,01/03/15,01/02/17,PUBLICATIONS/REFERENCE MAT'L,"2,400.00",2015,AP,Accounts payable,E0245851,TVEYES INC
,OFFICE OF THE MAJORITY LEADER,2015Q1,SUPPLIES AND MATERIALS,02-11,"MIN, JAMES B",01/26/15,01/26/15,FOOD & BEVERAGE,339.09,2015,AP,Accounts payable,E0245856,"MIN, JAMES B"
,OFFICE OF THE MAJORITY LEADER,2015Q1,SUPPLIES AND MATERIALS,02-19,CITI PCARD-CORNER BAKERY,01/03/15,01/28/15,FOOD & BEVERAGE,576.44,2015,AP,Accounts payable,00775819,CITI PCARD-CORNER BAKERY
,OFFICE OF THE MAJORITY LEADER,2015Q1,SUPPLIES AND MATERIALS,02-19,CITI PCARD-D J WALL-ST-JOURNAL,01/03/15,01/28/15,PUBLICATIONS/REFERENCE MAT'L,26.43,2015,AP,Accounts payable,00775819,CITI PCARD-D J WALL-ST-JOURNAL
,OFFICE OF THE MAJORITY LEADER,2015Q1,SUPPLIES AND MATERIALS,02-19,CITI PCARD-FIRST CHOICE - JOE RAG,01/03/15,01/28/15,FOOD & BEVERAGE,845.40,2015,AP,Accounts payable,00775819,CITI PCARD-FIRST CHOICE - JOE RAG
,OFFICE OF THE MAJORITY LEADER,2015Q1,SUPPLIES AND MATERIALS,02-19,CITI PCARD-LA TIMES SUBSCRIPTION,01/03/15,01/28/15,PUBLICATIONS/REFERENCE MAT'L,15.96,2015,AP,Accounts payable,00775819,CITI PCARD-LA TIMES SUBSCRIPTION
,OFFICE OF THE MAJORITY LEADER,2015Q1,SUPPLIES AND MATERIALS,02-19,CITI PCARD-NEW YORK TIMES DIGITAL,01/03/15,01/28/15,PUBLICATIONS/REFERENCE MAT'L,37.01,2015,AP,Accounts payable,00775819,CITI PCARD-NEW YORK TIMES DIGITAL
,OFFICE OF THE MAJORITY LEADER,2015Q1,SUPPLIES AND MATERIALS,02-23,"MIN, JAMES B",02/20/15,02/20/15,FOOD & BEVERAGE,428.79,2015,AP,Accounts payable,E0249454,"MIN, JAMES B"
,OFFICE OF THE MAJORITY LEADER,2015Q1,SUPPLIES AND MATERIALS,03-09,DEER PARK,01/31/15,01/31/15,WATER,202.94,2015,AP,Accounts payable,00779077,DEER PARK
,OFFICE OF THE MAJORITY LEADER,2015Q1,SUPPLIES AND MATERIALS,03-17,DEER PARK WATER,01/27/15,02/26/15,WATER,274.67,2015,AP,Accounts payable,E0257725,DEER PARK WATER
,OFFICE OF THE MAJORITY LEADER,2015Q1,SUPPLIES AND MATERIALS,03-19,CITI PCARD-CORNER BAKERY,01/29/15,02/28/15,FOOD & BEVERAGE,396.00,2015,AP,Accounts payable,00783862,CITI PCARD-CORNER BAKERY
,OFFICE OF THE MAJORITY LEADER,2015Q1,SUPPLIES AND MATERIALS,03-19,CITI PCARD-CVC CATERING,01/29/15,02/28/15,FOOD & BEVERAGE,"3,689.00",2015,AP,Accounts payable,00783862,CITI PCARD-CVC CATERING
,OFFICE OF THE MAJORITY LEADER,2015Q1,SUPPLIES AND MATERIALS,03-19,CITI PCARD-D J WALL-ST-JOURNAL,01/29/15,02/28/15,PUBLICATIONS/REFERENCE MAT'L,26.43,2015,AP,Accounts payable,00783862,CITI PCARD-D J WALL-ST-JOURNAL
,OFFICE OF THE MAJORITY LEADER,2015Q1,SUPPLIES AND MATERIALS,03-19,CITI PCARD-FIRST CHOICE - JOE RAG,01/29/15,02/28/15,FOOD & BEVERAGE,474.41,2015,AP,Accounts payable,00783862,CITI PCARD-FIRST CHOICE - JOE RAG
,OFFICE OF THE MAJORITY LEADER,2015Q1,SUPPLIES AND MATERIALS,03-19,CITI PCARD-LA TIMES SUBSCRIPTION,01/29/15,02/28/15,PUBLICATIONS/REFERENCE MAT'L,15.96,2015,AP,Accounts payable,00783862,CITI PCARD-LA TIMES SUBSCRIPTION
,OFFICE OF THE MAJORITY LEADER,2015Q1,SUPPLIES AND MATERIALS,03-19,CITI PCARD-NEW YORK TIMES DIGITAL,01/29/15,02/28/15,PUBLICATIONS/REFERENCE MAT'L,37.01,2015,AP,Accounts payable,00783862,CITI PCARD-NEW YORK TIMES DIGITAL
,OFFICE OF THE MAJORITY LEADER,2015Q1,SUPPLIES AND MATERIALS,03-24,"DIXON, KELLY A",03/13/15,03/13/15,HABITATION EXPENSE,137.05,2015,AP,Accounts payable,E0260807,"DIXON, KELLY A"
,OFFICE OF THE MAJORITY LEADER,2015Q1,PERSONNEL COMPENSATION,"","BERRY,TIMOTHY J",01/01/15,01/02/15,CHIEF OF STAFF,958.33,2014,"","","","BERRY,TIMOTHY J"
,OFFICE OF THE MAJORITY LEADER,2015Q1,PERSONNEL COMPENSATION,"","BORDEN III, R C",01/01/15,01/02/15,DIRECTOR OF OVERSIGHT,16.67,2014,"","","","BORDEN III, R C"
,OFFICE OF THE MAJORITY LEADER,2015Q1,PERSONNEL COMPENSATION,"","BRADLEY, NEIL L",01/01/15,01/02/15,DEP CHIEF OF STAFF FOR POLICY,958.33,2014,"","","","BRADLEY, NEIL L"
,OFFICE OF THE MAJORITY LEADER,2015Q1,PERSONNEL COMPENSATION,"","BUCHANAN,NATALIE L",01/01/15,01/02/15,DIR OF MEMBER SERVICES,583.33,2014,"","","","BUCHANAN,NATALIE L"
,OFFICE OF THE MAJORITY LEADER,2015Q1,PERSONNEL COMPENSATION,"","BURR,DANIELLE M",01/01/15,01/02/15,DIRECTOR OF EXTERNAL AFFAIRS,833.33,2014,"","","","BURR,DANIELLE M"
,OFFICE OF THE MAJORITY LEADER,2015Q1,PERSONNEL COMPENSATION,"","CAREY,BRITTANY M",01/01/15,01/02/15,EXTERN AFFAIR ASST/ASST TO COS,283.33,2014,"","","","CAREY,BRITTANY M"
,OFFICE OF THE MAJORITY LEADER,2015Q1,PERSONNEL COMPENSATION,"","DIXON, KELLY A",01/01/15,01/02/15,DIR OF LEGISLATIVE OPERATIONS,600.00,2014,"","","","DIXON, KELLY A"
,OFFICE OF THE MAJORITY LEADER,2015Q1,PERSONNEL COMPENSATION,"","FRANC,MICHAEL G",01/01/15,01/02/15,POLICY DIRECTOR AND COUNSEL,916.67,2014,"","","","FRANC,MICHAEL G"
,OFFICE OF THE MAJORITY LEADER,2015Q1,PERSONNEL COMPENSATION,"","GLANCEY,TESSICA M",01/01/15,01/02/15,DIGITAL COORDINATOR,283.33,2014,"","","","GLANCEY,TESSICA M"
,OFFICE OF THE MAJORITY LEADER,2015Q1,PERSONNEL COMPENSATION,"","HENEHAN, EMILY A",01/01/15,01/02/15,SENIOR POLICY ADVISOR,500.00,2014,"","","","HENEHAN, EMILY A"
,OFFICE OF THE MAJORITY LEADER,2015Q1,PERSONNEL COMPENSATION,"","HOWARD,BENJAMIN R",01/01/15,01/02/15,DIRECTOR OF FLOOR OPERATIONS,466.67,2014,"","","","HOWARD,BENJAMIN R"
,OFFICE OF THE MAJORITY LEADER,2015Q1,PERSONNEL COMPENSATION,"","KAREM,ROBERT S",01/01/15,01/02/15,SENIOR POLICY ADVISOR,716.67,2014,"","","","KAREM,ROBERT S"
,OFFICE OF THE MAJORITY LEADER,2015Q1,PERSONNEL COMPENSATION,"","KLUTTZ,LAWSON T",01/01/15,01/02/15,SPECIAL ASSISTANT,200.00,2014,"","","","KLUTTZ,LAWSON T"
,OFFICE OF THE MAJORITY LEADER,2015Q1,PERSONNEL COMPENSATION,"","LEGANSKI,JOHN G",01/01/15,01/02/15,SHARED EMPLOYEE,200.00,2014,"","","","LEGANSKI,JOHN G"
,OFFICE OF THE MAJORITY LEADER,2015Q1,PERSONNEL COMPENSATION,"","LONG,MICHAEL P",01/01/15,01/02/15,COMMUNICATIONS DIRECTOR,583.33,2014,"","","","LONG,MICHAEL P"
,OFFICE OF THE MAJORITY LEADER,2015Q1,PERSONNEL COMPENSATION,"","MAHAN,ROGER A",01/01/15,01/02/15,POLICY ADVISOR,716.67,2014,"","","","MAHAN,ROGER A"
,OFFICE OF THE MAJORITY LEADER,2015Q1,PERSONNEL COMPENSATION,"","MCCLELLAND, WESLEY R",01/01/15,01/02/15,SENIOR POLICY ADVISOR,500.00,2014,"","","","MCCLELLAND, WESLEY R"
,OFFICE OF THE MAJORITY LEADER,2015Q1,PERSONNEL COMPENSATION,"","MIN, JAMES B",01/01/15,01/02/15,DEPUTY CHIEF OF STAFF/COUNSEL,466.67,2014,"","","","MIN, JAMES B"
,OFFICE OF THE MAJORITY LEADER,2015Q1,PERSONNEL COMPENSATION,"","SPARKS, MATTHEW E",01/01/15,01/02/15,PRESS SECRETARY,300.00,2014,"","","","SPARKS, MATTHEW E"
,OFFICE OF THE MAJORITY LEADER,2015Q1,PERSONNEL COMPENSATION,"","STIPICEVIC, JOHN A",01/01/15,01/02/15,DEP COS FOR FLOOR AND MEM SERV,900.00,2014,"","","","STIPICEVIC, JOHN A"
,OFFICE OF THE MAJORITY LEADER,2015Q1,PERSONNEL COMPENSATION,"","STIPICEVIC, KRISTIN",01/01/15,01/02/15,EXECUTIVE ASSISTANT,433.33,2014,"","","","STIPICEVIC, KRISTIN"
,OFFICE OF THE MAJORITY LEADER,2015Q1,PERSONNEL COMPENSATION,"","THIELE,AARON J",01/01/15,01/02/15,SENIOR STAFF ASSISTANT,200.00,2014,"","","","THIELE,AARON J"
,OFFICE OF THE MAJORITY LEADER,2015Q1,PERSONNEL COMPENSATION,"","TORRES,ALEC C",01/01/15,01/02/15,COMM AIDE AND SPEECHWRITER,250.00,2014,"","","","TORRES,ALEC C"
,OFFICE OF THE MAJORITY LEADER,2015Q1,"RENT, COMMUNICATION, UTILITIES",01-15,FEDERAL EXPRESS CORPORATION,12/26/14,12/26/14,POSTAGE / COURIER / BOX RENTAL,5.96,2014,AP,Accounts payable,00769117,FEDERAL EXPRESS CORPORATION
,OFFICE OF THE MAJORITY LEADER,2015Q1,"RENT, COMMUNICATION, UTILITIES",01-15,FEDERAL EXPRESS CORPORATION,01/02/15,01/02/15,POSTAGE / COURIER / BOX RENTAL,5.96,2014,AP,Accounts payable,00769123,FEDERAL EXPRESS CORPORATION
,OFFICE OF THE MAJORITY LEADER,2015Q1,"RENT, COMMUNICATION, UTILITIES",02-11,FEDERAL EXPRESS CORPORATION,10/17/14,10/17/14,POSTAGE / COURIER / BOX RENTAL,53.76,2014,AP,Accounts payable,00773471,FEDERAL EXPRESS CORPORATION
,OFFICE OF THE MAJORITY LEADER,2015Q1,SUPPLIES AND MATERIALS,01-20,DEER PARK,11/30/14,11/30/14,WATER,163.84,2014,AP,Accounts payable,00769083,DEER PARK
,OFFICE OF THE MAJORITY LEADER,2015Q1,SUPPLIES AND MATERIALS,01-20,CITI PCARD-CORNER BAKERY,11/29/14,12/28/14,FOOD & BEVERAGE,450.00,2014,AP,Accounts payable,00772401,CITI PCARD-CORNER BAKERY
,OFFICE OF THE MAJORITY LEADER,2015Q1,SUPPLIES AND MATERIALS,01-20,CITI PCARD-D J WALL-ST-JOURNAL,11/29/14,12/28/14,PUBLICATIONS/REFERENCE MAT'L,26.43,2014,AP,Accounts payable,00772401,CITI PCARD-D J WALL-ST-JOURNAL
,OFFICE OF THE MAJORITY LEADER,2015Q1,SUPPLIES AND MATERIALS,01-20,CITI PCARD-FIRST CHOICE - JOE RAG,11/29/14,12/28/14,FOOD & BEVERAGE,355.25,2014,AP,Accounts payable,00772401,CITI PCARD-FIRST CHOICE - JOE RAG
,OFFICE OF THE MAJORITY LEADER,2015Q1,SUPPLIES AND MATERIALS,01-20,CITI PCARD-LA TIMES SUBSCRIPTION,11/29/14,12/28/14,PUBLICATIONS/REFERENCE MAT'L,15.96,2014,AP,Accounts payable,00772401,CITI PCARD-LA TIMES SUBSCRIPTION
,OFFICE OF THE MAJORITY LEADER,2015Q1,SUPPLIES AND MATERIALS,01-20,CITI PCARD-NEW YORK TIMES DIGITAL,11/29/14,12/28/14,PUBLICATIONS/REFERENCE MAT'L,37.01,2014,AP,Accounts payable,00772401,CITI PCARD-NEW YORK TIMES DIGITAL
,OFFICE OF THE MAJORITY LEADER,2015Q1,SUPPLIES AND MATERIALS,01-22,DEER PARK,12/31/14,12/31/14,WATER,75.92,2014,AP,Accounts payable,00772422,DEER PARK
,OFFICE OF THE MAJORITY LEADER,2015Q1,SUPPLIES AND MATERIALS,02-11,POLITICO,12/31/14,12/30/15,PUBLICATIONS/REFERENCE MAT'L,"9,990.00",2014,AP,Accounts payable,E0245852,POLITICO
,OFFICE OF THE MINORITY LEADER,2015Q1,SUPPLIES AND MATERIALS,02-10,OCCASIONS CATERERS,01/09/15,01/09/15,FOOD & BEVERAGE,"1,685.00",2015,AP,Accounts payable,E0245332,OCCASIONS CATERERS
,OFFICE OF THE MINORITY LEADER,2015Q1,SUPPLIES AND MATERIALS,03-09,CAPITOL HOST,02/11/15,02/11/15,FOOD & BEVERAGE,66.00,2015,AP,Accounts payable,E0254220,CAPITOL HOST
,OFFICE OF THE MINORITY LEADER,2015Q1,SUPPLIES AND MATERIALS,03-19,CITI PCARD-CVS/PHARMACY,01/29/15,02/28/15,FOOD & BEVERAGE,28.00,2015,AP,Accounts payable,00783862,CITI PCARD-CVS/PHARMACY
,OFFICE OF THE MINORITY LEADER,2015Q1,SUPPLIES AND MATERIALS,03-19,CITI PCARD-DUNKIN #345917 Q,01/29/15,02/28/15,FOOD & BEVERAGE,121.83,2015,AP,Accounts payable,00783862,CITI PCARD-DUNKIN #345917 Q
,OFFICE OF THE MINORITY LEADER,2015Q1,SUPPLIES AND MATERIALS,03-19,CITI PCARD-FIREHOOK - CAPITOL HIL,01/29/15,02/28/15,FOOD & BEVERAGE,60.47,2015,AP,Accounts payable,00783862,CITI PCARD-FIREHOOK - CAPITOL HIL
,OFFICE OF THE MINORITY LEADER,2015Q1,SUPPLIES AND MATERIALS,03-19,CITI PCARD-GIANT,01/29/15,02/28/15,FOOD & BEVERAGE,68.82,2015,AP,Accounts payable,00783862,CITI PCARD-GIANT
,OFFICE OF THE MINORITY LEADER,2015Q1,SUPPLIES AND MATERIALS,03-19,CAPITOL HOST,02/04/15,02/04/15,FOOD & BEVERAGE,33.00,2015,AP,Accounts payable,E0259511,CAPITOL HOST
,OFFICE OF THE MINORITY LEADER,2015Q1,PERSONNEL COMPENSATION,"","ADRIANCE,EDWIN A",01/03/15,03/31/15,PRESS ASSISTANT,"8,555.57",2015,"","","","ADRIANCE,EDWIN A"
,OFFICE OF THE MINORITY LEADER,2015Q1,PERSONNEL COMPENSATION,"","ADRIANCE,EDWIN A",01/01/15,02/28/15,PRESS ASSISTANT (OVERTIME),"2,959.41",2015,"","","","ADRIANCE,EDWIN A"
,OFFICE OF THE MINORITY LEADER,2015Q1,PERSONNEL COMPENSATION,"","AGUILAR,JORGE A",01/03/15,03/31/15,DEPUTY PRESS SECRETARY,"15,888.90",2015,"","","","AGUILAR,JORGE A"
,OFFICE OF THE MINORITY LEADER,2015Q1,PERSONNEL COMPENSATION,"","BARRY,MARY K",01/03/15,01/22/15,DEPUTY DIRECTOR OF ADVANCE,"5,833.34",2015,"","","","BARRY,MARY K"
,OFFICE OF THE MINORITY LEADER,2015Q1,PERSONNEL COMPENSATION,"","BARRY,MARY K",01/22/15,01/30/15,DEPUTY DIRECTOR OF ADVANCE (OTHER COMPENSATION),"4,375.00",2015,"","","","BARRY,MARY K"
,OFFICE OF THE MINORITY LEADER,2015Q1,PERSONNEL COMPENSATION,"","BERRET,EMILY C",01/03/15,03/31/15,SPECIAL ASST TO THE LEADER,"13,811.10",2015,"","","","BERRET,EMILY C"
,OFFICE OF THE MINORITY LEADER,2015Q1,PERSONNEL COMPENSATION,"","BLOOM, MICHAEL T",01/03/15,03/31/15,DEPUTY POLICY DIRECTOR,"24,444.43",2015,"","","","BLOOM, MICHAEL T"
,OFFICE OF THE MINORITY LEADER,2015Q1,PERSONNEL COMPENSATION,"","CAPRON, MARGARET W",01/03/15,03/31/15,SENIOR ADV POLICY & COMM,"32,437.03",2015,"","","","CAPRON, MARGARET W"
,OFFICE OF THE MINORITY LEADER,2015Q1,PERSONNEL COMPENSATION,"","CAYEA,DEVAN W",01/03/15,03/31/15,DEPUTY ASSIST SCHEDULER,"12,222.23",2015,"","","","CAYEA,DEVAN W"
,OFFICE OF THE MINORITY LEADER,2015Q1,PERSONNEL COMPENSATION,"","CHERRY,STEPHANIE",01/03/15,03/31/15,PRESS ADVISOR,"17,563.10",2015,"","","","CHERRY,STEPHANIE"
,OFFICE OF THE MINORITY LEADER,2015Q1,PERSONNEL COMPENSATION,"","CONNELLY,HENRY V",01/03/15,03/31/15,DIRECTOR OF SPEECHWRITING,"18,333.33",2015,"","","","CONNELLY,HENRY V"
,OFFICE OF THE MINORITY LEADER,2015Q1,PERSONNEL COMPENSATION,"","DAY,TAMIKA K",01/03/15,03/31/15,SR STAFF ASST SYS ADMIN,"12,222.23",2015,"","","","DAY,TAMIKA K"
,OFFICE OF THE MINORITY LEADER,2015Q1,PERSONNEL COMPENSATION,"","DEGRAFF, KENNETH B",01/03/15,03/31/15,SENIOR POLICY ADVISOR,"28,111.10",2015,"","","","DEGRAFF, KENNETH B"
,OFFICE OF THE MINORITY LEADER,2015Q1,PERSONNEL COMPENSATION,"","DEVLIN, PATRICK J",01/03/15,03/31/15,COMMUNICATIONS DIRECTOR,"30,555.57",2015,"","","","DEVLIN, PATRICK J"
,OFFICE OF THE MINORITY LEADER,2015Q1,PERSONNEL COMPENSATION,"","DEWHIRST, DIANE",01/03/15,03/31/15,DEPUTY CHIEF OF STAFF,"42,166.67",2015,"","","","DEWHIRST, DIANE"
,OFFICE OF THE MINORITY LEADER,2015Q1,PERSONNEL COMPENSATION,"","DOHERTY,SINEAD G",01/03/15,03/31/15,ADVANCE DEPUTY,"15,888.90",2015,"","","","DOHERTY,SINEAD G"
,OFFICE OF THE MINORITY LEADER,2015Q1,PERSONNEL COMPENSATION,"","EDMONSON, ROBERT D",01/03/15,03/31/15,CHIEF OF STAFF,"17,111.10",2015,"","","","EDMONSON, ROBERT D"
,OFFICE OF THE MINORITY LEADER,2015Q1,PERSONNEL COMPENSATION,"","ELLISON,MATTHEW B",01/03/15,03/31/15,LEGISLATIVE ASSISTANT,"7,333.33",2015,"","","","ELLISON,MATTHEW B"
,OFFICE OF THE MINORITY LEADER,2015Q1,PERSONNEL COMPENSATION,"","ELSHAMI, NADEAM",01/03/15,03/31/15,CHIEF OF STAFF,"42,166.67",2015,"","","","ELSHAMI, NADEAM"
,OFFICE OF THE MINORITY LEADER,2015Q1,PERSONNEL COMPENSATION,"","FISCHER JR, ROBERT V",01/03/15,03/31/15,ASST FLOOR CHIEF,"42,166.67",2015,"","","","FISCHER JR, ROBERT V"
,OFFICE OF THE MINORITY LEADER,2015Q1,PERSONNEL COMPENSATION,"","GEORGE,EVANGELINE M",01/03/15,03/31/15,DEPUTY COMM DIR/PRESS SEC,"26,888.90",2015,"","","","GEORGE,EVANGELINE M"
,OFFICE OF THE MINORITY LEADER,2015Q1,PERSONNEL COMPENSATION,"","GREENER, APRIL L",01/03/15,03/31/15,RESEARCH DIRECTOR,"25,666.67",2015,"","","","GREENER, APRIL L"
,OFFICE OF THE MINORITY LEADER,2015Q1,PERSONNEL COMPENSATION,"","GRIFFIN,TAYLOR T",01/03/15,03/31/15,PRESS ASSISTANT,"7,333.33",2015,"","","","GRIFFIN,TAYLOR T"
,OFFICE OF THE MINORITY LEADER,2015Q1,PERSONNEL COMPENSATION,"","GRIFFIN,TAYLOR T",01/01/15,02/28/15,PRESS ASSISTANT (OVERTIME),"3,402.01",2015,"","","","GRIFFIN,TAYLOR T"
,OFFICE OF THE MINORITY LEADER,2015Q1,PERSONNEL COMPENSATION,"","HAMMILL, ANDREW T",01/03/15,03/31/15,COMM DIR/SENIOR ADVISOR,"42,166.67",2015,"","","","HAMMILL, ANDREW T"
,OFFICE OF THE MINORITY LEADER,2015Q1,PERSONNEL COMPENSATION,"","HARTZ, JERRY",01/03/15,03/31/15,DIRECTOR OF FLOOR OPERATIONS,"42,166.67",2015,"","","","HARTZ, JERRY"
,OFFICE OF THE MINORITY LEADER,2015Q1,PERSONNEL COMPENSATION,"","HAYNES JR, WILFRED J",01/03/15,03/31/15,IT DIRECTOR,"23,985.37",2015,"","","","HAYNES JR, WILFRED J"
,OFFICE OF THE MINORITY LEADER,2015Q1,PERSONNEL COMPENSATION,"","KAPLAN,EMMA L",01/03/15,03/31/15,ASST TO THE EXECUTIVE OFFICE,"8,066.67",2015,"","","","KAPLAN,EMMA L"
,OFFICE OF THE MINORITY LEADER,2015Q1,PERSONNEL COMPENSATION,"","KAPLAN,EMMA L",01/01/15,02/28/15,ASST TO THE EXECUTIVE OFFICE (OVERTIME),"2,588.01",2015,"","","","KAPLAN,EMMA L"
,OFFICE OF THE MINORITY LEADER,2015Q1,PERSONNEL COMPENSATION,"","KEATING,ROSE M",01/03/15,03/31/15,ASST FLOOR MANAGER,"30,555.57",2015,"","","","KEATING,ROSE M"
,OFFICE OF THE MINORITY LEADER,2015Q1,PERSONNEL COMPENSATION,"","KEITA,KAMILAH Z",01/03/15,03/31/15,DEPUTY INFOMATION TECH. DIRECT,"21,787.83",2015,"","","","KEITA,KAMILAH Z"
,OFFICE OF THE MINORITY LEADER,2015Q1,PERSONNEL COMPENSATION,"","KRETMAN,MATTHEW A",01/03/15,01/30/15,DIRECTOR OF OUTREACH,"3,577.77",2015,"","","","KRETMAN,MATTHEW A"
,OFFICE OF THE MINORITY LEADER,2015Q1,PERSONNEL COMPENSATION,"","KUNDANIS, GEORGE",01/03/15,03/31/15,DEPUTY CHIEF OF STAFF,"42,166.67",2015,"","","","KUNDANIS, GEORGE"
,OFFICE OF THE MINORITY LEADER,2015Q1,PERSONNEL COMPENSATION,"","LIZARRAGA, JAIME E",01/03/15,03/31/15,SR ADV & DIR OF MEMBER SVC,"39,018.70",2015,"","","","LIZARRAGA, JAIME E"
,OFFICE OF THE MINORITY LEADER,2015Q1,PERSONNEL COMPENSATION,"","LONG,MICHAEL G",01/03/15,03/31/15,SENIOR ADVISOR,"24,444.43",2015,"","","","LONG,MICHAEL G"
,OFFICE OF THE MINORITY LEADER,2015Q1,PERSONNEL COMPENSATION,"","MANGRUM, PEARL J",01/03/15,03/31/15,FINANCIAL ADMINISTRATOR,"19,433.33",2015,"","","","MANGRUM, PEARL J"
,OFFICE OF THE MINORITY LEADER,2015Q1,PERSONNEL COMPENSATION,"","MCCLELLAND,ETHAN L",01/03/15,03/31/15,SPECIAL ASSISTANT,"12,222.23",2015,"","","","MCCLELLAND,ETHAN L"
,OFFICE OF THE MINORITY LEADER,2015Q1,PERSONNEL COMPENSATION,"","MELTZER,RICHARD",01/03/15,03/31/15,POLICY DIRECTOR,"42,166.67",2015,"","","","MELTZER,RICHARD"
,OFFICE OF THE MINORITY LEADER,2015Q1,PERSONNEL COMPENSATION,"","MONGE,KATHERINE S",01/03/15,03/31/15,TAX POLICY ADVISOR,"19,333.33",2015,"","","","MONGE,KATHERINE S"
,OFFICE OF THE MINORITY LEADER,2015Q1,PERSONNEL COMPENSATION,"","O'DONNELL,ROBERT",01/26/15,03/31/15,"CO-DIR, DEM POL & COMM CMTE","20,763.88",2015,"","","","O'DONNELL,ROBERT"
,OFFICE OF THE MINORITY LEADER,2015Q1,PERSONNEL COMPENSATION,"","PALMER,ASHLI S",01/03/15,03/31/15,POLICY DIRECTOR,"31,777.77",2015,"","","","PALMER,ASHLI S"
,OFFICE OF THE MINORITY LEADER,2015Q1,PERSONNEL COMPENSATION,"","PARKER, WYNDEE R",01/03/15,03/31/15,SENIOR POLICY ADVISOR,"42,166.67",2015,"","","","PARKER, WYNDEE R"
,OFFICE OF THE MINORITY LEADER,2015Q1,PERSONNEL COMPENSATION,"","PFEIFFER,AMY M",01/03/15,03/31/15,SENIOR ADVISOR,"24,444.43",2015,"","","","PFEIFFER,AMY M"
,OFFICE OF THE MINORITY LEADER,2015Q1,PERSONNEL COMPENSATION,"","POWELL,LATRICE S",01/03/15,03/31/15,ASSISTANT CLOAKROOM MANAGER,"26,888.90",2015,"","","","POWELL,LATRICE S"
,OFFICE OF THE MINORITY LEADER,2015Q1,PERSONNEL COMPENSATION,"","PRICE, REVA B",01/03/15,03/31/15,OUTREACH DIRECTOR & ADVISOR,"31,214.83",2015,"","","","PRICE, REVA B"
,OFFICE OF THE MINORITY LEADER,2015Q1,PERSONNEL COMPENSATION,"","PRIMUS, WENDELL E",01/03/15,03/31/15,SENIOR POLICY ADVISOR,"42,166.67",2015,"","","","PRIMUS, WENDELL E"
,OFFICE OF THE MINORITY LEADER,2015Q1,PERSONNEL COMPENSATION,"","QUEEN,CORNELIUS W",01/03/15,01/30/15,LEGISLATIVE CORRESPONDENT,"2,566.67",2015,"","","","QUEEN,CORNELIUS W"
,OFFICE OF THE MINORITY LEADER,2015Q1,PERSONNEL COMPENSATION,"","RICCIO,ANDREA M",01/03/15,01/30/15,DIR OF MEMBER SERVICES,"6,222.23",2015,"","","","RICCIO,ANDREA M"
,OFFICE OF THE MINORITY LEADER,2015Q1,PERSONNEL COMPENSATION,"","RICCIO,ANDREA M",02/01/15,03/31/15,PRESS ADVISOR,"10,000.00",2015,"","","","RICCIO,ANDREA M"
,OFFICE OF THE MINORITY LEADER,2015Q1,PERSONNEL COMPENSATION,"","ROBINSON,MALAIKA",01/03/15,03/31/15,DEP DIR OF SPEECHWRITING,"14,666.67",2015,"","","","ROBINSON,MALAIKA"
,OFFICE OF THE MINORITY LEADER,2015Q1,PERSONNEL COMPENSATION,"","ROCHELLE,COURTNEY E",01/09/15,03/31/15,DISTRICT SCHEDULER/EXEC ASSIST,"4,555.56",2015,"","","","ROCHELLE,COURTNEY E"
,OFFICE OF THE MINORITY LEADER,2015Q1,PERSONNEL COMPENSATION,"","SKILES,KATHLEEN J",01/03/15,03/31/15,DIGITAL DIR.& SENIOR ADVISOR,"28,111.10",2015,"","","","SKILES,KATHLEEN J"
,OFFICE OF THE MINORITY LEADER,2015Q1,PERSONNEL COMPENSATION,"","SLATER,SAMANTHA A",02/01/15,03/31/15,"CO-DIR,DEM POLICY & COMM CMTE","19,166.66",2015,"","","","SLATER,SAMANTHA A"
,OFFICE OF THE MINORITY LEADER,2015Q1,PERSONNEL COMPENSATION,"","SMITH,KELSEY L",01/03/15,02/28/15,DEPUTY DIRECTOR OF ADVANCE,"11,761.10",2015,"","","","SMITH,KELSEY L"
,OFFICE OF THE MINORITY LEADER,2015Q1,PERSONNEL COMPENSATION,"","SMITH,KELSEY L",03/01/15,03/31/15,DIR. OF SCHEDULING & ADVANCE,"7,500.00",2015,"","","","SMITH,KELSEY L"
,OFFICE OF THE MINORITY LEADER,2015Q1,PERSONNEL COMPENSATION,"","SURGEON,BINA G",01/03/15,03/31/15,SPECIAL ASST TO THE LEADER,"23,222.23",2015,"","","","SURGEON,BINA G"
,OFFICE OF THE MINORITY LEADER,2015Q1,PERSONNEL COMPENSATION,"","TECKLENBURG, MICHAEL H",01/03/15,03/31/15,COUNSEL,"31,777.77",2015,"","","","TECKLENBURG, MICHAEL H"
,OFFICE OF THE MINORITY LEADER,2015Q1,PERSONNEL COMPENSATION,"","WATKINS, YELBERTON R",01/03/15,03/31/15,CHIEF OF STAFF,"40,333.33",2015,"","","","WATKINS, YELBERTON R"
,OFFICE OF THE MINORITY LEADER,2015Q1,PERSONNEL COMPENSATION,"","WEST,JULIUS L",01/03/15,02/28/15,DEPUTY DIRECTOR OF MEMBER SVCS,"9,988.90",2015,"","","","WEST,JULIUS L"
,OFFICE OF THE MINORITY LEADER,2015Q1,PERSONNEL COMPENSATION,"","WEST,JULIUS L",03/01/15,03/31/15,"ADVISER,MEMBER SERVICES","5,166.67",2015,"","","","WEST,JULIUS L"
,OFFICE OF THE MINORITY LEADER,2015Q1,PERSONNEL COMPENSATION,"","WOLTERS, KATE",01/03/15,03/31/15,PERSONAL ASSISTANT,"33,876.57",2015,"","","","WOLTERS, KATE"
,OFFICE OF THE MINORITY LEADER,2015Q1,TRAVEL,01-22,"WOLTERS, KATE",01/06/15,01/06/15,TAXI/PARKING/TOLLS,33.00,2015,AP,Accounts payable,E0238760,"WOLTERS, KATE"
,OFFICE OF THE MINORITY LEADER,2015Q1,TRAVEL,01-22,"KAPLAN, EMMA L",01/13/15,01/14/15,TAXI/PARKING/TOLLS,22.04,2015,AP,Accounts payable,E0238762,"KAPLAN, EMMA L"
,OFFICE OF THE MINORITY LEADER,2015Q1,TRAVEL,01-22,"KAPLAN, EMMA L",01/07/15,01/07/15,TAXI/PARKING/TOLLS,22.19,2015,AP,Accounts payable,E0238770,"KAPLAN, EMMA L"
,OFFICE OF THE MINORITY LEADER,2015Q1,TRAVEL,02-05,"BLOOM, MICHAEL",01/22/15,01/22/15,TAXI/PARKING/TOLLS,14.48,2015,AP,Accounts payable,E0243351,"BLOOM, MICHAEL"
,OFFICE OF THE MINORITY LEADER,2015Q1,TRAVEL,02-05,"KAPLAN, EMMA L",01/20/15,01/20/15,TAXI/PARKING/TOLLS,14.76,2015,AP,Accounts payable,E0243354,"KAPLAN, EMMA L"
,OFFICE OF THE MINORITY LEADER,2015Q1,TRAVEL,02-05,"MCCLELLAND, ETHAN L",01/13/15,01/13/15,TAXI/PARKING/TOLLS,13.74,2015,AP,Accounts payable,E0243355,"MCCLELLAND, ETHAN L"
,OFFICE OF THE MINORITY LEADER,2015Q1,TRAVEL,02-05,"BERRET, EMILY C",01/30/15,01/31/15,TRAVEL SUBSISTENCE,140.95,2015,AP,Accounts payable,E0243356,"BERRET, EMILY C"
,OFFICE OF THE MINORITY LEADER,2015Q1,TRAVEL,02-05,CITIBANK GOV CARD SERVICE,01/04/15,01/05/15,TRAVEL SUBSISTENCE,29.58,2015,AP,Accounts payable,E0243358,CITIBANK GOV CARD SERVICE
,OFFICE OF THE MINORITY LEADER,2015Q1,TRAVEL,02-05,CITIBANK GOV CARD SERVICE,01/04/15,01/05/15,TRAVEL SUBSISTENCE,658.23,2015,AP,Accounts payable,E0243359,CITIBANK GOV CARD SERVICE
,OFFICE OF THE MINORITY LEADER,2015Q1,TRAVEL,02-05,CITIBANK GOV CARD SERVICE,01/04/15,01/14/15,COMMERCIAL TRANSPORTATION,"2,436.60",2015,AP,Accounts payable,E0243362,CITIBANK GOV CARD SERVICE
,OFFICE OF THE MINORITY LEADER,2015Q1,TRAVEL,02-10,"LIZARRAGA, JAIME E",01/29/15,01/29/15,TAXI/PARKING/TOLLS,25.00,2015,AP,Accounts payable,E0245334,"LIZARRAGA, JAIME E"
,OFFICE OF THE MINORITY LEADER,2015Q1,TRAVEL,02-19,"ROCHELLE,COURTNEY",01/09/15,01/14/15,TRAVEL SUBSISTENCE,790.96,2015,AP,Accounts payable,00775826,"ROCHELLE,COURTNEY"
,OFFICE OF THE MINORITY LEADER,2015Q1,TRAVEL,02-20,"KAPLAN, EMMA L",02/04/15,02/04/15,TAXI/PARKING/TOLLS,15.93,2015,AP,Accounts payable,E0248799,"KAPLAN, EMMA L"
,OFFICE OF THE MINORITY LEADER,2015Q1,TRAVEL,02-20,"MCCLELLAND, ETHAN L",01/28/15,01/28/15,TAXI/PARKING/TOLLS,10.55,2015,AP,Accounts payable,E0248800,"MCCLELLAND, ETHAN L"
,OFFICE OF THE MINORITY LEADER,2015Q1,TRAVEL,02-20,"MCCLELLAND, ETHAN L",02/04/15,02/04/15,TAXI/PARKING/TOLLS,28.87,2015,AP,Accounts payable,E0248800,"MCCLELLAND, ETHAN L"
,OFFICE OF THE MINORITY LEADER,2015Q1,TRAVEL,02-20,"MCCLELLAND, ETHAN L",02/12/15,02/12/15,TAXI/PARKING/TOLLS,7.00,2015,AP,Accounts payable,E0248800,"MCCLELLAND, ETHAN L"
,OFFICE OF THE MINORITY LEADER,2015Q1,TRAVEL,02-20,"BERRET, EMILY C",01/31/15,01/31/15,COMMERCIAL TRANSPORTATION,37.00,2015,AP,Accounts payable,E0248801,"BERRET, EMILY C"
,OFFICE OF THE MINORITY LEADER,2015Q1,TRAVEL,02-20,"BERRET, EMILY C",02/17/15,02/17/15,TAXI/PARKING/TOLLS,14.94,2015,AP,Accounts payable,E0248801,"BERRET, EMILY C"
,OFFICE OF THE MINORITY LEADER,2015Q1,TRAVEL,03-03,"KAPLAN, EMMA L",02/11/15,02/11/15,TAXI/PARKING/TOLLS,16.51,2015,AP,Accounts payable,E0252653,"KAPLAN, EMMA L"
,OFFICE OF THE MINORITY LEADER,2015Q1,TRAVEL,03-03,"SMITH, KELSEY L",02/20/15,02/20/15,MEALS,14.23,2015,AP,Accounts payable,E0252654,"SMITH, KELSEY L"
,OFFICE OF THE MINORITY LEADER,2015Q1,TRAVEL,03-03,"SMITH, KELSEY L",01/06/15,02/04/15,TAXI/PARKING/TOLLS,21.68,2015,AP,Accounts payable,E0252654,"SMITH, KELSEY L"
,OFFICE OF THE MINORITY LEADER,2015Q1,TRAVEL,03-09,CITIBANK GOV CARD SERVICE,01/29/15,01/31/15,TRAVEL SUBSISTENCE,432.61,2015,AP,Accounts payable,E0254217,CITIBANK GOV CARD SERVICE
,OFFICE OF THE MINORITY LEADER,2015Q1,TRAVEL,03-09,"KAPLAN, EMMA L",03/04/15,03/04/15,TAXI/PARKING/TOLLS,15.69,2015,AP,Accounts payable,E0254234,"KAPLAN, EMMA L"
,OFFICE OF THE MINORITY LEADER,2015Q1,TRAVEL,03-09,CITIBANK GOV CARD SERVICE,02/05/15,02/06/15,TRAVEL SUBSISTENCE,160.82,2015,AP,Accounts payable,E0254239,CITIBANK GOV CARD SERVICE
,OFFICE OF THE MINORITY LEADER,2015Q1,TRAVEL,03-09,CITIBANK GOV CARD SERVICE,01/15/15,01/18/15,TRAVEL SUBSISTENCE,"2,069.76",2015,AP,Accounts payable,E0254241,CITIBANK GOV CARD SERVICE
,OFFICE OF THE MINORITY LEADER,2015Q1,TRAVEL,03-09,CITIBANK GOV CARD SERVICE,02/05/15,03/08/15,TRAVEL SUBSISTENCE,"4,090.98",2015,AP,Accounts payable,E0254242,CITIBANK GOV CARD SERVICE
,OFFICE OF THE MINORITY LEADER,2015Q1,TRAVEL,03-09,CITIBANK GOV CARD SERVICE,02/05/15,02/10/15,TRAVEL SUBSISTENCE,"1,043.96",2015,AP,Accounts payable,E0254248,CITIBANK GOV CARD SERVICE
,OFFICE OF THE MINORITY LEADER,2015Q1,TRAVEL,03-31,"KAPLAN, EMMA L",03/17/15,03/18/15,TAXI/PARKING/TOLLS,49.71,2015,AP,Accounts payable,E0262981,"KAPLAN, EMMA L"
,OFFICE OF THE MINORITY LEADER,2015Q1,TRAVEL,03-31,"MCCLELLAND, ETHAN L",02/27/15,03/17/15,TAXI/PARKING/TOLLS,33.61,2015,AP,Accounts payable,E0262984,"MCCLELLAND, ETHAN L"
,OFFICE OF THE MINORITY LEADER,2015Q1,TRAVEL,03-31,"MCCLELLAND, ETHAN L",03/23/15,03/24/15,TAXI/PARKING/TOLLS,26.74,2015,AP,Accounts payable,E0263400,"MCCLELLAND, ETHAN L"
,OFFICE OF THE MINORITY LEADER,2015Q1,"RENT, COMMUNICATION, UTILITIES",02-05,FEDEX,01/16/15,01/16/15,POSTAGE / COURIER / BOX RENTAL,25.36,2015,AP,Accounts payable,E0243349,FEDEX
,OFFICE OF THE MINORITY LEADER,2015Q1,"RENT, COMMUNICATION, UTILITIES",02-19,CITI PCARD-TIV TIVO SERVICE,01/03/15,01/28/15,RECORDING (OUTSIDE),153.11,2015,AP,Accounts payable,00775819,CITI PCARD-TIV TIVO SERVICE
,OFFICE OF THE MINORITY LEADER,2015Q1,"RENT, COMMUNICATION, UTILITIES",02-20,FEDEX,01/20/15,01/20/15,POSTAGE / COURIER / BOX RENTAL,21.14,2015,AP,Accounts payable,E0248793,FEDEX
,OFFICE OF THE MINORITY LEADER,2015Q1,"RENT, COMMUNICATION, UTILITIES",02-23,FEDEX,01/16/15,01/21/15,POSTAGE / COURIER / BOX RENTAL,107.83,2015,AP,Accounts payable,E0248773,FEDEX
,OFFICE OF THE MINORITY LEADER,2015Q1,"RENT, COMMUNICATION, UTILITIES",03-19,CITI PCARD-TIV TIVO SERVICE,01/29/15,02/28/15,RECORDING (OUTSIDE),48.42,2015,AP,Accounts payable,00783862,CITI PCARD-TIV TIVO SERVICE
,OFFICE OF THE MINORITY LEADER,2015Q1,"RENT, COMMUNICATION, UTILITIES",03-31,FEDEX,03/03/15,03/03/15,POSTAGE / COURIER / BOX RENTAL,29.01,2015,AP,Accounts payable,E0262978,FEDEX
,OFFICE OF THE MINORITY LEADER,2015Q1,"RENT, COMMUNICATION, UTILITIES",03-31,FEDEX,03/03/15,03/03/15,POSTAGE / COURIER / BOX RENTAL,21.14,2015,AP,Accounts payable,E0262979,FEDEX
,OFFICE OF THE MINORITY LEADER,2015Q1,PRINTING AND REPRODUCTION,01-22,"BERRET, EMILY C",01/04/15,01/04/15,PRINTING & REPRODUCTION,24.50,2015,AP,Accounts payable,E0238761,"BERRET, EMILY C"
,OFFICE OF THE MINORITY LEADER,2015Q1,PRINTING AND REPRODUCTION,01-29,"",01/01/15,01/31/15,PHOTOGRAPHIC (TRANSFER),892.80,2015,GL,General ledger,PIX0046093,""
,OFFICE OF THE MINORITY LEADER,2015Q1,PRINTING AND REPRODUCTION,02-24,"",02/01/15,02/28/15,PHOTOGRAPHIC (TRANSFER),426.90,2015,GL,General ledger,PIX0046771,""
,OFFICE OF THE MINORITY LEADER,2015Q1,PRINTING AND REPRODUCTION,03-27,"",03/01/15,03/31/15,PHOTOGRAPHIC (TRANSFER),561.40,2015,GL,General ledger,PIX0047659,""
,OFFICE OF THE MINORITY LEADER,2015Q1,OTHER SERVICES,02-05,BERNARD RAIMO,01/01/15,01/31/15,CONSULTANT CONTRACT SERVICE,"7,628.00",2015,AP,Accounts payable,E0243360,BERNARD RAIMO
,OFFICE OF THE MINORITY LEADER,2015Q1,OTHER SERVICES,03-03,BERNARD RAIMO,02/01/15,02/28/15,CONSULTANT CONTRACT SERVICE,"7,628.00",2015,AP,Accounts payable,E0252636,BERNARD RAIMO
,OFFICE OF THE MINORITY LEADER,2015Q1,OTHER SERVICES,03-31,BERNARD RAIMO,03/01/15,03/31/15,CONSULTANT CONTRACT SERVICE,"7,628.00",2015,AP,Accounts payable,E0263111,BERNARD RAIMO
,OFFICE OF THE MINORITY LEADER,2015Q1,SUPPLIES AND MATERIALS,01-22,"WOLTERS, KATE",01/06/15,01/12/15,FOOD & BEVERAGE,427.22,2015,AP,Accounts payable,E0238760,"WOLTERS, KATE"
,OFFICE OF THE MINORITY LEADER,2015Q1,SUPPLIES AND MATERIALS,01-22,"WOLTERS, KATE",01/06/15,01/06/15,PUBLICATIONS/REFERENCE MAT'L,7.00,2015,AP,Accounts payable,E0238760,"WOLTERS, KATE"
,OFFICE OF THE MINORITY LEADER,2015Q1,SUPPLIES AND MATERIALS,01-22,"BERRET, EMILY C",01/09/15,01/09/15,FOOD & BEVERAGE,303.79,2015,AP,Accounts payable,E0238761,"BERRET, EMILY C"
,OFFICE OF THE MINORITY LEADER,2015Q1,SUPPLIES AND MATERIALS,01-22,"KAPLAN, EMMA L",01/13/15,01/14/15,FOOD & BEVERAGE,84.01,2015,AP,Accounts payable,E0238762,"KAPLAN, EMMA L"
,OFFICE OF THE MINORITY LEADER,2015Q1,SUPPLIES AND MATERIALS,01-22,"KAPLAN, EMMA L",01/07/15,01/07/15,FOOD & BEVERAGE,46.27,2015,AP,Accounts payable,E0238770,"KAPLAN, EMMA L"
,OFFICE OF THE MINORITY LEADER,2015Q1,SUPPLIES AND MATERIALS,01-22,HELEN OLIVIA FLOWERS,01/06/15,01/06/15,HABITATION EXPENSE,249.00,2015,AP,Accounts payable,E0238815,HELEN OLIVIA FLOWERS
,OFFICE OF THE MINORITY LEADER,2015Q1,SUPPLIES AND MATERIALS,01-23,LEADERSHIP DIRECTORIES INC,03/01/15,03/01/16,PUBLICATIONS/REFERENCE MAT'L,"1,077.00",2015,AP,Accounts payable,E0238782,LEADERSHIP DIRECTORIES INC
,OFFICE OF THE MINORITY LEADER,2015Q1,SUPPLIES AND MATERIALS,01-23,HELEN OLIVIA FLOWERS,01/12/15,01/12/15,HABITATION EXPENSE,249.00,2015,AP,Accounts payable,E0238783,HELEN OLIVIA FLOWERS
,OFFICE OF THE MINORITY LEADER,2015Q1,SUPPLIES AND MATERIALS,02-05,RIDGEWELLS CATERING,01/12/15,01/12/15,FOOD & BEVERAGE,66.00,2015,AP,Accounts payable,E0243340,RIDGEWELLS CATERING
,OFFICE OF THE MINORITY LEADER,2015Q1,SUPPLIES AND MATERIALS,02-05,RIDGEWELLS CATERING,01/09/15,01/09/15,FOOD & BEVERAGE,202.50,2015,AP,Accounts payable,E0243341,RIDGEWELLS CATERING
,OFFICE OF THE MINORITY LEADER,2015Q1,SUPPLIES AND MATERIALS,02-05,RIDGEWELLS CATERING,01/09/15,01/09/15,FOOD & BEVERAGE,152.20,2015,AP,Accounts payable,E0243342,RIDGEWELLS CATERING
,OFFICE OF THE MINORITY LEADER,2015Q1,SUPPLIES AND MATERIALS,02-05,RIDGEWELLS CATERING,01/07/15,01/07/15,FOOD & BEVERAGE,33.00,2015,AP,Accounts payable,E0243343,RIDGEWELLS CATERING
,OFFICE OF THE MINORITY LEADER,2015Q1,SUPPLIES AND MATERIALS,02-05,CAPITOL HOST,01/14/15,01/14/15,FOOD & BEVERAGE,33.00,2015,AP,Accounts payable,E0243344,CAPITOL HOST
,OFFICE OF THE MINORITY LEADER,2015Q1,SUPPLIES AND MATERIALS,02-05,CAPITOL HOST,01/20/15,01/20/15,FOOD & BEVERAGE,79.92,2015,AP,Accounts payable,E0243347,CAPITOL HOST
,OFFICE OF THE MINORITY LEADER,2015Q1,SUPPLIES AND MATERIALS,02-05,"BERRET, EMILY C",01/22/15,01/22/15,FOOD & BEVERAGE,22.43,2015,AP,Accounts payable,E0243705,"BERRET, EMILY C"
,OFFICE OF THE MINORITY LEADER,2015Q1,SUPPLIES AND MATERIALS,02-10,OCCASIONS CATERERS,01/20/15,01/20/15,FOOD & BEVERAGE,"16,525.00",2015,AP,Accounts payable,E0245333,OCCASIONS CATERERS
,OFFICE OF THE MINORITY LEADER,2015Q1,SUPPLIES AND MATERIALS,02-19,CITI PCARD-FIREHOOK,01/03/15,01/28/15,FOOD & BEVERAGE,26.40,2015,AP,Accounts payable,00775819,CITI PCARD-FIREHOOK
,OFFICE OF THE MINORITY LEADER,2015Q1,SUPPLIES AND MATERIALS,02-19,CITI PCARD-HARRIS TEETER,01/03/15,01/28/15,FOOD & BEVERAGE,248.22,2015,AP,Accounts payable,00775819,CITI PCARD-HARRIS TEETER
,OFFICE OF THE MINORITY LEADER,2015Q1,SUPPLIES AND MATERIALS,02-19,CITI PCARD-PRET A MANGER,01/03/15,01/28/15,FOOD & BEVERAGE,127.99,2015,AP,Accounts payable,00775819,CITI PCARD-PRET A MANGER
,OFFICE OF THE MINORITY LEADER,2015Q1,SUPPLIES AND MATERIALS,02-19,CITI PCARD-TARGET,01/03/15,01/28/15,FOOD & BEVERAGE,30.67,2015,AP,Accounts payable,00775819,CITI PCARD-TARGET
,OFFICE OF THE MINORITY LEADER,2015Q1,SUPPLIES AND MATERIALS,02-19,"ROCHELLE,COURTNEY",01/15/15,01/15/15,PUBLICATIONS/REFERENCE MAT'L,21.54,2015,AP,Accounts payable,00775826,"ROCHELLE,COURTNEY"
,OFFICE OF THE MINORITY LEADER,2015Q1,SUPPLIES AND MATERIALS,02-20,CAPITOL HOST,02/02/15,02/02/15,FOOD & BEVERAGE,66.00,2015,AP,Accounts payable,E0248798,CAPITOL HOST
,OFFICE OF THE MINORITY LEADER,2015Q1,SUPPLIES AND MATERIALS,03-03,"KAPLAN, EMMA L",02/21/15,02/21/15,FOOD & BEVERAGE,30.06,2015,AP,Accounts payable,E0252630,"KAPLAN, EMMA L"
,OFFICE OF THE MINORITY LEADER,2015Q1,SUPPLIES AND MATERIALS,03-03,ENGLISH ROSE GARDEN,01/26/15,01/26/15,HABITATION EXPENSE,250.00,2015,AP,Accounts payable,E0252638,ENGLISH ROSE GARDEN
,OFFICE OF THE MINORITY LEADER,2015Q1,SUPPLIES AND MATERIALS,03-03,ENGLISH ROSE GARDEN,01/20/15,01/20/15,HABITATION EXPENSE,250.00,2015,AP,Accounts payable,E0252639,ENGLISH ROSE GARDEN
,OFFICE OF THE MINORITY LEADER,2015Q1,SUPPLIES AND MATERIALS,03-03,ENGLISH ROSE GARDEN,02/09/15,02/09/15,HABITATION EXPENSE,250.00,2015,AP,Accounts payable,E0252641,ENGLISH ROSE GARDEN
,OFFICE OF THE MINORITY LEADER,2015Q1,SUPPLIES AND MATERIALS,03-03,CAPITOL HOST,02/11/15,02/11/15,FOOD & BEVERAGE,33.00,2015,AP,Accounts payable,E0252644,CAPITOL HOST
,OFFICE OF THE MINORITY LEADER,2015Q1,SUPPLIES AND MATERIALS,03-03,CRYSTAL SPRINGS,02/01/15,02/28/15,WATER,414.07,2015,AP,Accounts payable,E0252646,CRYSTAL SPRINGS
,OFFICE OF THE MINORITY LEADER,2015Q1,SUPPLIES AND MATERIALS,03-03,ENGLISH ROSE GARDEN,02/02/15,02/02/15,HABITATION EXPENSE,250.00,2015,AP,Accounts payable,E0252652,ENGLISH ROSE GARDEN
,OFFICE OF THE MINORITY LEADER,2015Q1,SUPPLIES AND MATERIALS,03-09,SOUTHWEST DISTRIBUTION INC,04/01/15,06/30/15,PUBLICATIONS/REFERENCE MAT'L,"3,813.25",2015,AP,Accounts payable,E0254218,SOUTHWEST DISTRIBUTION INC
,OFFICE OF THE MINORITY LEADER,2015Q1,SUPPLIES AND MATERIALS,03-31,CAPITOL HOST,03/04/15,03/04/15,FOOD & BEVERAGE,33.00,2015,AP,Accounts payable,E0262977,CAPITOL HOST
,OFFICE OF THE MINORITY LEADER,2015Q1,SUPPLIES AND MATERIALS,03-31,"",03/24/15,03/24/15,OFFICE SUPPLIES (OUTSIDE),549.94,2015,GL,General ledger,GFT0047752,""
,OFFICE OF THE MINORITY LEADER,2015Q1,PERSONNEL COMPENSATION,"","ABOUCHAR, KEITH S",01/01/15,01/02/15,SENIOR POLICY ADVISOR,726.67,2014,"","","","ABOUCHAR, KEITH S"
,OFFICE OF THE MINORITY LEADER,2015Q1,PERSONNEL COMPENSATION,"","ADRIANCE,EDWIN A",01/01/15,01/02/15,PRESS ASSISTANT,194.44,2014,"","","","ADRIANCE,EDWIN A"
,OFFICE OF THE MINORITY LEADER,2015Q1,PERSONNEL COMPENSATION,"","ADRIANCE,EDWIN A",12/01/14,12/31/14,PRESS ASSISTANT (OVERTIME),"2,860.25",2014,"","","","ADRIANCE,EDWIN A"
,OFFICE OF THE MINORITY LEADER,2015Q1,PERSONNEL COMPENSATION,"","AGUILAR,JORGE A",01/01/15,01/02/15,DEPUTY PRESS SECRETARY,361.11,2014,"","","","AGUILAR,JORGE A"
,OFFICE OF THE MINORITY LEADER,2015Q1,PERSONNEL COMPENSATION,"","BARRY,MARY K",01/01/15,01/02/15,DEPUTY DIRECTOR OF ADVANCE,583.33,2014,"","","","BARRY,MARY K"
,OFFICE OF THE MINORITY LEADER,2015Q1,PERSONNEL COMPENSATION,"","BARRY,MARY K",11/15/14,11/30/14,DEPUTY DIRECTOR OF ADVANCE (OTHER COMPENSATION),"4,375.00",2014,"","","","BARRY,MARY K"
,OFFICE OF THE MINORITY LEADER,2015Q1,PERSONNEL COMPENSATION,"","BERRET,EMILY C",11/01/14,01/02/15,SPECIAL ASST TO THE LEADER,"7,313.89",2014,"","","","BERRET,EMILY C"
,OFFICE OF THE MINORITY LEADER,2015Q1,PERSONNEL COMPENSATION,"","BLOOM, MICHAEL T",01/01/15,01/02/15,DEPUTY POLICY DIRECTOR,555.56,2014,"","","","BLOOM, MICHAEL T"
,OFFICE OF THE MINORITY LEADER,2015Q1,PERSONNEL COMPENSATION,"","CAPRON, MARGARET W",01/01/15,01/02/15,SENIOR ADV POLICY & COMM,737.21,2014,"","","","CAPRON, MARGARET W"
,OFFICE OF THE MINORITY LEADER,2015Q1,PERSONNEL COMPENSATION,"","CAYEA,DEVAN W",11/01/14,01/02/15,DEPUTY ASSIST SCHEDULER,"5,277.78",2014,"","","","CAYEA,DEVAN W"
,OFFICE OF THE MINORITY LEADER,2015Q1,PERSONNEL COMPENSATION,"","CHERRY,STEPHANIE",01/01/15,01/02/15,PRESS ADVISOR,399.16,2014,"","","","CHERRY,STEPHANIE"
,OFFICE OF THE MINORITY LEADER,2015Q1,PERSONNEL COMPENSATION,"","CONNELLY,HENRY V",01/01/15,01/02/15,DIRECTOR OF SPEECHWRITING,416.67,2014,"","","","CONNELLY,HENRY V"
,OFFICE OF THE MINORITY LEADER,2015Q1,PERSONNEL COMPENSATION,"","COVEY-BRANDT, ALEXIS",01/01/15,01/02/15,CHIEF OF STAFF,863.23,2014,"","","","COVEY-BRANDT, ALEXIS"
,OFFICE OF THE MINORITY LEADER,2015Q1,PERSONNEL COMPENSATION,"","DAY,TAMIKA K",01/01/15,01/02/15,SR STAFF ASST SYS ADMIN,277.78,2014,"","","","DAY,TAMIKA K"
,OFFICE OF THE MINORITY LEADER,2015Q1,PERSONNEL COMPENSATION,"","DEGRAFF, KENNETH B",01/01/15,01/02/15,SENIOR POLICY ADVISOR,638.89,2014,"","","","DEGRAFF, KENNETH B"
,OFFICE OF THE MINORITY LEADER,2015Q1,PERSONNEL COMPENSATION,"","DEVLIN, PATRICK J",01/01/15,01/02/15,COMMUNICATIONS DIRECTOR,694.44,2014,"","","","DEVLIN, PATRICK J"
,OFFICE OF THE MINORITY LEADER,2015Q1,PERSONNEL COMPENSATION,"","DEWHIRST, DIANE",01/01/15,01/02/15,DEPUTY CHIEF OF STAFF,958.33,2014,"","","","DEWHIRST, DIANE"
,OFFICE OF THE MINORITY LEADER,2015Q1,PERSONNEL COMPENSATION,"","DOHERTY,SINEAD G",01/01/15,01/02/15,ADVANCE DEPUTY,361.11,2014,"","","","DOHERTY,SINEAD G"
,OFFICE OF THE MINORITY LEADER,2015Q1,PERSONNEL COMPENSATION,"","DOMINGUEZ,ASHLEY F",01/01/15,01/02/15,DISTRICT SCHEDULER,66.67,2014,"","","","DOMINGUEZ,ASHLEY F"
,OFFICE OF THE MINORITY LEADER,2015Q1,PERSONNEL COMPENSATION,"","EDMONSON, ROBERT D",01/01/15,01/02/15,CHIEF OF STAFF,388.89,2014,"","","","EDMONSON, ROBERT D"
,OFFICE OF THE MINORITY LEADER,2015Q1,PERSONNEL COMPENSATION,"","ELLISON,MATTHEW B",01/01/15,01/02/15,LEGISLATIVE ASSISTANT,166.67,2014,"","","","ELLISON,MATTHEW B"
,OFFICE OF THE MINORITY LEADER,2015Q1,PERSONNEL COMPENSATION,"","ELSHAMI, NADEAM",01/01/15,01/02/15,CHIEF OF STAFF,958.33,2014,"","","","ELSHAMI, NADEAM"
,OFFICE OF THE MINORITY LEADER,2015Q1,PERSONNEL COMPENSATION,"","FISCHER JR, ROBERT V",01/01/15,01/02/15,ASST FLOOR CHIEF,958.33,2014,"","","","FISCHER JR, ROBERT V"
,OFFICE OF THE MINORITY LEADER,2015Q1,PERSONNEL COMPENSATION,"","GEORGE,EVANGELINE M",01/01/15,01/02/15,DEPUTY COMM DIR/PRESS SEC,611.11,2014,"","","","GEORGE,EVANGELINE M"
,OFFICE OF THE MINORITY LEADER,2015Q1,PERSONNEL COMPENSATION,"","GREENER, APRIL L",01/01/15,01/02/15,RESEARCH DIRECTOR,583.33,2014,"","","","GREENER, APRIL L"
,OFFICE OF THE MINORITY LEADER,2015Q1,PERSONNEL COMPENSATION,"","GRIFFIN,TAYLOR T",01/01/15,01/02/15,PRESS ASSISTANT,166.67,2014,"","","","GRIFFIN,TAYLOR T"
,OFFICE OF THE MINORITY LEADER,2015Q1,PERSONNEL COMPENSATION,"","GRIFFIN,TAYLOR T",12/01/14,12/31/14,PRESS ASSISTANT (OVERTIME),"5,403.19",2014,"","","","GRIFFIN,TAYLOR T"
,OFFICE OF THE MINORITY LEADER,2015Q1,PERSONNEL COMPENSATION,"","HAMMILL, ANDREW T",01/01/15,01/02/15,COMM DIR/SENIOR ADVISOR,958.33,2014,"","","","HAMMILL, ANDREW T"
,OFFICE OF THE MINORITY LEADER,2015Q1,PERSONNEL COMPENSATION,"","HARTZ, JERRY",01/01/15,01/02/15,DIRECTOR OF FLOOR OPERATIONS,958.33,2014,"","","","HARTZ, JERRY"
,OFFICE OF THE MINORITY LEADER,2015Q1,PERSONNEL COMPENSATION,"","HAYNES JR, WILFRED J",01/01/15,01/02/15,IT DIRECTOR,545.12,2014,"","","","HAYNES JR, WILFRED J"
,OFFICE OF THE MINORITY LEADER,2015Q1,PERSONNEL COMPENSATION,"","KAPLAN,EMMA L",01/01/15,01/02/15,ASST TO THE EXECUTIVE OFFICE,183.33,2014,"","","","KAPLAN,EMMA L"
,OFFICE OF THE MINORITY LEADER,2015Q1,PERSONNEL COMPENSATION,"","KAPLAN,EMMA L",12/01/14,12/31/14,ASST TO THE EXECUTIVE OFFICE (OVERTIME),"2,235.91",2014,"","","","KAPLAN,EMMA L"
,OFFICE OF THE MINORITY LEADER,2015Q1,PERSONNEL COMPENSATION,"","KEATING,ROSE M",01/01/15,01/02/15,ASST FLOOR MANAGER,694.44,2014,"","","","KEATING,ROSE M"
,OFFICE OF THE MINORITY LEADER,2015Q1,PERSONNEL COMPENSATION,"","KEITA,KAMILAH Z",01/01/15,01/02/15,DEPUTY INFOMATION TECH. DIRECT,495.18,2014,"","","","KEITA,KAMILAH Z"
,OFFICE OF THE MINORITY LEADER,2015Q1,PERSONNEL COMPENSATION,"","KRETMAN,MATTHEW A",01/01/15,01/02/15,DIRECTOR OF OUTREACH,255.56,2014,"","","","KRETMAN,MATTHEW A"
,OFFICE OF THE MINORITY LEADER,2015Q1,PERSONNEL COMPENSATION,"","KUNDANIS, GEORGE",01/01/15,01/02/15,DEPUTY CHIEF OF STAFF,958.33,2014,"","","","KUNDANIS, GEORGE"
,OFFICE OF THE MINORITY LEADER,2015Q1,PERSONNEL COMPENSATION,"","LEUSCHEN, JAMES P",12/01/14,01/02/15,SENIOR POLICY ADVISOR,"3,951.12",2014,"","","","LEUSCHEN, JAMES P"
,OFFICE OF THE MINORITY LEADER,2015Q1,PERSONNEL COMPENSATION,"","LIZARRAGA, JAIME E",01/01/15,01/02/15,SR ADV & DIR OF MEMBER SVC,886.79,2014,"","","","LIZARRAGA, JAIME E"
,OFFICE OF THE MINORITY LEADER,2015Q1,PERSONNEL COMPENSATION,"","LONG,MICHAEL G",01/01/15,01/02/15,SENIOR ADVISOR,555.56,2014,"","","","LONG,MICHAEL G"
,OFFICE OF THE MINORITY LEADER,2015Q1,PERSONNEL COMPENSATION,"","MAHR,THOMAS",01/01/15,01/02/15,POLICY DIRECTOR,660.00,2014,"","","","MAHR,THOMAS"
,OFFICE OF THE MINORITY LEADER,2015Q1,PERSONNEL COMPENSATION,"","MANGRUM, PEARL J",11/01/14,01/02/15,FINANCIAL ADMINISTRATOR,"4,225.92",2014,"","","","MANGRUM, PEARL J"
,OFFICE OF THE MINORITY LEADER,2015Q1,PERSONNEL COMPENSATION,"","MCCLELLAND,ETHAN L",11/01/14,01/02/15,SPECIAL ASSISTANT,"7,277.78",2014,"","","","MCCLELLAND,ETHAN L"
,OFFICE OF THE MINORITY LEADER,2015Q1,PERSONNEL COMPENSATION,"","MELTZER,RICHARD",01/01/15,01/02/15,POLICY DIRECTOR,958.33,2014,"","","","MELTZER,RICHARD"
,OFFICE OF THE MINORITY LEADER,2015Q1,PERSONNEL COMPENSATION,"","MONGE,KATHERINE S",11/01/14,01/02/15,TAX POLICY ADVISOR,"14,666.67",2014,"","","","MONGE,KATHERINE S"
,OFFICE OF THE MINORITY LEADER,2015Q1,PERSONNEL COMPENSATION,"","PALMER,ASHLI S",01/01/15,01/02/15,POLICY DIRECTOR,722.22,2014,"","","","PALMER,ASHLI S"
,OFFICE OF THE MINORITY LEADER,2015Q1,PERSONNEL COMPENSATION,"","PARKER, WYNDEE R",01/01/15,01/02/15,SENIOR POLICY ADVISOR,958.33,2014,"","","","PARKER, WYNDEE R"
,OFFICE OF THE MINORITY LEADER,2015Q1,PERSONNEL COMPENSATION,"","PFEIFFER,AMY M",01/01/15,01/02/15,SENIOR ADVISOR,555.56,2014,"","","","PFEIFFER,AMY M"
,OFFICE OF THE MINORITY LEADER,2015Q1,PERSONNEL COMPENSATION,"","POWELL,LATRICE S",01/01/15,01/02/15,ASSISTANT CLOAKROOM MANAGER,611.11,2014,"","","","POWELL,LATRICE S"
,OFFICE OF THE MINORITY LEADER,2015Q1,PERSONNEL COMPENSATION,"","PRICE, REVA B",01/01/15,01/02/15,OUTREACH DIRECTOR & ADVISOR,709.43,2014,"","","","PRICE, REVA B"
,OFFICE OF THE MINORITY LEADER,2015Q1,PERSONNEL COMPENSATION,"","PRIMUS, WENDELL E",01/01/15,01/02/15,SENIOR POLICY ADVISOR,958.33,2014,"","","","PRIMUS, WENDELL E"
,OFFICE OF THE MINORITY LEADER,2015Q1,PERSONNEL COMPENSATION,"","QUEEN,CORNELIUS W",01/01/15,01/02/15,LEGISLATIVE CORRESPONDENT,183.33,2014,"","","","QUEEN,CORNELIUS W"
,OFFICE OF THE MINORITY LEADER,2015Q1,PERSONNEL COMPENSATION,"","REPKO,MARY F",01/01/15,01/02/15,SENIOR POLICY ADVISOR,732.22,2014,"","","","REPKO,MARY F"
,OFFICE OF THE MINORITY LEADER,2015Q1,PERSONNEL COMPENSATION,"","RICCIO,ANDREA M",01/01/15,01/02/15,DIR OF MEMBER SERVICES,444.44,2014,"","","","RICCIO,ANDREA M"
,OFFICE OF THE MINORITY LEADER,2015Q1,PERSONNEL COMPENSATION,"","ROBINSON,MALAIKA",01/01/15,01/02/15,DEP DIR OF SPEECHWRITING,333.33,2014,"","","","ROBINSON,MALAIKA"
,OFFICE OF THE MINORITY LEADER,2015Q1,PERSONNEL COMPENSATION,"","ROMICK, BRIAN",01/01/15,01/02/15,MEMBER SERVICES DIRECTOR,798.89,2014,"","","","ROMICK, BRIAN"
,OFFICE OF THE MINORITY LEADER,2015Q1,PERSONNEL COMPENSATION,"","SKILES,KATHLEEN J",01/01/15,01/02/15,DIGITAL DIR.& SENIOR ADVISOR,638.89,2014,"","","","SKILES,KATHLEEN J"
,OFFICE OF THE MINORITY LEADER,2015Q1,PERSONNEL COMPENSATION,"","SMITH,KELSEY L",11/01/14,01/02/15,DEPUTY DIRECTOR OF ADVANCE,"8,305.56",2014,"","","","SMITH,KELSEY L"
,OFFICE OF THE MINORITY LEADER,2015Q1,PERSONNEL COMPENSATION,"","STIVERS, JONATHAN",01/01/15,01/01/15,SENIOR ADVISOR,388.89,2014,"","","","STIVERS, JONATHAN"
,OFFICE OF THE MINORITY LEADER,2015Q1,PERSONNEL COMPENSATION,"","STIVERS, JONATHAN",01/01/15,01/02/15,SENIOR ADVISOR (OTHER COMPENSATION),"11,277.78",2014,"","","","STIVERS, JONATHAN"
,OFFICE OF THE MINORITY LEADER,2015Q1,PERSONNEL COMPENSATION,"","SURGEON,BINA G",11/01/14,01/02/15,SPECIAL ASST TO THE LEADER,"6,527.78",2014,"","","","SURGEON,BINA G"
,OFFICE OF THE MINORITY LEADER,2015Q1,PERSONNEL COMPENSATION,"","TECKLENBURG, MICHAEL H",01/01/15,01/02/15,COUNSEL,722.22,2014,"","","","TECKLENBURG, MICHAEL H"
,OFFICE OF THE MINORITY LEADER,2015Q1,PERSONNEL COMPENSATION,"","WATKINS, YELBERTON R",01/01/15,01/02/15,CHIEF OF STAFF,916.67,2014,"","","","WATKINS, YELBERTON R"
,OFFICE OF THE MINORITY LEADER,2015Q1,PERSONNEL COMPENSATION,"","WEST,JULIUS L",01/01/15,01/02/15,DEPUTY DIRECTOR OF MEMBER SVCS,344.44,2014,"","","","WEST,JULIUS L"
,OFFICE OF THE MINORITY LEADER,2015Q1,PERSONNEL COMPENSATION,"","WOLTERS, KATE",01/01/15,01/02/15,PERSONAL ASSISTANT,769.92,2014,"","","","WOLTERS, KATE"
,OFFICE OF THE MINORITY LEADER,2015Q1,TRAVEL,01-06,"PRICE, REVA B",11/10/14,11/12/14,TAXI/PARKING/TOLLS,48.00,2014,AP,Accounts payable,E0232483,"PRICE, REVA B"
,OFFICE OF THE MINORITY LEADER,2015Q1,TRAVEL,01-06,"DOMINGUEZ, ASHLEY F",11/23/14,12/22/14,TAXI/PARKING/TOLLS,749.31,2014,AP,Accounts payable,E0232484,"DOMINGUEZ, ASHLEY F"
,OFFICE OF THE MINORITY LEADER,2015Q1,TRAVEL,01-09,"MONGE, KATHERINE S",12/11/14,12/11/14,TAXI/PARKING/TOLLS,28.24,2014,AP,Accounts payable,E0232481,"MONGE, KATHERINE S"
,OFFICE OF THE MINORITY LEADER,2015Q1,TRAVEL,01-12,"BARRY, MARY-KATE",09/19/14,12/07/14,TAXI/PARKING/TOLLS,51.18,2014,AP,Accounts payable,E0234658,"BARRY, MARY-KATE"
,OFFICE OF THE MINORITY LEADER,2015Q1,TRAVEL,01-12,CITIBANK GOV CARD SERVICE,12/01/14,12/08/14,COMMERCIAL TRANSPORTATION,150.00,2014,AP,Accounts payable,E0234670,CITIBANK GOV CARD SERVICE
,OFFICE OF THE MINORITY LEADER,2015Q1,TRAVEL,02-05,"MCCLELLAND, ETHAN L",12/05/14,12/05/14,TAXI/PARKING/TOLLS,20.69,2014,AP,Accounts payable,E0243335,"MCCLELLAND, ETHAN L"
,OFFICE OF THE MINORITY LEADER,2015Q1,"RENT, COMMUNICATION, UTILITIES",01-06,FEDEX,11/28/14,11/28/14,POSTAGE / COURIER / BOX RENTAL,42.60,2014,AP,Accounts payable,E0232479,FEDEX
,OFFICE OF THE MINORITY LEADER,2015Q1,"RENT, COMMUNICATION, UTILITIES",01-12,FEDEX,12/19/14,12/19/14,POSTAGE / COURIER / BOX RENTAL,13.83,2014,AP,Accounts payable,E0234663,FEDEX
,OFFICE OF THE MINORITY LEADER,2015Q1,"RENT, COMMUNICATION, UTILITIES",01-12,FEDEX,11/18/14,11/18/14,POSTAGE / COURIER / BOX RENTAL,9.86,2014,AP,Accounts payable,E0234664,FEDEX
,OFFICE OF THE MINORITY LEADER,2015Q1,"RENT, COMMUNICATION, UTILITIES",01-20,CITI PCARD-TIV TIVO SERVICE,11/29/14,12/28/14,RECORDING (OUTSIDE),48.42,2014,AP,Accounts payable,00772401,CITI PCARD-TIV TIVO SERVICE
,OFFICE OF THE MINORITY LEADER,2015Q1,"RENT, COMMUNICATION, UTILITIES",01-22,FEDEX,12/23/14,12/23/14,POSTAGE / COURIER / BOX RENTAL,5.11,2014,AP,Accounts payable,E0238781,FEDEX
,OFFICE OF THE MINORITY LEADER,2015Q1,OTHER SERVICES,01-06,BERNARD RAIMO,12/01/14,12/31/14,CONSULTANT CONTRACT SERVICE,"7,628.00",2014,AP,Accounts payable,E0232478,BERNARD RAIMO
,OFFICE OF THE MINORITY LEADER,2015Q1,SUPPLIES AND MATERIALS,01-06,"DOMINGUEZ, ASHLEY F",12/22/14,12/22/14,PUBLICATIONS/REFERENCE MAT'L,6.50,2014,AP,Accounts payable,E0232484,"DOMINGUEZ, ASHLEY F"
,OFFICE OF THE MINORITY LEADER,2015Q1,SUPPLIES AND MATERIALS,01-12,REED ELSEVIER INC,01/01/15,12/31/15,PUBLICATIONS/REFERENCE MAT'L,"20,208.00",2014,AP,Accounts payable,E0234655,REED ELSEVIER INC
,OFFICE OF THE MINORITY LEADER,2015Q1,SUPPLIES AND MATERIALS,01-12,SOUTHWEST DISTRIBUTION INC,01/01/15,03/31/15,PUBLICATIONS/REFERENCE MAT'L,"3,453.60",2014,AP,Accounts payable,E0234656,SOUTHWEST DISTRIBUTION INC
,OFFICE OF THE MINORITY LEADER,2015Q1,SUPPLIES AND MATERIALS,01-12,OCCASIONS CATERERS,12/09/14,12/09/14,FOOD & BEVERAGE,"4,990.00",2014,AP,Accounts payable,E0234659,OCCASIONS CATERERS
,OFFICE OF THE MINORITY LEADER,2015Q1,SUPPLIES AND MATERIALS,01-12,OCCASIONS CATERERS,12/15/14,12/15/14,FOOD & BEVERAGE,289.00,2014,AP,Accounts payable,E0234661,OCCASIONS CATERERS
,OFFICE OF THE MINORITY LEADER,2015Q1,SUPPLIES AND MATERIALS,01-12,OCCASIONS CATERERS,12/09/14,12/09/14,FOOD & BEVERAGE,"8,620.00",2014,AP,Accounts payable,E0234662,OCCASIONS CATERERS
,OFFICE OF THE MINORITY LEADER,2015Q1,SUPPLIES AND MATERIALS,01-12,MORNINGSIDE PARTNERS LLC,01/02/15,01/01/16,PUBLICATIONS/REFERENCE MAT'L,"61,027.00",2014,AP,Accounts payable,E0234669,MORNINGSIDE PARTNERS LLC
,OFFICE OF THE MINORITY LEADER,2015Q1,SUPPLIES AND MATERIALS,01-20,CITI PCARD-DUNKIN,11/29/14,12/28/14,FOOD & BEVERAGE,17.82,2014,AP,Accounts payable,00772401,CITI PCARD-DUNKIN
,OFFICE OF THE MINORITY LEADER,2015Q1,SUPPLIES AND MATERIALS,01-20,CITI PCARD-FIREHOOK,11/29/14,12/28/14,FOOD & BEVERAGE,34.65,2014,AP,Accounts payable,00772401,CITI PCARD-FIREHOOK
,OFFICE OF THE MINORITY LEADER,2015Q1,SUPPLIES AND MATERIALS,01-20,CITI PCARD-GIANT,11/29/14,12/28/14,FOOD & BEVERAGE,34.99,2014,AP,Accounts payable,00772401,CITI PCARD-GIANT
,OFFICE OF THE MINORITY LEADER,2015Q1,SUPPLIES AND MATERIALS,01-20,CITI PCARD-TRADER JOE'S,11/29/14,12/28/14,FOOD & BEVERAGE,69.14,2014,AP,Accounts payable,00772401,CITI PCARD-TRADER JOE'S
,OFFICE OF THE MINORITY LEADER,2015Q1,SUPPLIES AND MATERIALS,01-20,CITI PCARD-WHOLEFDS PST,11/29/14,12/28/14,FOOD & BEVERAGE,76.64,2014,AP,Accounts payable,00772401,CITI PCARD-WHOLEFDS PST
,OFFICE OF THE MINORITY LEADER,2015Q1,SUPPLIES AND MATERIALS,01-23,HAGUE QUALITY WATER OF MD INC,01/01/15,12/15/15,WATER,"4,347.00",2014,AP,Accounts payable,E0238940,HAGUE QUALITY WATER OF MD INC
,OFFICE OF THE MINORITY LEADER,2015Q1,SUPPLIES AND MATERIALS,02-05,CRYSTAL SPRINGS,12/01/14,12/31/14,WATER,430.06,2014,AP,Accounts payable,E0243336,CRYSTAL SPRINGS
,OFFICE OF THE MINORITY LEADER,2015Q1,SUPPLIES AND MATERIALS,02-05,CAPITOL HOST,12/02/14,12/02/14,FOOD & BEVERAGE,120.58,2014,AP,Accounts payable,E0243337,CAPITOL HOST
,OFFICE OF THE MINORITY LEADER,2015Q1,SUPPLIES AND MATERIALS,02-05,RIDGEWELLS CATERING,12/03/14,12/03/14,FOOD & BEVERAGE,33.00,2014,AP,Accounts payable,E0243338,RIDGEWELLS CATERING
,OFFICE OF THE MINORITY LEADER,2015Q1,SUPPLIES AND MATERIALS,02-05,CAPITOL HOST,12/10/14,12/10/14,FOOD & BEVERAGE,33.00,2014,AP,Accounts payable,E0243339,CAPITOL HOST
,OFFICE OF THE MINORITY LEADER,2015Q1,SUPPLIES AND MATERIALS,02-19,CITI PCARD-TARGET,12/29/14,01/02/15,FOOD & BEVERAGE,552.58,2014,AP,Accounts payable,00775819,CITI PCARD-TARGET
,OFFICE OF THE MAJORITY WHIP,2015Q1,PERSONNEL COMPENSATION,"","ACORNLEY, MARK A",01/03/15,03/31/15,FINANCIAL ADMINISTRATOR,"3,666.67",2015,"","","","ACORNLEY, MARK A"
,OFFICE OF THE MAJORITY WHIP,2015Q1,PERSONNEL COMPENSATION,"","BECKER,MEGAN E",01/03/15,03/31/15,SCHEDULE COORDINATOR,"11,000.00",2015,"","","","BECKER,MEGAN E"
,OFFICE OF THE MAJORITY WHIP,2015Q1,PERSONNEL COMPENSATION,"","BLACK,WAELSTON T",01/03/15,03/31/15,SPECIAL ASSISTANT,"7,333.33",2015,"","","","BLACK,WAELSTON T"
,OFFICE OF THE MAJORITY WHIP,2015Q1,PERSONNEL COMPENSATION,"","BRACE,CONNER W",01/03/15,03/31/15,STAFF ASSISTANT,"7,333.33",2015,"","","","BRACE,CONNER W"
,OFFICE OF THE MAJORITY WHIP,2015Q1,PERSONNEL COMPENSATION,"","BRAVO, MATTHEW",01/03/15,03/31/15,DEPUTY DIRECTOR OF FLOOR OPERA,"22,000.00",2015,"","","","BRAVO, MATTHEW"
,OFFICE OF THE MAJORITY WHIP,2015Q1,PERSONNEL COMPENSATION,"","CAVAZOS,ANDREW J",01/03/15,03/31/15,ASST TO THE CHIEF OF STAFF,"11,000.00",2015,"","","","CAVAZOS,ANDREW J"
,OFFICE OF THE MAJORITY WHIP,2015Q1,PERSONNEL COMPENSATION,"","CONLEY,BRENDEN L",01/24/15,02/01/15,TEMPORARY,750.45,2015,"","","","CONLEY,BRENDEN L"
,OFFICE OF THE MAJORITY WHIP,2015Q1,PERSONNEL COMPENSATION,"","DELUKE,BRENDEN J",01/03/15,03/31/15,SPECIAL ASSISTANT,"8,555.57",2015,"","","","DELUKE,BRENDEN J"
,OFFICE OF THE MAJORITY WHIP,2015Q1,PERSONNEL COMPENSATION,"","GUSTAFSON,NICOLE M",01/03/15,03/06/15,LEGISLATIVE COUNSEL,"26,098.63",2015,"","","","GUSTAFSON,NICOLE M"
,OFFICE OF THE MAJORITY WHIP,2015Q1,PERSONNEL COMPENSATION,"","HAMILTON,PARKER",01/03/15,03/31/15,COS TO THE CHIEF DEP WHIP,"29,333.33",2015,"","","","HAMILTON,PARKER"
,OFFICE OF THE MAJORITY WHIP,2015Q1,PERSONNEL COMPENSATION,"","HODGSON,CHRISTOPHER M",01/03/15,03/31/15,FLOOR DIRECTOR,"14,666.67",2015,"","","","HODGSON,CHRISTOPHER M"
,OFFICE OF THE MAJORITY WHIP,2015Q1,PERSONNEL COMPENSATION,"","HORTON, BRETT H",01/03/15,03/31/15,DIR OF FL OPERATIONS & COUNSEL,"32,600.00",2015,"","","","HORTON, BRETT H"
,OFFICE OF THE MAJORITY WHIP,2015Q1,PERSONNEL COMPENSATION,"","HUDAK,KELLEY K",03/10/15,03/31/15,BUSINESS COALITIONS COORD,"5,444.44",2015,"","","","HUDAK,KELLEY K"
,OFFICE OF THE MAJORITY WHIP,2015Q1,PERSONNEL COMPENSATION,"","HUGHES,WILLIAM J",01/03/15,03/31/15,POLICY DIRECTOR,"40,799.55",2015,"","","","HUGHES,WILLIAM J"
,OFFICE OF THE MAJORITY WHIP,2015Q1,PERSONNEL COMPENSATION,"","REISER,MARTIN G",01/03/15,03/31/15,LEGISLATIVE COUNSEL,"37,549.55",2015,"","","","REISER,MARTIN G"
,OFFICE OF THE MAJORITY WHIP,2015Q1,PERSONNEL COMPENSATION,"","REISING,JOHN B",01/03/15,03/31/15,DIRECTOR OF OPERATIONS,"20,044.43",2015,"","","","REISING,JOHN B"
,OFFICE OF THE MAJORITY WHIP,2015Q1,PERSONNEL COMPENSATION,"","RUCKERT,LYNNEL B",01/03/15,03/31/15,CHIEF OF STAFF,"41,873.33",2015,"","","","RUCKERT,LYNNEL B"
,OFFICE OF THE MAJORITY WHIP,2015Q1,PERSONNEL COMPENSATION,"","SADLOSKY,DANIEL J",01/03/15,03/31/15,POLICY ASSISTANT,"13,444.43",2015,"","","","SADLOSKY,DANIEL J"
,OFFICE OF THE MAJORITY WHIP,2015Q1,PERSONNEL COMPENSATION,"","SMITH, MOIRA B",01/03/15,03/31/15,COMMUNICATIONS DIRECTOR,"36,398.63",2015,"","","","SMITH, MOIRA B"
,OFFICE OF THE MAJORITY WHIP,2015Q1,PERSONNEL COMPENSATION,"","TATUM,THOMAS J",01/03/15,03/31/15,DEPUTY COMMUNICATIONS DIRECTOR,"19,555.57",2015,"","","","TATUM,THOMAS J"
,OFFICE OF THE MAJORITY WHIP,2015Q1,PERSONNEL COMPENSATION,"","WOODARD,JOHN S",03/10/15,03/31/15,INTERN,933.33,2015,"","","","WOODARD,JOHN S"
,OFFICE OF THE MAJORITY WHIP,2015Q1,PERSONNEL COMPENSATION,"","ZULKOSKY,ERIC T",01/03/15,03/31/15,DIR OF MEMBER SVS & POLICY ADV,"4,888.90",2015,"","","","ZULKOSKY,ERIC T"
,OFFICE OF THE MAJORITY WHIP,2015Q1,TRAVEL,02-04,"DELUKE, BRENDEN J",01/16/15,01/30/15,PRIVATE AUTO MILEAGE,13.00,2015,AP,Accounts payable,E0242775,"DELUKE, BRENDEN J"
,OFFICE OF THE MAJORITY WHIP,2015Q1,TRAVEL,02-25,"GUSTAFSON,NICOLE M",01/07/15,02/18/15,TAXI/PARKING/TOLLS,118.31,2015,AP,Accounts payable,E0250525,"GUSTAFSON,NICOLE M"
,OFFICE OF THE MAJORITY WHIP,2015Q1,TRAVEL,02-26,CITIBANK GOV CARD SERVICE,01/21/15,02/05/15,COMMERCIAL TRANSPORTATION,398.20,2015,AP,Accounts payable,E0250533,CITIBANK GOV CARD SERVICE
,OFFICE OF THE MAJORITY WHIP,2015Q1,PRINTING AND REPRODUCTION,03-27,"",03/01/15,03/31/15,PHOTOGRAPHIC (TRANSFER),13.00,2015,GL,General ledger,PIX0047659,""
,OFFICE OF THE MAJORITY WHIP,2015Q1,SUPPLIES AND MATERIALS,03-18,FIRST CHOICE COFFEE SERVICES,01/15/15,01/15/15,FOOD & BEVERAGE,360.00,2015,AP,Accounts payable,E0258621,FIRST CHOICE COFFEE SERVICES
,OFFICE OF THE MAJORITY WHIP,2015Q1,SUPPLIES AND MATERIALS,03-18,FIRST CHOICE COFFEE SERVICES,02/05/15,02/05/15,FOOD & BEVERAGE,616.55,2015,AP,Accounts payable,E0258625,FIRST CHOICE COFFEE SERVICES
,OFFICE OF THE MAJORITY WHIP,2015Q1,SUPPLIES AND MATERIALS,03-18,FIRST CHOICE COFFEE SERVICES,02/19/15,02/19/15,FOOD & BEVERAGE,424.00,2015,AP,Accounts payable,E0258627,FIRST CHOICE COFFEE SERVICES
,OFFICE OF THE MAJORITY WHIP,2015Q1,SUPPLIES AND MATERIALS,03-18,FIRST CHOICE COFFEE SERVICES,01/08/15,01/08/15,FOOD & BEVERAGE,187.15,2015,AP,Accounts payable,E0258628,FIRST CHOICE COFFEE SERVICES
,OFFICE OF THE MAJORITY WHIP,2015Q1,SUPPLIES AND MATERIALS,03-18,FIRST CHOICE COFFEE SERVICES,03/02/15,03/02/15,FOOD & BEVERAGE,253.60,2015,AP,Accounts payable,E0258629,FIRST CHOICE COFFEE SERVICES
,OFFICE OF THE MAJORITY WHIP,2015Q1,SUPPLIES AND MATERIALS,03-18,FIRST CHOICE COFFEE SERVICES,01/29/15,01/29/15,FOOD & BEVERAGE,394.60,2015,AP,Accounts payable,E0258632,FIRST CHOICE COFFEE SERVICES
,OFFICE OF THE MAJORITY WHIP,2015Q1,SUPPLIES AND MATERIALS,03-18,FIRST CHOICE COFFEE SERVICES,01/15/15,01/15/15,FOOD & BEVERAGE,819.95,2015,AP,Accounts payable,E0258636,FIRST CHOICE COFFEE SERVICES
,OFFICE OF THE MAJORITY WHIP,2015Q1,SUPPLIES AND MATERIALS,03-18,FIRST CHOICE COFFEE SERVICES,01/22/15,01/22/15,FOOD & BEVERAGE,12.95,2015,AP,Accounts payable,E0258640,FIRST CHOICE COFFEE SERVICES
,OFFICE OF THE MAJORITY WHIP,2015Q1,SUPPLIES AND MATERIALS,03-18,FIRST CHOICE COFFEE SERVICES,01/22/15,01/22/15,FOOD & BEVERAGE,206.39,2015,AP,Accounts payable,E0258643,FIRST CHOICE COFFEE SERVICES
,OFFICE OF THE MAJORITY WHIP,2015Q1,SUPPLIES AND MATERIALS,03-18,FIRST CHOICE COFFEE SERVICES,02/05/15,02/05/15,FOOD & BEVERAGE,18.00,2015,AP,Accounts payable,E0258644,FIRST CHOICE COFFEE SERVICES
,OFFICE OF THE MAJORITY WHIP,2015Q1,SUPPLIES AND MATERIALS,03-19,CITI PCARD-HARRIS TEETER,01/29/15,02/28/15,FOOD & BEVERAGE,23.29,2015,AP,Accounts payable,00783862,CITI PCARD-HARRIS TEETER
,OFFICE OF THE MAJORITY WHIP,2015Q1,SUPPLIES AND MATERIALS,03-25,FIRST CHOICE COFFEE SERVICES,03/19/15,03/19/15,FOOD & BEVERAGE,394.70,2015,AP,Accounts payable,E0261273,FIRST CHOICE COFFEE SERVICES
,OFFICE OF THE MAJORITY WHIP,2015Q1,SUPPLIES AND MATERIALS,03-25,FIRST CHOICE COFFEE SERVICES,03/20/15,03/20/15,FOOD & BEVERAGE,388.20,2015,AP,Accounts payable,E0261289,FIRST CHOICE COFFEE SERVICES
,OFFICE OF THE MAJORITY WHIP,2015Q1,PERSONNEL COMPENSATION,"","ACORNLEY, MARK A",01/01/15,01/02/15,FINANCIAL ADMINISTRATOR,83.33,2014,"","","","ACORNLEY, MARK A"
,OFFICE OF THE MAJORITY WHIP,2015Q1,PERSONNEL COMPENSATION,"","BECKER,MEGAN E",01/01/15,01/02/15,SCHEDULE COORDINATOR,250.00,2014,"","","","BECKER,MEGAN E"
,OFFICE OF THE MAJORITY WHIP,2015Q1,PERSONNEL COMPENSATION,"","BLACK,WAELSTON T",01/01/15,01/02/15,SPECIAL ASSISTANT,166.67,2014,"","","","BLACK,WAELSTON T"
,OFFICE OF THE MAJORITY WHIP,2015Q1,PERSONNEL COMPENSATION,"","BRACE,CONNER W",01/01/15,01/02/15,STAFF ASSISTANT,166.67,2014,"","","","BRACE,CONNER W"
,OFFICE OF THE MAJORITY WHIP,2015Q1,PERSONNEL COMPENSATION,"","BRAVO, MATTHEW",01/01/15,01/02/15,DEPUTY DIRECTOR OF FLOOR OPERA,500.00,2014,"","","","BRAVO, MATTHEW"
,OFFICE OF THE MAJORITY WHIP,2015Q1,PERSONNEL COMPENSATION,"","CAVAZOS,ANDREW J",01/01/15,01/02/15,ASST TO THE CHIEF OF STAFF,250.00,2014,"","","","CAVAZOS,ANDREW J"
,OFFICE OF THE MAJORITY WHIP,2015Q1,PERSONNEL COMPENSATION,"","DELUKE,BRENDEN J",01/01/15,01/02/15,SPECIAL ASSISTANT,194.44,2014,"","","","DELUKE,BRENDEN J"
,OFFICE OF THE MAJORITY WHIP,2015Q1,PERSONNEL COMPENSATION,"","GUSTAFSON,NICOLE M",01/01/15,01/02/15,LEGISLATIVE COUNSEL,935.62,2014,"","","","GUSTAFSON,NICOLE M"
,OFFICE OF THE MAJORITY WHIP,2015Q1,PERSONNEL COMPENSATION,"","HAMILTON,PARKER",01/01/15,01/02/15,COS TO THE CHIEF DEP WHIP,666.67,2014,"","","","HAMILTON,PARKER"
,OFFICE OF THE MAJORITY WHIP,2015Q1,PERSONNEL COMPENSATION,"","HODGSON,CHRISTOPHER M",01/01/15,01/02/15,FLOOR DIRECTOR,333.33,2014,"","","","HODGSON,CHRISTOPHER M"
,OFFICE OF THE MAJORITY WHIP,2015Q1,PERSONNEL COMPENSATION,"","HORTON, BRETT H",12/01/14,01/02/15,DIR OF FL OPERATIONS & COUNSEL,"7,400.01",2014,"","","","HORTON, BRETT H"
,OFFICE OF THE MAJORITY WHIP,2015Q1,PERSONNEL COMPENSATION,"","HUGHES,WILLIAM J",01/01/15,01/02/15,POLICY DIRECTOR,935.62,2014,"","","","HUGHES,WILLIAM J"
,OFFICE OF THE MAJORITY WHIP,2015Q1,PERSONNEL COMPENSATION,"","REISER,MARTIN G",01/01/15,01/02/15,LEGISLATIVE COUNSEL,935.62,2014,"","","","REISER,MARTIN G"
,OFFICE OF THE MAJORITY WHIP,2015Q1,PERSONNEL COMPENSATION,"","REISING,JOHN B",01/01/15,01/02/15,DIRECTOR OF OPERATIONS,455.56,2014,"","","","REISING,JOHN B"
,OFFICE OF THE MAJORITY WHIP,2015Q1,PERSONNEL COMPENSATION,"","RUCKERT,LYNNEL B",01/01/15,01/02/15,CHIEF OF STAFF,951.67,2014,"","","","RUCKERT,LYNNEL B"
,OFFICE OF THE MAJORITY WHIP,2015Q1,PERSONNEL COMPENSATION,"","SADLOSKY,DANIEL J",01/01/15,01/02/15,POLICY ASSISTANT,305.56,2014,"","","","SADLOSKY,DANIEL J"
,OFFICE OF THE MAJORITY WHIP,2015Q1,PERSONNEL COMPENSATION,"","SMITH, MOIRA B",01/01/15,01/02/15,COMMUNICATIONS DIRECTOR,935.62,2014,"","","","SMITH, MOIRA B"
,OFFICE OF THE MAJORITY WHIP,2015Q1,PERSONNEL COMPENSATION,"","TATUM,THOMAS J",01/01/15,01/02/15,DEPUTY COMMUNICATIONS DIRECTOR,444.44,2014,"","","","TATUM,THOMAS J"
,OFFICE OF THE MAJORITY WHIP,2015Q1,PERSONNEL COMPENSATION,"","ZULKOSKY,ERIC T",12/01/14,01/02/15,DIR OF MEMBER SVS & POLICY ADV,"8,179.61",2014,"","","","ZULKOSKY,ERIC T"
,OFFICE OF THE MAJORITY WHIP,2015Q1,TRAVEL,01-06,"BECKER, MEGAN E",12/15/14,12/18/14,MEALS,53.84,2014,AP,Accounts payable,E0232447,"BECKER, MEGAN E"
,OFFICE OF THE MAJORITY WHIP,2015Q1,TRAVEL,02-26,"GUSTAFSON,NICOLE M",09/17/14,12/16/14,TAXI/PARKING/TOLLS,62.64,2014,AP,Accounts payable,E0250558,"GUSTAFSON,NICOLE M"
,OFFICE OF THE MAJORITY WHIP,2015Q1,TRAVEL,02-26,"GUSTAFSON,NICOLE M",11/07/14,12/16/14,TAXI/PARKING/TOLLS,86.54,2014,AP,Accounts payable,E0250558,"GUSTAFSON,NICOLE M"
,OFFICE OF THE MAJORITY WHIP,2015Q1,OTHER SERVICES,02-25,ATTICUS MEDIA LLC,01/01/15,01/01/15,NON-TECHNOLOGY SERVICE CONTR,"1,020.00",2014,AP,Accounts payable,E0250537,ATTICUS MEDIA LLC
,OFFICE OF THE MAJORITY WHIP,2015Q1,SUPPLIES AND MATERIALS,01-06,POLITICO,12/31/14,12/30/15,PUBLICATIONS/REFERENCE MAT'L,"8,990.00",2014,AP,Accounts payable,E0232537,POLITICO
,OFFICE OF THE MAJORITY WHIP,2015Q1,SUPPLIES AND MATERIALS,01-14,TVEYES INC,01/01/15,12/31/16,PUBLICATIONS/REFERENCE MAT'L,"2,400.00",2014,AP,Accounts payable,E0236206,TVEYES INC
,OFFICE OF THE MAJORITY WHIP,2015Q1,SUPPLIES AND MATERIALS,01-16,COMMUNITY COFFEE COMPANY LLC,10/06/14,10/06/14,FOOD & BEVERAGE,267.86,2014,AP,Accounts payable,E0237367,COMMUNITY COFFEE COMPANY LLC
,OFFICE OF THE MAJORITY WHIP,2015Q1,SUPPLIES AND MATERIALS,02-25,MORNINGSIDE PARTNERS LLC,01/01/15,12/31/15,PUBLICATIONS/REFERENCE MAT'L,"9,998.00",2014,AP,Accounts payable,E0250532,MORNINGSIDE PARTNERS LLC
,OFFICE OF THE MAJORITY WHIP,2015Q1,SUPPLIES AND MATERIALS,03-18,FIRST CHOICE COFFEE SERVICES,12/09/14,12/09/14,FOOD & BEVERAGE,242.10,2014,AP,Accounts payable,E0258620,FIRST CHOICE COFFEE SERVICES
,OFFICE OF THE MAJORITY WHIP,2015Q1,SUPPLIES AND MATERIALS,03-18,DAIOHS FIRST CHOICE COFFEE SERVICES,12/18/14,12/18/14,FOOD & BEVERAGE,305.60,2014,AP,Accounts payable,E0258623,DAIOHS FIRST CHOICE COFFEE SERVICES
,OFFICE OF THE MAJORITY WHIP,2015Q1,SUPPLIES AND MATERIALS,03-18,FIRST CHOICE COFFEE SERVICES,12/18/14,12/18/14,FOOD & BEVERAGE,386.00,2014,AP,Accounts payable,E0258633,FIRST CHOICE COFFEE SERVICES
,OFFICE OF THE MAJORITY WHIP,2015Q1,SUPPLIES AND MATERIALS,03-18,FIRST CHOICE COFFEE SERVICES,12/19/14,12/19/14,FOOD & BEVERAGE,235.50,2014,AP,Accounts payable,E0258639,FIRST CHOICE COFFEE SERVICES
,OFFICE OF THE MINORITY WHIP,2015Q1,PERSONNEL COMPENSATION,"","ABOUCHAR, KEITH S",01/03/15,03/31/15,SENIOR POLICY ADVISOR,"34,222.23",2015,"","","","ABOUCHAR, KEITH S"
,OFFICE OF THE MINORITY WHIP,2015Q1,PERSONNEL COMPENSATION,"","AVILES,DANIELLE R",01/03/15,03/31/15,FLOOR ASSISTANT,"14,666.67",2015,"","","","AVILES,DANIELLE R"
,OFFICE OF THE MINORITY WHIP,2015Q1,PERSONNEL COMPENSATION,"","BOHANAN JR, JOHN L",01/03/15,02/01/15,CONSTITUENT LIAISON,483.34,2015,"","","","BOHANAN JR, JOHN L"
,OFFICE OF THE MINORITY WHIP,2015Q1,PERSONNEL COMPENSATION,"","COBIA, LINDSEY G",01/03/15,03/31/15,EXECUTIVE ASST OFFICE MANAGER,"11,000.00",2015,"","","","COBIA, LINDSEY G"
,OFFICE OF THE MINORITY WHIP,2015Q1,PERSONNEL COMPENSATION,"","COLLINS, MICHAEL E",01/03/15,03/31/15,CHIEF DEPUTY WHIP,"10,388.90",2015,"","","","COLLINS, MICHAEL E"
,OFFICE OF THE MINORITY WHIP,2015Q1,PERSONNEL COMPENSATION,"","CORTINA,JOSEPH B",02/10/15,03/31/15,STAFF ASSISTANT,"3,541.66",2015,"","","","CORTINA,JOSEPH B"
,OFFICE OF THE MINORITY WHIP,2015Q1,PERSONNEL COMPENSATION,"","CORTINA,JOSEPH B",02/10/15,02/28/15,STAFF ASSISTANT (OVERTIME),414.66,2015,"","","","CORTINA,JOSEPH B"
,OFFICE OF THE MINORITY WHIP,2015Q1,PERSONNEL COMPENSATION,"","COVEY-BRANDT, ALEXIS",01/03/15,03/31/15,CHIEF OF STAFF,"42,166.67",2015,"","","","COVEY-BRANDT, ALEXIS"
,OFFICE OF THE MINORITY WHIP,2015Q1,PERSONNEL COMPENSATION,"","DWYER, STEPHEN",01/03/15,03/31/15,DIGITAL DIR & POLICY ADV,"14,422.23",2015,"","","","DWYER, STEPHEN"
,OFFICE OF THE MINORITY WHIP,2015Q1,PERSONNEL COMPENSATION,"","FRY,COURTNEY",01/03/15,03/31/15,DEP OUTREACH DIR & MEM SER ADV,"25,666.67",2015,"","","","FRY,COURTNEY"
,OFFICE OF THE MINORITY WHIP,2015Q1,PERSONNEL COMPENSATION,"","GOFF,SHUWANZA R",01/03/15,03/31/15,FLOOR DIRECTOR,"25,666.67",2015,"","","","GOFF,SHUWANZA R"
,OFFICE OF THE MINORITY WHIP,2015Q1,PERSONNEL COMPENSATION,"","GRANT,KATHRYN L",01/03/15,03/31/15,COMM DIR AND SR ADVISOR,"30,555.57",2015,"","","","GRANT,KATHRYN L"
,OFFICE OF THE MINORITY WHIP,2015Q1,PERSONNEL COMPENSATION,"","LEUSCHEN, JAMES P",01/03/15,03/31/15,SENIOR POLICY ADVISOR,"34,422.23",2015,"","","","LEUSCHEN, JAMES P"
,OFFICE OF THE MINORITY WHIP,2015Q1,PERSONNEL COMPENSATION,"","MACDONALD,CHARLENE",01/03/15,03/31/15,SENIOR POLICY ADVISOR,"29,333.33",2015,"","","","MACDONALD,CHARLENE"
,OFFICE OF THE MINORITY WHIP,2015Q1,PERSONNEL COMPENSATION,"","MAHR,THOMAS",01/03/15,03/31/15,POLICY DIRECTOR,"39,111.10",2015,"","","","MAHR,THOMAS"
,OFFICE OF THE MINORITY WHIP,2015Q1,PERSONNEL COMPENSATION,"","MARTINEZ, JAVIER D",01/03/15,03/31/15,DEP DIR OF MBR SERV & OUTR ADV,"18,333.33",2015,"","","","MARTINEZ, JAVIER D"
,OFFICE OF THE MINORITY WHIP,2015Q1,PERSONNEL COMPENSATION,"","MITTLER,MICHELLE",01/03/15,03/31/15,DIR OF SCHEDLNG & SPEC EVENTS,"17,111.10",2015,"","","","MITTLER,MICHELLE"
,OFFICE OF THE MINORITY WHIP,2015Q1,PERSONNEL COMPENSATION,"","NOTTER,JAMES P",01/03/15,02/01/15,SR. ADV & PERSONAL OFFICE DIR,"1,208.34",2015,"","","","NOTTER,JAMES P"
,OFFICE OF THE MINORITY WHIP,2015Q1,PERSONNEL COMPENSATION,"","REPKO,MARY F",01/03/15,03/31/15,SENIOR POLICY ADVISOR,"34,222.23",2015,"","","","REPKO,MARY F"
,OFFICE OF THE MINORITY WHIP,2015Q1,PERSONNEL COMPENSATION,"","RODRIGUEZ,FEDERICO J",01/03/15,01/30/15,STAFF ASSISTANT,"1,319.44",2015,"","","","RODRIGUEZ,FEDERICO J"
,OFFICE OF THE MINORITY WHIP,2015Q1,PERSONNEL COMPENSATION,"","ROMICK, BRIAN",01/03/15,03/31/15,WHIP DIR AND SENIOR ADVISOR,"41,555.56",2015,"","","","ROMICK, BRIAN"
,OFFICE OF THE MINORITY WHIP,2015Q1,PERSONNEL COMPENSATION,"","ROWE,DEBORAH M",01/03/15,03/31/15,STAFF ASSISTANT,"6,111.10",2015,"","","","ROWE,DEBORAH M"
,OFFICE OF THE MINORITY WHIP,2015Q1,PERSONNEL COMPENSATION,"","ROWE,DEBORAH M",01/01/15,02/28/15,STAFF ASSISTANT (OVERTIME),"2,037.24",2015,"","","","ROWE,DEBORAH M"
,OFFICE OF THE MINORITY WHIP,2015Q1,PERSONNEL COMPENSATION,"","SAEZ,MARIEL S",01/03/15,03/31/15,PRESS SECRETARY,"16,866.67",2015,"","","","SAEZ,MARIEL S"
,OFFICE OF THE MINORITY WHIP,2015Q1,PERSONNEL COMPENSATION,"","SALAZAR, RAYMOND J",01/03/15,03/31/15,SPECIAL ASSISTANT,"11,000.00",2015,"","","","SALAZAR, RAYMOND J"
,OFFICE OF THE MINORITY WHIP,2015Q1,PERSONNEL COMPENSATION,"","SHOTT,DANIEL",01/03/15,03/31/15,SENIOR FLOOR ASSISTANT,"18,333.33",2015,"","","","SHOTT,DANIEL"
,OFFICE OF THE MINORITY WHIP,2015Q1,PERSONNEL COMPENSATION,"","SILVERBERG,DANIEL I",01/03/15,03/31/15,SENIOR POLICY ADVISOR,"17,355.57",2015,"","","","SILVERBERG,DANIEL I"
,OFFICE OF THE MINORITY WHIP,2015Q1,PERSONNEL COMPENSATION,"","VALES,TARA J",01/03/15,03/31/15,PRESS AND RESEARCH ASSISTANT,"8,555.57",2015,"","","","VALES,TARA J"
,OFFICE OF THE MINORITY WHIP,2015Q1,PERSONNEL COMPENSATION,"","VEAL,LATOYA S",01/03/15,03/31/15,MARYLAND PRESS SECRETARY,"11,977.77",2015,"","","","VEAL,LATOYA S"
,OFFICE OF THE MINORITY WHIP,2015Q1,PERSONNEL COMPENSATION,"","WEISSMANN, ADAM",01/03/15,03/31/15,SPEECHWRITER,"18,333.34",2015,"","","","WEISSMANN, ADAM"
,OFFICE OF THE MINORITY WHIP,2015Q1,TRAVEL,02-09,"VALES, TARA J",01/26/15,01/26/15,TAXI/PARKING/TOLLS,6.13,2015,AP,Accounts payable,E0244615,"VALES, TARA J"
,OFFICE OF THE MINORITY WHIP,2015Q1,TRAVEL,02-09,"VALES, TARA J",01/20/15,01/20/15,TAXI/PARKING/TOLLS,13.58,2015,AP,Accounts payable,E0244617,"VALES, TARA J"
,OFFICE OF THE MINORITY WHIP,2015Q1,TRAVEL,02-09,"AVILES,DANIELLE R",01/12/15,01/12/15,TAXI/PARKING/TOLLS,19.00,2015,AP,Accounts payable,E0244635,"AVILES,DANIELLE R"
,OFFICE OF THE MINORITY WHIP,2015Q1,TRAVEL,02-09,"AVILES,DANIELLE R",01/07/15,01/07/15,TAXI/PARKING/TOLLS,11.00,2015,AP,Accounts payable,E0244639,"AVILES,DANIELLE R"
,OFFICE OF THE MINORITY WHIP,2015Q1,TRAVEL,02-09,"ROWE, DEBORAH M",01/22/15,01/22/15,TAXI/PARKING/TOLLS,11.82,2015,AP,Accounts payable,E0244640,"ROWE, DEBORAH M"
,OFFICE OF THE MINORITY WHIP,2015Q1,TRAVEL,02-09,"AVILES,DANIELLE R",01/13/15,01/13/15,TAXI/PARKING/TOLLS,14.00,2015,AP,Accounts payable,E0244642,"AVILES,DANIELLE R"
,OFFICE OF THE MINORITY WHIP,2015Q1,TRAVEL,02-09,"VALES, TARA J",01/27/15,01/27/15,TAXI/PARKING/TOLLS,6.00,2015,AP,Accounts payable,E0244644,"VALES, TARA J"
,OFFICE OF THE MINORITY WHIP,2015Q1,TRAVEL,02-09,"COBIA, LINDSEY G",01/22/15,01/22/15,TAXI/PARKING/TOLLS,14.27,2015,AP,Accounts payable,E0244655,"COBIA, LINDSEY G"
,OFFICE OF THE MINORITY WHIP,2015Q1,TRAVEL,02-09,"ROWE, DEBORAH M",01/14/15,01/14/15,TAXI/PARKING/TOLLS,11.50,2015,AP,Accounts payable,E0244662,"ROWE, DEBORAH M"
,OFFICE OF THE MINORITY WHIP,2015Q1,TRAVEL,02-10,"ROWE, DEBORAH M",01/20/15,01/20/15,TAXI/PARKING/TOLLS,11.80,2015,AP,Accounts payable,E0244616,"ROWE, DEBORAH M"
,OFFICE OF THE MINORITY WHIP,2015Q1,TRAVEL,02-10,"ROWE, DEBORAH M",01/20/15,01/20/15,TAXI/PARKING/TOLLS,14.92,2015,AP,Accounts payable,E0244663,"ROWE, DEBORAH M"
,OFFICE OF THE MINORITY WHIP,2015Q1,TRAVEL,02-10,"AVILES,DANIELLE R",01/06/15,01/06/15,TAXI/PARKING/TOLLS,29.34,2015,AP,Accounts payable,E0245055,"AVILES,DANIELLE R"
,OFFICE OF THE MINORITY WHIP,2015Q1,TRAVEL,02-10,"VALES, TARA J",01/06/15,01/06/15,TAXI/PARKING/TOLLS,8.51,2015,AP,Accounts payable,E0245061,"VALES, TARA J"
,OFFICE OF THE MINORITY WHIP,2015Q1,TRAVEL,02-10,"COBIA, LINDSEY G",01/08/15,01/08/15,TAXI/PARKING/TOLLS,8.41,2015,AP,Accounts payable,E0245067,"COBIA, LINDSEY G"
,OFFICE OF THE MINORITY WHIP,2015Q1,TRAVEL,02-10,"COBIA, LINDSEY G",01/14/15,01/14/15,TAXI/PARKING/TOLLS,6.50,2015,AP,Accounts payable,E0245068,"COBIA, LINDSEY G"
,OFFICE OF THE MINORITY WHIP,2015Q1,TRAVEL,02-10,"AVILES,DANIELLE R",01/12/15,01/12/15,TAXI/PARKING/TOLLS,13.00,2015,AP,Accounts payable,E0245069,"AVILES,DANIELLE R"
,OFFICE OF THE MINORITY WHIP,2015Q1,TRAVEL,02-10,"COBIA, LINDSEY G",01/11/15,01/11/15,TAXI/PARKING/TOLLS,5.00,2015,AP,Accounts payable,E0245081,"COBIA, LINDSEY G"
,OFFICE OF THE MINORITY WHIP,2015Q1,TRAVEL,02-10,"ROWE, DEBORAH M",01/08/15,01/08/15,TAXI/PARKING/TOLLS,11.59,2015,AP,Accounts payable,E0245085,"ROWE, DEBORAH M"
,OFFICE OF THE MINORITY WHIP,2015Q1,TRAVEL,02-10,"ROWE, DEBORAH M",01/07/15,01/07/15,TAXI/PARKING/TOLLS,14.10,2015,AP,Accounts payable,E0245089,"ROWE, DEBORAH M"
,OFFICE OF THE MINORITY WHIP,2015Q1,TRAVEL,02-10,"COBIA, LINDSEY G",01/10/15,01/10/15,TAXI/PARKING/TOLLS,6.71,2015,AP,Accounts payable,E0245090,"COBIA, LINDSEY G"
,OFFICE OF THE MINORITY WHIP,2015Q1,TRAVEL,02-13,"ROWE, DEBORAH M",02/13/15,02/13/15,TAXI/PARKING/TOLLS,10.23,2015,AP,Accounts payable,E0247338,"ROWE, DEBORAH M"
,OFFICE OF THE MINORITY WHIP,2015Q1,TRAVEL,02-13,"ROWE, DEBORAH M",02/10/15,02/10/15,TAXI/PARKING/TOLLS,11.05,2015,AP,Accounts payable,E0247347,"ROWE, DEBORAH M"
,OFFICE OF THE MINORITY WHIP,2015Q1,TRAVEL,02-13,"ROWE, DEBORAH M",02/12/15,02/12/15,TAXI/PARKING/TOLLS,10.00,2015,AP,Accounts payable,E0247349,"ROWE, DEBORAH M"
,OFFICE OF THE MINORITY WHIP,2015Q1,TRAVEL,02-13,"COBIA, LINDSEY G",02/12/15,02/12/15,TAXI/PARKING/TOLLS,15.00,2015,AP,Accounts payable,E0247358,"COBIA, LINDSEY G"
,OFFICE OF THE MINORITY WHIP,2015Q1,TRAVEL,02-20,"COBIA, LINDSEY G",01/26/15,01/26/15,TAXI/PARKING/TOLLS,6.88,2015,AP,Accounts payable,00778223,"COBIA, LINDSEY G"
,OFFICE OF THE MINORITY WHIP,2015Q1,TRAVEL,02-20,"COBIA, LINDSEY G",01/23/15,01/23/15,TAXI/PARKING/TOLLS,12.14,2015,AP,Accounts payable,00778225,"COBIA, LINDSEY G"
,OFFICE OF THE MINORITY WHIP,2015Q1,TRAVEL,02-20,"COBIA, LINDSEY G",02/13/15,02/13/15,TAXI/PARKING/TOLLS,7.51,2015,AP,Accounts payable,00778228,"COBIA, LINDSEY G"
,OFFICE OF THE MINORITY WHIP,2015Q1,TRAVEL,03-13,"AVILES,DANIELLE R",02/26/15,02/26/15,TAXI/PARKING/TOLLS,15.00,2015,AP,Accounts payable,E0256721,"AVILES,DANIELLE R"
,OFFICE OF THE MINORITY WHIP,2015Q1,TRAVEL,03-13,"AVILES,DANIELLE R",01/20/15,01/20/15,TAXI/PARKING/TOLLS,15.00,2015,AP,Accounts payable,E0256722,"AVILES,DANIELLE R"
,OFFICE OF THE MINORITY WHIP,2015Q1,TRAVEL,03-13,"COBIA, LINDSEY G",02/27/15,02/27/15,TAXI/PARKING/TOLLS,9.03,2015,AP,Accounts payable,E0256728,"COBIA, LINDSEY G"
,OFFICE OF THE MINORITY WHIP,2015Q1,TRAVEL,03-13,"ROWE, DEBORAH M",03/02/15,03/02/15,TAXI/PARKING/TOLLS,11.08,2015,AP,Accounts payable,E0256729,"ROWE, DEBORAH M"
,OFFICE OF THE MINORITY WHIP,2015Q1,TRAVEL,03-13,"FRY,COURTNEY",03/04/15,03/04/15,TAXI/PARKING/TOLLS,21.00,2015,AP,Accounts payable,E0256730,"FRY,COURTNEY"
,OFFICE OF THE MINORITY WHIP,2015Q1,TRAVEL,03-16,"AVILES,DANIELLE R",01/13/15,01/13/15,TAXI/PARKING/TOLLS,13.00,2015,AP,Accounts payable,E0256708,"AVILES,DANIELLE R"
,OFFICE OF THE MINORITY WHIP,2015Q1,TRAVEL,03-16,"AVILES,DANIELLE R",02/27/15,02/27/15,TAXI/PARKING/TOLLS,15.00,2015,AP,Accounts payable,E0256713,"AVILES,DANIELLE R"
,OFFICE OF THE MINORITY WHIP,2015Q1,TRAVEL,03-16,"CORTINA, JOSEPH B",02/27/15,02/27/15,TAXI/PARKING/TOLLS,73.00,2015,AP,Accounts payable,E0256720,"CORTINA, JOSEPH B"
,OFFICE OF THE MINORITY WHIP,2015Q1,TRAVEL,03-16,"AVILES,DANIELLE R",02/27/15,02/27/15,TAXI/PARKING/TOLLS,14.00,2015,AP,Accounts payable,E0256725,"AVILES,DANIELLE R"
,OFFICE OF THE MINORITY WHIP,2015Q1,TRAVEL,03-18,"COBIA, LINDSEY G",03/17/15,03/17/15,TAXI/PARKING/TOLLS,15.00,2015,AP,Accounts payable,E0258157,"COBIA, LINDSEY G"
,OFFICE OF THE MINORITY WHIP,2015Q1,TRAVEL,03-18,"ROWE, DEBORAH M",02/26/15,02/26/15,TAXI/PARKING/TOLLS,9.82,2015,AP,Accounts payable,E0258159,"ROWE, DEBORAH M"
,OFFICE OF THE MINORITY WHIP,2015Q1,TRAVEL,03-18,"FRY,COURTNEY",03/13/15,03/13/15,TAXI/PARKING/TOLLS,15.00,2015,AP,Accounts payable,E0258168,"FRY,COURTNEY"
,OFFICE OF THE MINORITY WHIP,2015Q1,TRAVEL,03-18,"VALES, TARA J",02/26/15,02/26/15,TAXI/PARKING/TOLLS,5.97,2015,AP,Accounts payable,E0258191,"VALES, TARA J"
,OFFICE OF THE MINORITY WHIP,2015Q1,TRAVEL,03-18,"AVILES,DANIELLE R",03/02/15,03/02/15,TAXI/PARKING/TOLLS,16.00,2015,AP,Accounts payable,E0258195,"AVILES,DANIELLE R"
,OFFICE OF THE MINORITY WHIP,2015Q1,TRAVEL,03-18,"ROWE, DEBORAH M",02/20/15,02/20/15,TAXI/PARKING/TOLLS,8.00,2015,AP,Accounts payable,E0258200,"ROWE, DEBORAH M"
,OFFICE OF THE MINORITY WHIP,2015Q1,TRAVEL,03-20,"COBIA, LINDSEY G",03/18/15,03/18/15,TAXI/PARKING/TOLLS,7.48,2015,AP,Accounts payable,E0259544,"COBIA, LINDSEY G"
,OFFICE OF THE MINORITY WHIP,2015Q1,TRAVEL,03-20,"COBIA, LINDSEY G",03/18/15,03/18/15,TAXI/PARKING/TOLLS,11.05,2015,AP,Accounts payable,E0259547,"COBIA, LINDSEY G"
,OFFICE OF THE MINORITY WHIP,2015Q1,TRAVEL,03-20,"COBIA, LINDSEY G",03/19/15,03/19/15,TAXI/PARKING/TOLLS,12.95,2015,AP,Accounts payable,E0259568,"COBIA, LINDSEY G"
,OFFICE OF THE MINORITY WHIP,2015Q1,TRAVEL,03-24,"COBIA, LINDSEY G",02/26/15,02/26/15,TAXI/PARKING/TOLLS,8.43,2015,AP,Accounts payable,E0260558,"COBIA, LINDSEY G"
,OFFICE OF THE MINORITY WHIP,2015Q1,PRINTING AND REPRODUCTION,03-17,DAVID L ANDRUKITIS INC,03/13/15,03/13/15,PRINTING & REPRODUCTION,40.00,2015,AP,Accounts payable,E0258155,DAVID L ANDRUKITIS INC
,OFFICE OF THE MINORITY WHIP,2015Q1,SUPPLIES AND MATERIALS,03-16,"CORTINA, JOSEPH B",02/27/15,02/27/15,FOOD & BEVERAGE,16.65,2015,AP,Accounts payable,E0256716,"CORTINA, JOSEPH B"
,OFFICE OF THE MINORITY WHIP,2015Q1,SUPPLIES AND MATERIALS,03-19,CITI PCARD-LEADERSHIP DIRECTORIES,01/29/15,02/28/15,PUBLICATIONS/REFERENCE MAT'L,635.00,2015,AP,Accounts payable,00783862,CITI PCARD-LEADERSHIP DIRECTORIES
,OFFICE OF THE MINORITY WHIP,2015Q1,PERSONNEL COMPENSATION,"","ABOUCHAR, KEITH S",01/01/15,01/02/15,SENIOR POLICY ADVISOR,51.11,2014,"","","","ABOUCHAR, KEITH S"
,OFFICE OF THE MINORITY WHIP,2015Q1,PERSONNEL COMPENSATION,"","AVILES,DANIELLE R",01/01/15,01/02/15,FLOOR ASSISTANT,333.33,2014,"","","","AVILES,DANIELLE R"
,OFFICE OF THE MINORITY WHIP,2015Q1,PERSONNEL COMPENSATION,"","BOHANAN JR, JOHN L",01/01/15,01/02/15,CONSTITUENT LIAISON,33.33,2014,"","","","BOHANAN JR, JOHN L"
,OFFICE OF THE MINORITY WHIP,2015Q1,PERSONNEL COMPENSATION,"","COBIA, LINDSEY G",01/01/15,01/02/15,EXECUTIVE ASST OFFICE MANAGER,250.00,2014,"","","","COBIA, LINDSEY G"
,OFFICE OF THE MINORITY WHIP,2015Q1,PERSONNEL COMPENSATION,"","COLLINS, MICHAEL E",01/01/15,01/02/15,CHIEF DEPUTY WHIP,236.11,2014,"","","","COLLINS, MICHAEL E"
,OFFICE OF THE MINORITY WHIP,2015Q1,PERSONNEL COMPENSATION,"","COVEY-BRANDT, ALEXIS",01/01/15,01/02/15,CHIEF OF STAFF,95.10,2014,"","","","COVEY-BRANDT, ALEXIS"
,OFFICE OF THE MINORITY WHIP,2015Q1,PERSONNEL COMPENSATION,"","DWYER, STEPHEN",01/01/15,01/02/15,DIGITAL DIR & POLICY ADV,327.78,2014,"","","","DWYER, STEPHEN"
,OFFICE OF THE MINORITY WHIP,2015Q1,PERSONNEL COMPENSATION,"","FRY,COURTNEY",01/01/15,01/02/15,DEP OUTREACH DIR & MEM SER ADV,583.33,2014,"","","","FRY,COURTNEY"
,OFFICE OF THE MINORITY WHIP,2015Q1,PERSONNEL COMPENSATION,"","GOFF,SHUWANZA R",01/01/15,01/02/15,FLOOR DIRECTOR,583.33,2014,"","","","GOFF,SHUWANZA R"
,OFFICE OF THE MINORITY WHIP,2015Q1,PERSONNEL COMPENSATION,"","GRANT,KATHRYN L",01/01/15,01/02/15,COMM DIR AND SR ADVISOR,694.44,2014,"","","","GRANT,KATHRYN L"
,OFFICE OF THE MINORITY WHIP,2015Q1,PERSONNEL COMPENSATION,"","LEUSCHEN, JAMES P",01/01/15,01/02/15,SENIOR POLICY ADVISOR,715.56,2014,"","","","LEUSCHEN, JAMES P"
,OFFICE OF THE MINORITY WHIP,2015Q1,PERSONNEL COMPENSATION,"","LEUSCHEN, JAMES P",11/01/14,11/01/14,SENIOR POLICY ADVISOR (OTHER COMPENSATION),666.00,2014,"","","","LEUSCHEN, JAMES P"
,OFFICE OF THE MINORITY WHIP,2015Q1,PERSONNEL COMPENSATION,"","MACDONALD,CHARLENE",01/01/15,01/02/15,SENIOR POLICY ADVISOR,666.67,2014,"","","","MACDONALD,CHARLENE"
,OFFICE OF THE MINORITY WHIP,2015Q1,PERSONNEL COMPENSATION,"","MAHR,THOMAS",01/01/15,01/02/15,POLICY DIRECTOR,228.89,2014,"","","","MAHR,THOMAS"
,OFFICE OF THE MINORITY WHIP,2015Q1,PERSONNEL COMPENSATION,"","MARTINEZ, JAVIER D",01/01/15,01/02/15,DEP DIR OF MBR SERV & OUTR ADV,416.67,2014,"","","","MARTINEZ, JAVIER D"
,OFFICE OF THE MINORITY WHIP,2015Q1,PERSONNEL COMPENSATION,"","MITTLER,MICHELLE",01/01/15,01/02/15,DIR OF SCHEDLNG & SPEC EVENTS,388.89,2014,"","","","MITTLER,MICHELLE"
,OFFICE OF THE MINORITY WHIP,2015Q1,PERSONNEL COMPENSATION,"","NOTTER,JAMES P",01/01/15,01/02/15,SR. ADV & PERSONAL OFFICE DIR,83.33,2014,"","","","NOTTER,JAMES P"
,OFFICE OF THE MINORITY WHIP,2015Q1,PERSONNEL COMPENSATION,"","REPKO,MARY F",01/01/15,01/02/15,SENIOR POLICY ADVISOR,45.56,2014,"","","","REPKO,MARY F"
,OFFICE OF THE MINORITY WHIP,2015Q1,PERSONNEL COMPENSATION,"","RODRIGUEZ,FEDERICO J",01/01/15,01/02/15,STAFF ASSISTANT,138.89,2014,"","","","RODRIGUEZ,FEDERICO J"
,OFFICE OF THE MINORITY WHIP,2015Q1,PERSONNEL COMPENSATION,"","RODRIGUEZ,FEDERICO J",11/01/14,11/30/14,STAFF ASSISTANT (OVERTIME),216.34,2014,"","","","RODRIGUEZ,FEDERICO J"
,OFFICE OF THE MINORITY WHIP,2015Q1,PERSONNEL COMPENSATION,"","ROMICK, BRIAN",01/01/15,01/02/15,WHIP DIR AND SENIOR ADVISOR,145.56,2014,"","","","ROMICK, BRIAN"
,OFFICE OF THE MINORITY WHIP,2015Q1,PERSONNEL COMPENSATION,"","ROWE,DEBORAH M",01/01/15,01/02/15,STAFF ASSISTANT,138.89,2014,"","","","ROWE,DEBORAH M"
,OFFICE OF THE MINORITY WHIP,2015Q1,PERSONNEL COMPENSATION,"","ROWE,DEBORAH M",11/01/14,11/30/14,STAFF ASSISTANT (OVERTIME),667.06,2014,"","","","ROWE,DEBORAH M"
,OFFICE OF THE MINORITY WHIP,2015Q1,PERSONNEL COMPENSATION,"","SAEZ,MARIEL S",01/01/15,01/02/15,PRESS SECRETARY,383.33,2014,"","","","SAEZ,MARIEL S"
,OFFICE OF THE MINORITY WHIP,2015Q1,PERSONNEL COMPENSATION,"","SALAZAR, RAYMOND J",01/01/15,01/02/15,SPECIAL ASSISTANT,250.00,2014,"","","","SALAZAR, RAYMOND J"
,OFFICE OF THE MINORITY WHIP,2015Q1,PERSONNEL COMPENSATION,"","SHOTT,DANIEL",01/01/15,01/02/15,SENIOR FLOOR ASSISTANT,416.67,2014,"","","","SHOTT,DANIEL"
,OFFICE OF THE MINORITY WHIP,2015Q1,PERSONNEL COMPENSATION,"","SILVERBERG,DANIEL I",01/01/15,01/02/15,SENIOR POLICY ADVISOR,394.44,2014,"","","","SILVERBERG,DANIEL I"
,OFFICE OF THE MINORITY WHIP,2015Q1,PERSONNEL COMPENSATION,"","SILVERBERG,DANIEL I",11/01/14,11/30/14,SENIOR POLICY ADVISOR (OTHER COMPENSATION),"3,000.00",2014,"","","","SILVERBERG,DANIEL I"
,OFFICE OF THE MINORITY WHIP,2015Q1,PERSONNEL COMPENSATION,"","VALES,TARA J",01/01/15,01/02/15,PRESS AND RESEARCH ASSISTANT,194.44,2014,"","","","VALES,TARA J"
,OFFICE OF THE MINORITY WHIP,2015Q1,PERSONNEL COMPENSATION,"","VEAL,LATOYA S",01/01/15,01/02/15,MARYLAND PRESS SECRETARY,272.22,2014,"","","","VEAL,LATOYA S"
,OFFICE OF THE MINORITY WHIP,2015Q1,PERSONNEL COMPENSATION,"","WEISSMANN, ADAM",01/01/15,01/02/15,SPEECHWRITER,416.66,2014,"","","","WEISSMANN, ADAM"
,OFFICE OF THE MINORITY WHIP,2015Q1,TRAVEL,02-10,SLIVERBERG DANIEL L,11/24/14,11/24/14,TAXI/PARKING/TOLLS,8.01,2014,AP,Accounts payable,E0245053,SLIVERBERG DANIEL L
,OFFICE OF THE MINORITY WHIP,2015Q1,TRAVEL,02-10,SLIVERBERG DANIEL L,12/08/14,12/08/14,TAXI/PARKING/TOLLS,13.02,2014,AP,Accounts payable,E0245062,SLIVERBERG DANIEL L
,OFFICE OF THE MINORITY WHIP,2015Q1,TRAVEL,02-10,SLIVERBERG DANIEL L,12/17/14,12/17/14,TAXI/PARKING/TOLLS,11.98,2014,AP,Accounts payable,E0245063,SLIVERBERG DANIEL L
,OFFICE OF THE MINORITY WHIP,2015Q1,TRAVEL,02-10,SLIVERBERG DANIEL L,08/27/14,08/27/14,TAXI/PARKING/TOLLS,14.00,2014,AP,Accounts payable,E0245064,SLIVERBERG DANIEL L
,OFFICE OF THE MINORITY WHIP,2015Q1,TRAVEL,02-10,SLIVERBERG DANIEL L,10/15/14,10/15/14,TAXI/PARKING/TOLLS,13.60,2014,AP,Accounts payable,E0245072,SLIVERBERG DANIEL L
,OFFICE OF THE MINORITY WHIP,2015Q1,TRAVEL,02-10,SLIVERBERG DANIEL L,12/19/14,12/19/14,TAXI/PARKING/TOLLS,12.25,2014,AP,Accounts payable,E0245075,SLIVERBERG DANIEL L
,OFFICE OF THE MINORITY WHIP,2015Q1,TRAVEL,02-10,SLIVERBERG DANIEL L,09/30/14,09/30/14,TAXI/PARKING/TOLLS,9.00,2014,AP,Accounts payable,E0245077,SLIVERBERG DANIEL L
,OFFICE OF THE MINORITY WHIP,2015Q1,TRAVEL,02-10,SLIVERBERG DANIEL L,12/09/14,12/09/14,TAXI/PARKING/TOLLS,16.19,2014,AP,Accounts payable,E0245080,SLIVERBERG DANIEL L
,OFFICE OF THE MINORITY WHIP,2015Q1,TRAVEL,02-10,SLIVERBERG DANIEL L,09/29/14,09/29/14,TAXI/PARKING/TOLLS,18.00,2014,AP,Accounts payable,E0245084,SLIVERBERG DANIEL L
,OFFICE OF THE MINORITY WHIP,2015Q1,TRAVEL,02-10,SLIVERBERG DANIEL L,11/24/14,11/24/14,TAXI/PARKING/TOLLS,18.00,2014,AP,Accounts payable,E0245087,SLIVERBERG DANIEL L
,OFFICE OF THE MINORITY WHIP,2015Q1,TRAVEL,02-10,SLIVERBERG DANIEL L,07/16/14,07/16/14,TAXI/PARKING/TOLLS,11.44,2014,AP,Accounts payable,E0245088,SLIVERBERG DANIEL L
,OFFICE OF THE MINORITY WHIP,2015Q1,PRINTING AND REPRODUCTION,03-17,DAVID L ANDRUKITIS INC,12/31/14,12/31/14,PRINTING & REPRODUCTION,40.00,2014,AP,Accounts payable,E0258158,DAVID L ANDRUKITIS INC
,OFFICE OF THE MINORITY WHIP,2015Q1,SUPPLIES AND MATERIALS,01-20,CITI PCARD-ENVIRONMENT & ENERGY P,11/29/14,12/28/14,PUBLICATIONS/REFERENCE MAT'L,"4,332.50",2014,AP,Accounts payable,00772401,CITI PCARD-ENVIRONMENT & ENERGY P
,OFFICE OF THE MINORITY WHIP,2015Q1,SUPPLIES AND MATERIALS,01-20,CITI PCARD-FIREHOOK,11/29/14,12/28/14,FOOD & BEVERAGE,44.00,2014,AP,Accounts payable,00772401,CITI PCARD-FIREHOOK
,OFFICE OF THE MINORITY WHIP,2015Q1,SUPPLIES AND MATERIALS,01-20,CITI PCARD-PIZZA BOLI'S,11/29/14,12/28/14,FOOD & BEVERAGE,37.30,2014,AP,Accounts payable,00772401,CITI PCARD-PIZZA BOLI'S
,OFFICE OF THE MINORITY WHIP,2015Q1,SUPPLIES AND MATERIALS,01-20,CITI PCARD-TARGET,11/29/14,12/28/14,FOOD & BEVERAGE,"1,473.69",2014,AP,Accounts payable,00772401,CITI PCARD-TARGET
,OFFICE OF THE MINORITY WHIP,2015Q1,SUPPLIES AND MATERIALS,01-20,CITI PCARD-TARGET,11/29/14,12/28/14,HABITATION EXPENSE,501.80,2014,AP,Accounts payable,00772401,CITI PCARD-TARGET
,OFFICE OF THE MINORITY WHIP,2015Q1,SUPPLIES AND MATERIALS,01-20,CITI PCARD-THE OLD SIAM THAI CUIS,11/29/14,12/28/14,FOOD & BEVERAGE,267.79,2014,AP,Accounts payable,00772401,CITI PCARD-THE OLD SIAM THAI CUIS
,OFFICE OF THE MINORITY WHIP,2015Q1,SUPPLIES AND MATERIALS,02-18,CORCORAN CATERERS INC,12/31/14,12/31/14,FOOD & BEVERAGE,"15,000.00",2014,AP,Accounts payable,E0247334,CORCORAN CATERERS INC
,OFFICE OF THE MINORITY WHIP,2015Q1,SUPPLIES AND MATERIALS,03-13,INSIDE WASHINGTON PUBLISHERS LLC,11/23/14,11/23/14,PUBLICATIONS/REFERENCE MAT'L,418.33,2014,AP,Accounts payable,E0256723,INSIDE WASHINGTON PUBLISHERS LLC
,DEMOCRATIC CAUCUS,2015Q1,PERSONNEL COMPENSATION,"","ALVI,HINA R",01/03/15,03/31/15,SHARED EMPLOYEE,"7,333.33",2015,"","","","ALVI,HINA R"
,DEMOCRATIC CAUCUS,2015Q1,PERSONNEL COMPENSATION,"","ATTAPIT,SIRAT",01/03/15,03/31/15,SENIOR POLICY COUNSEL,"16,377.77",2015,"","","","ATTAPIT,SIRAT"
,DEMOCRATIC CAUCUS,2015Q1,PERSONNEL COMPENSATION,"","AVERY,SAMUEL R",01/03/15,03/31/15,PRESS ASSISTANT,"9,900.00",2015,"","","","AVERY,SAMUEL R"
,DEMOCRATIC CAUCUS,2015Q1,PERSONNEL COMPENSATION,"","BACKEMEYER,COURTNEY G",01/03/15,03/31/15,COMMUNICTNS DIR TO VICE CHRMN,"7,822.23",2015,"","","","BACKEMEYER,COURTNEY G"
,DEMOCRATIC CAUCUS,2015Q1,PERSONNEL COMPENSATION,"","CARRILLO,MANUEL J",01/03/15,03/31/15,OPERATIONS AND EVENTS COOR,"13,933.33",2015,"","","","CARRILLO,MANUEL J"
,DEMOCRATIC CAUCUS,2015Q1,PERSONNEL COMPENSATION,"","CASEY, KEVIN",01/03/15,03/31/15,POLICY DIRECTOR / VICE CHAIR,"21,266.67",2015,"","","","CASEY, KEVIN"
,DEMOCRATIC CAUCUS,2015Q1,PERSONNEL COMPENSATION,"","DAVALOS,LETICIA M",01/03/15,01/30/15,MEMBER OUTREACH ASSISTANT,"3,266.67",2015,"","","","DAVALOS,LETICIA M"
,DEMOCRATIC CAUCUS,2015Q1,PERSONNEL COMPENSATION,"","DAVALOS,LETICIA M",02/01/15,03/31/15,ADVISOR FOR MBR. SERVICES,"7,000.00",2015,"","","","DAVALOS,LETICIA M"
,DEMOCRATIC CAUCUS,2015Q1,PERSONNEL COMPENSATION,"","DELANEY, ERIC L",01/03/15,01/30/15,SR MBR OUTREACH ASST,"4,200.00",2015,"","","","DELANEY, ERIC L"
,DEMOCRATIC CAUCUS,2015Q1,PERSONNEL COMPENSATION,"","DELANEY, ERIC L",02/01/15,03/31/15,SR. ADVISOR FOR MBR SERV,"9,000.00",2015,"","","","DELANEY, ERIC L"
,DEMOCRATIC CAUCUS,2015Q1,PERSONNEL COMPENSATION,"","HANDVERGER,MATTHEW E",01/03/15,03/31/15,NEW MEDIA PRESS SECRETARY,"10,511.10",2015,"","","","HANDVERGER,MATTHEW E"
,DEMOCRATIC CAUCUS,2015Q1,PERSONNEL COMPENSATION,"","HERRERA,DANIEL",01/03/15,03/31/15,COMMUNICATIONS DIRECTOR,"17,062.23",2015,"","","","HERRERA,DANIEL"
,DEMOCRATIC CAUCUS,2015Q1,PERSONNEL COMPENSATION,"","HORI,CHERYL L",01/03/15,03/31/15,STAFF ASSISTANT,"6,844.43",2015,"","","","HORI,CHERYL L"
,DEMOCRATIC CAUCUS,2015Q1,PERSONNEL COMPENSATION,"","HORI,CHERYL L",01/01/15,02/28/15,STAFF ASSISTANT (OVERTIME),"1,862.72",2015,"","","","HORI,CHERYL L"
,DEMOCRATIC CAUCUS,2015Q1,PERSONNEL COMPENSATION,"","KEATING, KATHERINE E",01/03/15,03/31/15,SHARED EMPLOYEE,"18,577.77",2015,"","","","KEATING, KATHERINE E"
,DEMOCRATIC CAUCUS,2015Q1,PERSONNEL COMPENSATION,"","LOWENSTEIN,ADAM M",01/03/15,01/30/15,STAFF ASSISTANT,"3,111.11",2015,"","","","LOWENSTEIN,ADAM M"
,DEMOCRATIC CAUCUS,2015Q1,PERSONNEL COMPENSATION,"","MARGOWSKY,MIRANDA K",01/03/15,03/31/15,PRESS SECRETARY,"12,222.23",2015,"","","","MARGOWSKY,MIRANDA K"
,DEMOCRATIC CAUCUS,2015Q1,PERSONNEL COMPENSATION,"","MARTINEZ,GRISELLA M",01/03/15,03/31/15,POLICY DIRECTOR,"19,800.00",2015,"","","","MARTINEZ,GRISELLA M"
,DEMOCRATIC CAUCUS,2015Q1,PERSONNEL COMPENSATION,"","MCCLUSKIE,SEAN E",01/03/15,03/31/15,CHIEF OF STAFF,"41,873.33",2015,"","","","MCCLUSKIE,SEAN E"
,DEMOCRATIC CAUCUS,2015Q1,PERSONNEL COMPENSATION,"","PEREZ-SANCHEZ,NOEL",01/03/15,01/30/15,MEMBER OUTREACH ASSISTANT,"3,500.00",2015,"","","","PEREZ-SANCHEZ,NOEL"
,DEMOCRATIC CAUCUS,2015Q1,PERSONNEL COMPENSATION,"","PEREZ-SANCHEZ,NOEL",02/01/15,03/31/15,ADVISOR FOR MBR. SERVICES,"7,500.00",2015,"","","","PEREZ-SANCHEZ,NOEL"
,DEMOCRATIC CAUCUS,2015Q1,PERSONNEL COMPENSATION,"","RODRIGUEZ-CIAMPOLI,FABIOLA",01/03/15,03/31/15,EXECUTIVE DIRECTOR,"35,444.43",2015,"","","","RODRIGUEZ-CIAMPOLI,FABIOLA"
,DEMOCRATIC CAUCUS,2015Q1,PERSONNEL COMPENSATION,"","SACHSE,ANDREW M",01/03/15,03/31/15,STAFF ASSISTANT,"8,555.57",2015,"","","","SACHSE,ANDREW M"
,DEMOCRATIC CAUCUS,2015Q1,PERSONNEL COMPENSATION,"","SHARMA,MOH R",01/03/15,03/31/15,POLICY ADVISOR,"11,990.00",2015,"","","","SHARMA,MOH R"
,DEMOCRATIC CAUCUS,2015Q1,PERSONNEL COMPENSATION,"","SHLOMO,YACOV T",01/03/15,03/31/15,STAFF ASSISTANT,"6,844.43",2015,"","","","SHLOMO,YACOV T"
,DEMOCRATIC CAUCUS,2015Q1,PERSONNEL COMPENSATION,"","SHLOMO,YACOV T",01/01/15,02/28/15,STAFF ASSISTANT (OVERTIME),"1,686.04",2015,"","","","SHLOMO,YACOV T"
,DEMOCRATIC CAUCUS,2015Q1,PERSONNEL COMPENSATION,"","WOODRUM,JEREMY S",01/03/15,03/31/15,"LEGISLATIVE DIR., VICE CHAIR","10,511.10",2015,"","","","WOODRUM,JEREMY S"
,DEMOCRATIC CAUCUS,2015Q1,TRAVEL,02-05,"DELANEY, ERIC",01/30/15,01/30/15,GASOLINE,36.00,2015,AP,Accounts payable,E0243223,"DELANEY, ERIC"
,DEMOCRATIC CAUCUS,2015Q1,TRAVEL,02-05,"DELANEY, ERIC",01/28/15,01/30/15,TAXI/PARKING/TOLLS,24.00,2015,AP,Accounts payable,E0243223,"DELANEY, ERIC"
,DEMOCRATIC CAUCUS,2015Q1,TRAVEL,02-05,"SACHSE, ANDREW M",01/14/15,01/14/15,TAXI/PARKING/TOLLS,20.00,2015,AP,Accounts payable,E0243224,"SACHSE, ANDREW M"
,DEMOCRATIC CAUCUS,2015Q1,TRAVEL,02-05,"HANDVERGER, MATTHEW E",01/30/15,01/30/15,GASOLINE,49.75,2015,AP,Accounts payable,E0243226,"HANDVERGER, MATTHEW E"
,DEMOCRATIC CAUCUS,2015Q1,TRAVEL,02-05,"HERRERA, DANIEL",01/27/15,01/30/15,GASOLINE,48.01,2015,AP,Accounts payable,E0243229,"HERRERA, DANIEL"
,DEMOCRATIC CAUCUS,2015Q1,TRAVEL,02-05,"HERRERA, DANIEL",02/03/15,02/03/15,PRIVATE AUTO MILEAGE,155.68,2015,AP,Accounts payable,E0243229,"HERRERA, DANIEL"
,DEMOCRATIC CAUCUS,2015Q1,TRAVEL,02-05,"HERRERA, DANIEL",01/27/15,01/30/15,TAXI/PARKING/TOLLS,44.00,2015,AP,Accounts payable,E0243229,"HERRERA, DANIEL"
,DEMOCRATIC CAUCUS,2015Q1,TRAVEL,02-05,"RODRIGUEZ-CIAMPOLI,FABIOLA",01/26/15,01/30/15,CAR RENTAL,"2,299.14",2015,AP,Accounts payable,E0243230,"RODRIGUEZ-CIAMPOLI,FABIOLA"
,DEMOCRATIC CAUCUS,2015Q1,TRAVEL,02-05,"RODRIGUEZ-CIAMPOLI,FABIOLA",01/14/15,01/14/15,TAXI/PARKING/TOLLS,20.00,2015,AP,Accounts payable,E0243230,"RODRIGUEZ-CIAMPOLI,FABIOLA"
,DEMOCRATIC CAUCUS,2015Q1,TRAVEL,02-06,"PEREZ-SANCHEZ,NOEL",01/14/15,01/30/15,COMMERCIAL TRANSPORTATION,"2,563.00",2015,AP,Accounts payable,E0243227,"PEREZ-SANCHEZ,NOEL"
,DEMOCRATIC CAUCUS,2015Q1,TRAVEL,02-06,"PEREZ-SANCHEZ,NOEL",01/30/15,01/30/15,TAXI/PARKING/TOLLS,31.11,2015,AP,Accounts payable,E0243227,"PEREZ-SANCHEZ,NOEL"
,DEMOCRATIC CAUCUS,2015Q1,TRAVEL,02-06,"OH,ESTHER H",01/28/15,02/01/15,TRAVEL SUBSISTENCE,173.80,2015,AP,Accounts payable,E0244080,"OH,ESTHER H"
,DEMOCRATIC CAUCUS,2015Q1,TRAVEL,02-11,"LOWENSTEIN,ADAM M",01/27/15,01/30/15,TAXI/PARKING/TOLLS,56.21,2015,AP,Accounts payable,00774105,"LOWENSTEIN,ADAM M"
,DEMOCRATIC CAUCUS,2015Q1,"RENT, COMMUNICATION, UTILITIES",03-19,CITI PCARD-USPS,01/29/15,02/28/15,POSTAGE / COURIER / BOX RENTAL,101.37,2015,AP,Accounts payable,00783862,CITI PCARD-USPS
,DEMOCRATIC CAUCUS,2015Q1,OTHER SERVICES,02-19,CITI PCARD-CLASSICLEANERS-LONGWOR,01/03/15,01/28/15,LAUNDRY SERVICES,41.98,2015,AP,Accounts payable,00775819,CITI PCARD-CLASSICLEANERS-LONGWOR
,DEMOCRATIC CAUCUS,2015Q1,OTHER SERVICES,03-19,CITI PCARD-CLASSICLEANERS-LONGWOR,01/29/15,02/28/15,LAUNDRY SERVICES,167.00,2015,AP,Accounts payable,00783862,CITI PCARD-CLASSICLEANERS-LONGWOR
,DEMOCRATIC CAUCUS,2015Q1,SUPPLIES AND MATERIALS,02-05,"MARGOWSKY, MIRANDA K",01/28/15,01/28/15,FOOD & BEVERAGE,85.75,2015,AP,Accounts payable,E0243228,"MARGOWSKY, MIRANDA K"
,DEMOCRATIC CAUCUS,2015Q1,SUPPLIES AND MATERIALS,02-05,"RODRIGUEZ-CIAMPOLI,FABIOLA",01/24/15,01/24/15,FOOD & BEVERAGE,203.53,2015,AP,Accounts payable,E0243230,"RODRIGUEZ-CIAMPOLI,FABIOLA"
,DEMOCRATIC CAUCUS,2015Q1,SUPPLIES AND MATERIALS,02-19,CITI PCARD-BETHESDA BAGELS OF DUP,01/03/15,01/28/15,FOOD & BEVERAGE,"1,970.87",2015,AP,Accounts payable,00775819,CITI PCARD-BETHESDA BAGELS OF DUP
,DEMOCRATIC CAUCUS,2015Q1,SUPPLIES AND MATERIALS,02-19,CITI PCARD-CARMINE S,01/03/15,01/28/15,FOOD & BEVERAGE,390.43,2015,AP,Accounts payable,00775819,CITI PCARD-CARMINE S
,DEMOCRATIC CAUCUS,2015Q1,SUPPLIES AND MATERIALS,02-19,CITI PCARD-CVS/PHARMACY,01/03/15,01/28/15,FOOD & BEVERAGE,6.33,2015,AP,Accounts payable,00775819,CITI PCARD-CVS/PHARMACY
,DEMOCRATIC CAUCUS,2015Q1,SUPPLIES AND MATERIALS,02-19,CITI PCARD-FINANCIAL TIMES LTD,01/03/15,01/28/15,PUBLICATIONS/REFERENCE MAT'L,420.89,2015,AP,Accounts payable,00775819,CITI PCARD-FINANCIAL TIMES LTD
,DEMOCRATIC CAUCUS,2015Q1,SUPPLIES AND MATERIALS,02-19,CITI PCARD-HARRIS TEETER,01/03/15,01/28/15,FOOD & BEVERAGE,756.61,2015,AP,Accounts payable,00775819,CITI PCARD-HARRIS TEETER
,DEMOCRATIC CAUCUS,2015Q1,SUPPLIES AND MATERIALS,02-19,CITI PCARD-HEALTH AFFAIRS,01/03/15,01/28/15,PUBLICATIONS/REFERENCE MAT'L,144.00,2015,AP,Accounts payable,00775819,CITI PCARD-HEALTH AFFAIRS
,DEMOCRATIC CAUCUS,2015Q1,SUPPLIES AND MATERIALS,02-19,CITI PCARD-LA TIMES SUBSCRIPTION,01/03/15,01/28/15,PUBLICATIONS/REFERENCE MAT'L,11.96,2015,AP,Accounts payable,00775819,CITI PCARD-LA TIMES SUBSCRIPTION
,DEMOCRATIC CAUCUS,2015Q1,SUPPLIES AND MATERIALS,02-19,CITI PCARD-MAILCHIMP,01/03/15,01/28/15,PUBLICATIONS/REFERENCE MAT'L,30.00,2015,AP,Accounts payable,00775819,CITI PCARD-MAILCHIMP
,DEMOCRATIC CAUCUS,2015Q1,SUPPLIES AND MATERIALS,02-19,CITI PCARD-SAINT GERMAIN CATERING,01/03/15,01/28/15,FOOD & BEVERAGE,705.00,2015,AP,Accounts payable,00775819,CITI PCARD-SAINT GERMAIN CATERING
,DEMOCRATIC CAUCUS,2015Q1,SUPPLIES AND MATERIALS,02-19,CITI PCARD-SWEETGREEN CH,01/03/15,01/28/15,FOOD & BEVERAGE,236.83,2015,AP,Accounts payable,00775819,CITI PCARD-SWEETGREEN CH
,DEMOCRATIC CAUCUS,2015Q1,SUPPLIES AND MATERIALS,02-19,CITI PCARD-THEECONOMIST NEWSPAPER,01/03/15,01/28/15,PUBLICATIONS/REFERENCE MAT'L,158.63,2015,AP,Accounts payable,00775819,CITI PCARD-THEECONOMIST NEWSPAPER
,DEMOCRATIC CAUCUS,2015Q1,SUPPLIES AND MATERIALS,02-19,CITI PCARD-TRADER JOE'S,01/03/15,01/28/15,FOOD & BEVERAGE,60.58,2015,AP,Accounts payable,00775819,CITI PCARD-TRADER JOE'S
,DEMOCRATIC CAUCUS,2015Q1,SUPPLIES AND MATERIALS,03-09,DEER PARK,01/31/15,01/31/15,WATER,29.99,2015,AP,Accounts payable,00779077,DEER PARK
,DEMOCRATIC CAUCUS,2015Q1,SUPPLIES AND MATERIALS,03-19,CITI PCARD-BETHESDA BAGELS OF DUP,01/29/15,02/28/15,FOOD & BEVERAGE,"2,328.13",2015,AP,Accounts payable,00783862,CITI PCARD-BETHESDA BAGELS OF DUP
,DEMOCRATIC CAUCUS,2015Q1,SUPPLIES AND MATERIALS,03-19,CITI PCARD-CORNER BAKERY,01/29/15,02/28/15,FOOD & BEVERAGE,"2,540.60",2015,AP,Accounts payable,00783862,CITI PCARD-CORNER BAKERY
,DEMOCRATIC CAUCUS,2015Q1,SUPPLIES AND MATERIALS,03-19,CITI PCARD-FIREHOOK - CAPITOL HIL,01/29/15,02/28/15,FOOD & BEVERAGE,105.00,2015,AP,Accounts payable,00783862,CITI PCARD-FIREHOOK - CAPITOL HIL
,DEMOCRATIC CAUCUS,2015Q1,SUPPLIES AND MATERIALS,03-19,CITI PCARD-HARRIS TEETER,01/29/15,02/28/15,FOOD & BEVERAGE,839.36,2015,AP,Accounts payable,00783862,CITI PCARD-HARRIS TEETER
,DEMOCRATIC CAUCUS,2015Q1,SUPPLIES AND MATERIALS,03-19,CITI PCARD-LA TIMES SUBSCRIPTION,01/29/15,02/28/15,PUBLICATIONS/REFERENCE MAT'L,11.96,2015,AP,Accounts payable,00783862,CITI PCARD-LA TIMES SUBSCRIPTION
,DEMOCRATIC CAUCUS,2015Q1,SUPPLIES AND MATERIALS,03-19,CITI PCARD-MAILCHIMP,01/29/15,02/28/15,PUBLICATIONS/REFERENCE MAT'L,30.00,2015,AP,Accounts payable,00783862,CITI PCARD-MAILCHIMP
,DEMOCRATIC CAUCUS,2015Q1,PERSONNEL COMPENSATION,"","ALVI,HINA R",01/01/15,01/02/15,SHARED EMPLOYEE,166.67,2014,"","","","ALVI,HINA R"
,DEMOCRATIC CAUCUS,2015Q1,PERSONNEL COMPENSATION,"","ATTAPIT,SIRAT",01/01/15,01/02/15,SENIOR POLICY COUNSEL,372.22,2014,"","","","ATTAPIT,SIRAT"
,DEMOCRATIC CAUCUS,2015Q1,PERSONNEL COMPENSATION,"","AVERY,SAMUEL R",01/01/15,01/02/15,PRESS ASSISTANT,225.00,2014,"","","","AVERY,SAMUEL R"
,DEMOCRATIC CAUCUS,2015Q1,PERSONNEL COMPENSATION,"","BACKEMEYER,COURTNEY G",01/01/15,01/02/15,COMMUNICTNS DIR TO VICE CHRMN,177.78,2014,"","","","BACKEMEYER,COURTNEY G"
,DEMOCRATIC CAUCUS,2015Q1,PERSONNEL COMPENSATION,"","CARRILLO,MANUEL J",01/01/15,01/02/15,OPERATIONS AND EVENTS COOR,316.67,2014,"","","","CARRILLO,MANUEL J"
,DEMOCRATIC CAUCUS,2015Q1,PERSONNEL COMPENSATION,"","CASEY, KEVIN",01/01/15,01/02/15,POLICY DIRECTOR / VICE CHAIR,483.33,2014,"","","","CASEY, KEVIN"
,DEMOCRATIC CAUCUS,2015Q1,PERSONNEL COMPENSATION,"","DAVALOS,LETICIA M",01/01/15,01/02/15,MEMBER OUTREACH ASSISTANT,233.33,2014,"","","","DAVALOS,LETICIA M"
,DEMOCRATIC CAUCUS,2015Q1,PERSONNEL COMPENSATION,"","DELANEY, ERIC L",01/01/15,01/02/15,SR MBR OUTREACH ASST,300.00,2014,"","","","DELANEY, ERIC L"
,DEMOCRATIC CAUCUS,2015Q1,PERSONNEL COMPENSATION,"","HANDVERGER,MATTHEW E",01/01/15,01/02/15,NEW MEDIA PRESS SECRETARY,238.89,2014,"","","","HANDVERGER,MATTHEW E"
,DEMOCRATIC CAUCUS,2015Q1,PERSONNEL COMPENSATION,"","HERRERA,DANIEL",01/01/15,01/02/15,COMMUNICATIONS DIRECTOR,387.78,2014,"","","","HERRERA,DANIEL"
,DEMOCRATIC CAUCUS,2015Q1,PERSONNEL COMPENSATION,"","HORI,CHERYL L",01/01/15,01/02/15,STAFF ASSISTANT,155.56,2014,"","","","HORI,CHERYL L"
,DEMOCRATIC CAUCUS,2015Q1,PERSONNEL COMPENSATION,"","HORI,CHERYL L",12/01/14,12/31/14,STAFF ASSISTANT (OVERTIME),148.01,2014,"","","","HORI,CHERYL L"
,DEMOCRATIC CAUCUS,2015Q1,PERSONNEL COMPENSATION,"","KEATING, KATHERINE E",01/01/15,01/02/15,SHARED EMPLOYEE,422.22,2014,"","","","KEATING, KATHERINE E"
,DEMOCRATIC CAUCUS,2015Q1,PERSONNEL COMPENSATION,"","LOWENSTEIN,ADAM M",01/01/15,01/02/15,STAFF ASSISTANT,222.22,2014,"","","","LOWENSTEIN,ADAM M"
,DEMOCRATIC CAUCUS,2015Q1,PERSONNEL COMPENSATION,"","MARGOWSKY,MIRANDA K",01/01/15,01/02/15,PRESS SECRETARY,277.78,2014,"","","","MARGOWSKY,MIRANDA K"
,DEMOCRATIC CAUCUS,2015Q1,PERSONNEL COMPENSATION,"","MARTINEZ,GRISELLA M",01/01/15,01/02/15,POLICY DIRECTOR,450.00,2014,"","","","MARTINEZ,GRISELLA M"
,DEMOCRATIC CAUCUS,2015Q1,PERSONNEL COMPENSATION,"","MCCLUSKIE,SEAN E",01/01/15,01/02/15,CHIEF OF STAFF,951.67,2014,"","","","MCCLUSKIE,SEAN E"
,DEMOCRATIC CAUCUS,2015Q1,PERSONNEL COMPENSATION,"","PEREZ-SANCHEZ,NOEL",01/01/15,01/02/15,MEMBER OUTREACH ASSISTANT,250.00,2014,"","","","PEREZ-SANCHEZ,NOEL"
,DEMOCRATIC CAUCUS,2015Q1,PERSONNEL COMPENSATION,"","RODRIGUEZ-CIAMPOLI,FABIOLA",01/01/15,01/02/15,EXECUTIVE DIRECTOR,805.56,2014,"","","","RODRIGUEZ-CIAMPOLI,FABIOLA"
,DEMOCRATIC CAUCUS,2015Q1,PERSONNEL COMPENSATION,"","SACHSE,ANDREW M",01/01/15,01/02/15,STAFF ASSISTANT,194.44,2014,"","","","SACHSE,ANDREW M"
,DEMOCRATIC CAUCUS,2015Q1,PERSONNEL COMPENSATION,"","SHARMA,MOH R",01/01/15,01/02/15,POLICY ADVISOR,272.50,2014,"","","","SHARMA,MOH R"
,DEMOCRATIC CAUCUS,2015Q1,PERSONNEL COMPENSATION,"","SHLOMO,YACOV T",01/01/15,01/02/15,STAFF ASSISTANT,155.56,2014,"","","","SHLOMO,YACOV T"
,DEMOCRATIC CAUCUS,2015Q1,PERSONNEL COMPENSATION,"","SHLOMO,YACOV T",12/01/14,12/31/14,STAFF ASSISTANT (OVERTIME),166.58,2014,"","","","SHLOMO,YACOV T"
,DEMOCRATIC CAUCUS,2015Q1,PERSONNEL COMPENSATION,"","WOODRUM,JEREMY S",01/01/15,01/02/15,"LEGISLATIVE DIR., VICE CHAIR",238.89,2014,"","","","WOODRUM,JEREMY S"
,DEMOCRATIC CAUCUS,2015Q1,OTHER SERVICES,01-20,CITI PCARD-CLASSICLEANERS-LONGWOR,11/29/14,12/28/14,LAUNDRY SERVICES,147.00,2014,AP,Accounts payable,00772401,CITI PCARD-CLASSICLEANERS-LONGWOR
,DEMOCRATIC CAUCUS,2015Q1,SUPPLIES AND MATERIALS,01-20,DEER PARK,11/30/14,11/30/14,WATER,29.99,2014,AP,Accounts payable,00769083,DEER PARK
,DEMOCRATIC CAUCUS,2015Q1,SUPPLIES AND MATERIALS,01-20,CITI PCARD-BETHESDA BAGELS OF DUP,11/29/14,12/28/14,FOOD & BEVERAGE,"7,733.42",2014,AP,Accounts payable,00772401,CITI PCARD-BETHESDA BAGELS OF DUP
,DEMOCRATIC CAUCUS,2015Q1,SUPPLIES AND MATERIALS,01-20,CITI PCARD-CAPITOL HOST (RIDGEWEL,11/29/14,12/28/14,FOOD & BEVERAGE,64.65,2014,AP,Accounts payable,00772401,CITI PCARD-CAPITOL HOST (RIDGEWEL
,DEMOCRATIC CAUCUS,2015Q1,SUPPLIES AND MATERIALS,01-20,CITI PCARD-HARRIS TEETER,11/29/14,12/28/14,FOOD & BEVERAGE,187.68,2014,AP,Accounts payable,00772401,CITI PCARD-HARRIS TEETER
,DEMOCRATIC CAUCUS,2015Q1,SUPPLIES AND MATERIALS,01-20,CITI PCARD-HYATT REGENCY WASHINGT,11/29/14,12/28/14,FOOD & BEVERAGE,-322.65,2014,AP,Accounts payable,00772401,CITI PCARD-HYATT REGENCY WASHINGT
,DEMOCRATIC CAUCUS,2015Q1,SUPPLIES AND MATERIALS,01-20,CITI PCARD-IN CATERING BY AVALON,11/29/14,12/28/14,FOOD & BEVERAGE,"20,836.90",2014,AP,Accounts payable,00772401,CITI PCARD-IN CATERING BY AVALON
,DEMOCRATIC CAUCUS,2015Q1,SUPPLIES AND MATERIALS,01-20,CITI PCARD-LA TIMES SUBSCRIPTION,11/29/14,12/28/14,PUBLICATIONS/REFERENCE MAT'L,11.96,2014,AP,Accounts payable,00772401,CITI PCARD-LA TIMES SUBSCRIPTION
,DEMOCRATIC CAUCUS,2015Q1,SUPPLIES AND MATERIALS,01-20,CITI PCARD-LEADERSHIP DIRECTORIES,11/29/14,12/28/14,PUBLICATIONS/REFERENCE MAT'L,"1,190.00",2014,AP,Accounts payable,00772401,CITI PCARD-LEADERSHIP DIRECTORIES
,DEMOCRATIC CAUCUS,2015Q1,SUPPLIES AND MATERIALS,01-20,CITI PCARD-PIKTOCHAR,11/29/14,12/28/14,PUBLICATIONS/REFERENCE MAT'L,39.99,2014,AP,Accounts payable,00772401,CITI PCARD-PIKTOCHAR
,DEMOCRATIC CAUCUS,2015Q1,SUPPLIES AND MATERIALS,01-20,CITI PCARD-SAINT GERMAIN CATERING,11/29/14,12/28/14,FOOD & BEVERAGE,"4,092.96",2014,AP,Accounts payable,00772401,CITI PCARD-SAINT GERMAIN CATERING
,DEMOCRATIC CAUCUS,2015Q1,SUPPLIES AND MATERIALS,01-20,CITI PCARD-THEECONOMIST NEWSPAPER,11/29/14,12/28/14,PUBLICATIONS/REFERENCE MAT'L,163.91,2014,AP,Accounts payable,00772401,CITI PCARD-THEECONOMIST NEWSPAPER
,DEMOCRATIC CAUCUS,2015Q1,SUPPLIES AND MATERIALS,01-20,"CITI PCARD-WE, THE PIZZA",11/29/14,12/28/14,FOOD & BEVERAGE,88.80,2014,AP,Accounts payable,00772401,"CITI PCARD-WE, THE PIZZA"
,DEMOCRATIC CAUCUS,2015Q1,SUPPLIES AND MATERIALS,01-22,DEER PARK,12/31/14,12/31/14,WATER,29.99,2014,AP,Accounts payable,00772422,DEER PARK
,DEMOCRATIC CAUCUS,2015Q1,SUPPLIES AND MATERIALS,02-13,TVEYES INC,01/01/15,12/31/15,PUBLICATIONS/REFERENCE MAT'L,"1,200.00",2014,AP,Accounts payable,E0246852,TVEYES INC
,REPUBLICAN CONFERENCE,2015Q1,PERSONNEL COMPENSATION,"","BETZ, KIMBERLY S",01/03/15,01/30/15,POLICY DIRECTOR,"6,666.67",2015,"","","","BETZ, KIMBERLY S"
,REPUBLICAN CONFERENCE,2015Q1,PERSONNEL COMPENSATION,"","CROCKER,NICHOLAS L",01/12/15,02/28/15,FELLOW,"2,450.00",2015,"","","","CROCKER,NICHOLAS L"
,REPUBLICAN CONFERENCE,2015Q1,PERSONNEL COMPENSATION,"","CROCKER,NICHOLAS L",03/01/15,03/31/15,STAFF ASSISTANT,"2,916.67",2015,"","","","CROCKER,NICHOLAS L"
,REPUBLICAN CONFERENCE,2015Q1,PERSONNEL COMPENSATION,"","DAINES,ANNE C",01/10/15,03/31/15,FELLOW,"3,458.33",2015,"","","","DAINES,ANNE C"
,REPUBLICAN CONFERENCE,2015Q1,PERSONNEL COMPENSATION,"","DEUTSCH,JEREMY",01/03/15,03/31/15,CHIEF OF STAFF,"29,722.23",2015,"","","","DEUTSCH,JEREMY"
,REPUBLICAN CONFERENCE,2015Q1,PERSONNEL COMPENSATION,"","DEUTSCH,JEREMY",02/01/15,02/28/15,CHIEF OF STAFF (OTHER COMPENSATION),-41.56,2015,"","","","DEUTSCH,JEREMY"
,REPUBLICAN CONFERENCE,2015Q1,PERSONNEL COMPENSATION,"","DEUTSCH,JEREMY",02/01/15,02/28/15,CHIEF OF STAFF (OTHER COMPENSATION),41.56,2015,"","","","DEUTSCH,JEREMY"
,REPUBLICAN CONFERENCE,2015Q1,PERSONNEL COMPENSATION,"","DUPPLER,MARTHA C",01/03/15,03/31/15,COALITIONS DIRECTOR,"20,777.77",2015,"","","","DUPPLER,MARTHA C"
,REPUBLICAN CONFERENCE,2015Q1,PERSONNEL COMPENSATION,"","GAITAN,WADI",01/03/15,03/31/15,PRESS SECRETARY,"13,929.67",2015,"","","","GAITAN,WADI"
,REPUBLICAN CONFERENCE,2015Q1,PERSONNEL COMPENSATION,"","GILSON,LOUISA H",01/03/15,03/31/15,STAFF ASSISTANT,"7,427.77",2015,"","","","GILSON,LOUISA H"
,REPUBLICAN CONFERENCE,2015Q1,PERSONNEL COMPENSATION,"","HARRIS,AMBER E",01/03/15,03/31/15,FINANCE ASSISTANT,"2,200.00",2015,"","","","HARRIS,AMBER E"
,REPUBLICAN CONFERENCE,2015Q1,PERSONNEL COMPENSATION,"","HODSON,NATHAN M",01/03/15,01/30/15,DIRECTOR OF COMMUNICATIONS,"10,344.44",2015,"","","","HODSON,NATHAN M"
,REPUBLICAN CONFERENCE,2015Q1,PERSONNEL COMPENSATION,"","HODSON,NATHAN M",02/01/15,03/31/15,DEPUTY CHIEF OF STAFF,"22,166.66",2015,"","","","HODSON,NATHAN M"
,REPUBLICAN CONFERENCE,2015Q1,PERSONNEL COMPENSATION,"","LITMAN,RIVA",01/03/15,01/30/15,DEPUTY COMM DIRECTOR/PRESS SEC,"8,877.78",2015,"","","","LITMAN,RIVA"
,REPUBLICAN CONFERENCE,2015Q1,PERSONNEL COMPENSATION,"","LITMAN,RIVA",02/01/15,03/31/15,COMMUNICATIONS DIRECTOR,"19,333.34",2015,"","","","LITMAN,RIVA"
,REPUBLICAN CONFERENCE,2015Q1,PERSONNEL COMPENSATION,"","MAGALLANES, NICOLAS",02/01/15,03/31/15,SENIOR ADVISOR,"16,340.00",2015,"","","","MAGALLANES, NICOLAS"
,REPUBLICAN CONFERENCE,2015Q1,PERSONNEL COMPENSATION,"","MARK,REBECCA",01/03/15,03/31/15,SR. ADVISOR TECH POLICY/WOMEN,"16,944.43",2015,"","","","MARK,REBECCA"
,REPUBLICAN CONFERENCE,2015Q1,PERSONNEL COMPENSATION,"","MCMULLIN,DAVID E",01/07/15,03/31/15,POLICY DIRECTOR,"31,294.45",2015,"","","","MCMULLIN,DAVID E"
,REPUBLICAN CONFERENCE,2015Q1,PERSONNEL COMPENSATION,"","MURPHY,SHAUGHNESSY P",01/03/15,03/31/15,DIRECTOR OF MEMBER SERVICES,"32,941.66",2015,"","","","MURPHY,SHAUGHNESSY P"
,REPUBLICAN CONFERENCE,2015Q1,PERSONNEL COMPENSATION,"","REAGAN,AMANDA M",01/03/15,02/28/15,EXTERNAL RELATIONS COORDINATOR,"8,055.56",2015,"","","","REAGAN,AMANDA M"
,REPUBLICAN CONFERENCE,2015Q1,PERSONNEL COMPENSATION,"","ROSS, JOHN E",01/03/15,03/31/15,FINANCE DIRECTOR,"2,652.77",2015,"","","","ROSS, JOHN E"
,REPUBLICAN CONFERENCE,2015Q1,PERSONNEL COMPENSATION,"","SCAGNELLI,AUDREY",01/03/15,01/30/15,PRESS ASSISTANT,"1,972.44",2015,"","","","SCAGNELLI,AUDREY"
,REPUBLICAN CONFERENCE,2015Q1,PERSONNEL COMPENSATION,"","SMENTEK,DAVID",01/03/15,03/31/15,POLICY COORDINATOR,"9,027.77",2015,"","","","SMENTEK,DAVID"
,REPUBLICAN CONFERENCE,2015Q1,PERSONNEL COMPENSATION,"","STEVENS,PAMELA R",01/03/15,03/31/15,DIRECTOR OF MEDIA AFFAIRS,"30,555.57",2015,"","","","STEVENS,PAMELA R"
,REPUBLICAN CONFERENCE,2015Q1,PERSONNEL COMPENSATION,"","SUNDAY,JESSICA M",01/03/15,03/31/15,SCHEDULER,"8,185.22",2015,"","","","SUNDAY,JESSICA M"
,REPUBLICAN CONFERENCE,2015Q1,PERSONNEL COMPENSATION,"","THORNE, DRAY A",01/03/15,03/31/15,SYSTEMS ADMINISTRATOR,"2,933.33",2015,"","","","THORNE, DRAY A"
,REPUBLICAN CONFERENCE,2015Q1,PERSONNEL COMPENSATION,"","WYCKOFF,SORELLE C",01/03/15,03/31/15,COMMUNICATIONS ASSISTANT,"8,210.77",2015,"","","","WYCKOFF,SORELLE C"
,REPUBLICAN CONFERENCE,2015Q1,TRAVEL,01-26,"STEVENS, PAMELA R",01/21/15,01/22/15,TAXI/PARKING/TOLLS,83.03,2015,AP,Accounts payable,E0239581,"STEVENS, PAMELA R"
,REPUBLICAN CONFERENCE,2015Q1,TRAVEL,01-26,"LITMAN, RIVA",01/21/15,01/21/15,TAXI/PARKING/TOLLS,11.12,2015,AP,Accounts payable,E0239583,"LITMAN, RIVA"
,REPUBLICAN CONFERENCE,2015Q1,TRAVEL,01-26,"LITMAN, RIVA",01/20/15,01/20/15,TRAVEL SUBSISTENCE,33.75,2015,AP,Accounts payable,E0239583,"LITMAN, RIVA"
,REPUBLICAN CONFERENCE,2015Q1,TRAVEL,01-27,"WYCKOFF, SORELLE C",01/21/15,01/21/15,TAXI/PARKING/TOLLS,5.82,2015,AP,Accounts payable,E0239582,"WYCKOFF, SORELLE C"
,REPUBLICAN CONFERENCE,2015Q1,TRAVEL,01-29,"CROCKER, NICHOLAS L",01/21/15,01/21/15,TAXI/PARKING/TOLLS,15.95,2015,AP,Accounts payable,E0241259,"CROCKER, NICHOLAS L"
,REPUBLICAN CONFERENCE,2015Q1,TRAVEL,03-26,"MARK,REBECCA",03/13/15,03/15/15,COMMERCIAL TRANSPORTATION,508.20,2015,AP,Accounts payable,E0261701,"MARK,REBECCA"
,REPUBLICAN CONFERENCE,2015Q1,TRAVEL,03-26,"MARK,REBECCA",03/13/15,03/15/15,LODGING,901.00,2015,AP,Accounts payable,E0261701,"MARK,REBECCA"
,REPUBLICAN CONFERENCE,2015Q1,TRAVEL,03-26,"MARK,REBECCA",03/13/15,03/15/15,TAXI/PARKING/TOLLS,101.51,2015,AP,Accounts payable,E0261701,"MARK,REBECCA"
,REPUBLICAN CONFERENCE,2015Q1,"RENT, COMMUNICATION, UTILITIES",02-24,COVEREDGE INC,02/17/15,02/17/15,RECORDING (OUTSIDE),750.00,2015,AP,Accounts payable,E0249266,COVEREDGE INC
,REPUBLICAN CONFERENCE,2015Q1,OTHER SERVICES,03-09,ODONNELL & ASSOC LTD,01/01/15,01/31/15,TRAINING,"2,000.00",2015,AP,Accounts payable,E0254309,ODONNELL & ASSOC LTD
,REPUBLICAN CONFERENCE,2015Q1,SUPPLIES AND MATERIALS,01-13,HAGUE QUALITY WATER OF MD INC,01/06/15,02/05/15,WATER,63.00,2015,AP,Accounts payable,E0234947,HAGUE QUALITY WATER OF MD INC
,REPUBLICAN CONFERENCE,2015Q1,SUPPLIES AND MATERIALS,01-13,ARAMARK REFRESHMENT SERVICES,01/09/15,01/09/15,FOOD & BEVERAGE,160.35,2015,AP,Accounts payable,E0234948,ARAMARK REFRESHMENT SERVICES
,REPUBLICAN CONFERENCE,2015Q1,SUPPLIES AND MATERIALS,01-13,"HODSON, NATHAN",01/09/15,01/09/15,FOOD & BEVERAGE,434.09,2015,AP,Accounts payable,E0234949,"HODSON, NATHAN"
,REPUBLICAN CONFERENCE,2015Q1,SUPPLIES AND MATERIALS,01-13,"REAGAN, AMANDA M",01/12/15,01/12/15,FOOD & BEVERAGE,950.45,2015,AP,Accounts payable,E0235248,"REAGAN, AMANDA M"
,REPUBLICAN CONFERENCE,2015Q1,SUPPLIES AND MATERIALS,01-16,CAPITOL HOST,01/05/15,01/05/15,FOOD & BEVERAGE,585.00,2015,AP,Accounts payable,E0236636,CAPITOL HOST
,REPUBLICAN CONFERENCE,2015Q1,SUPPLIES AND MATERIALS,01-26,RIDGEWELLS CATERING,01/09/15,01/09/15,FOOD & BEVERAGE,687.00,2015,AP,Accounts payable,E0239501,RIDGEWELLS CATERING
,REPUBLICAN CONFERENCE,2015Q1,SUPPLIES AND MATERIALS,01-26,RIDGEWELLS CATERING,01/07/15,01/07/15,FOOD & BEVERAGE,687.00,2015,AP,Accounts payable,E0239502,RIDGEWELLS CATERING
,REPUBLICAN CONFERENCE,2015Q1,SUPPLIES AND MATERIALS,01-26,ARAMARK REFRESHMENT SERVICES,01/04/15,01/04/15,FOOD & BEVERAGE,104.00,2015,AP,Accounts payable,E0239585,ARAMARK REFRESHMENT SERVICES
,REPUBLICAN CONFERENCE,2015Q1,SUPPLIES AND MATERIALS,02-02,CAPITOL HOST,01/13/15,01/13/15,FOOD & BEVERAGE,687.00,2015,AP,Accounts payable,E0241737,CAPITOL HOST
,REPUBLICAN CONFERENCE,2015Q1,SUPPLIES AND MATERIALS,02-05,CAPITOL HOST,01/27/15,01/27/15,FOOD & BEVERAGE,687.00,2015,AP,Accounts payable,E0243802,CAPITOL HOST
,REPUBLICAN CONFERENCE,2015Q1,SUPPLIES AND MATERIALS,02-05,"HODSON, NATHAN",01/30/15,01/30/15,FOOD & BEVERAGE,172.70,2015,AP,Accounts payable,E0243803,"HODSON, NATHAN"
,REPUBLICAN CONFERENCE,2015Q1,SUPPLIES AND MATERIALS,02-09,HAGUE QUALITY WATER OF MD INC,02/01/15,02/28/15,WATER,63.00,2015,AP,Accounts payable,E0244802,HAGUE QUALITY WATER OF MD INC
,REPUBLICAN CONFERENCE,2015Q1,SUPPLIES AND MATERIALS,02-10,ARAMARK REFRESHMENT SERVICES,02/06/15,02/06/15,FOOD & BEVERAGE,382.17,2015,AP,Accounts payable,E0245643,ARAMARK REFRESHMENT SERVICES
,REPUBLICAN CONFERENCE,2015Q1,SUPPLIES AND MATERIALS,02-19,"CITI PCARD-ADOBE SYSTEMS, INC",01/03/15,01/28/15,SOFTWARE LESS THAN $500,370.07,2015,AP,Accounts payable,00775819,"CITI PCARD-ADOBE SYSTEMS, INC"
,REPUBLICAN CONFERENCE,2015Q1,SUPPLIES AND MATERIALS,02-19,CITI PCARD-DOMINO'S,01/03/15,01/28/15,FOOD & BEVERAGE,636.23,2015,AP,Accounts payable,00775819,CITI PCARD-DOMINO'S
,REPUBLICAN CONFERENCE,2015Q1,SUPPLIES AND MATERIALS,02-19,CITI PCARD-NEW YORK TIMES DIGITAL,01/03/15,01/28/15,PUBLICATIONS/REFERENCE MAT'L,15.00,2015,AP,Accounts payable,00775819,CITI PCARD-NEW YORK TIMES DIGITAL
,REPUBLICAN CONFERENCE,2015Q1,SUPPLIES AND MATERIALS,02-19,CITI PCARD-QDOBA MEXICAN GRIL,01/03/15,01/28/15,FOOD & BEVERAGE,"1,392.28",2015,AP,Accounts payable,00775819,CITI PCARD-QDOBA MEXICAN GRIL
,REPUBLICAN CONFERENCE,2015Q1,SUPPLIES AND MATERIALS,02-20,"REAGAN, AMANDA M",02/19/15,02/19/15,FOOD & BEVERAGE,912.32,2015,AP,Accounts payable,E0249265,"REAGAN, AMANDA M"
,REPUBLICAN CONFERENCE,2015Q1,SUPPLIES AND MATERIALS,02-25,ARAMARK REFRESHMENT SERVICES,02/04/15,02/04/15,FOOD & BEVERAGE,104.00,2015,AP,Accounts payable,E0250667,ARAMARK REFRESHMENT SERVICES
,REPUBLICAN CONFERENCE,2015Q1,SUPPLIES AND MATERIALS,02-27,CAPITOL HOST,02/11/15,02/11/15,FOOD & BEVERAGE,687.00,2015,AP,Accounts payable,E0251646,CAPITOL HOST
,REPUBLICAN CONFERENCE,2015Q1,SUPPLIES AND MATERIALS,03-04,"WYCKOFF, SORELLE C",02/05/15,02/05/15,FOOD & BEVERAGE,35.80,2015,AP,Accounts payable,E0253441,"WYCKOFF, SORELLE C"
,REPUBLICAN CONFERENCE,2015Q1,SUPPLIES AND MATERIALS,03-06,HAGUE QUALITY WATER OF MD INC,03/01/15,03/31/15,WATER,63.00,2015,AP,Accounts payable,E0254311,HAGUE QUALITY WATER OF MD INC
,REPUBLICAN CONFERENCE,2015Q1,SUPPLIES AND MATERIALS,03-09,DEER PARK,01/31/15,01/31/15,WATER,253.64,2015,AP,Accounts payable,00779077,DEER PARK
,REPUBLICAN CONFERENCE,2015Q1,SUPPLIES AND MATERIALS,03-12,ARAMARK REFRESHMENT SERVICES,03/09/15,03/09/15,FOOD & BEVERAGE,527.61,2015,AP,Accounts payable,E0256255,ARAMARK REFRESHMENT SERVICES
,REPUBLICAN CONFERENCE,2015Q1,SUPPLIES AND MATERIALS,03-12,CAPITOL HOST,02/25/15,02/25/15,FOOD & BEVERAGE,687.00,2015,AP,Accounts payable,E0256256,CAPITOL HOST
,REPUBLICAN CONFERENCE,2015Q1,SUPPLIES AND MATERIALS,03-12,CAPITOL HOST,02/20/15,02/20/15,FOOD & BEVERAGE,141.60,2015,AP,Accounts payable,E0256257,CAPITOL HOST
,REPUBLICAN CONFERENCE,2015Q1,SUPPLIES AND MATERIALS,03-19,CITI PCARD-02673 CHICK FIL A,01/29/15,02/28/15,FOOD & BEVERAGE,238.68,2015,AP,Accounts payable,00783862,CITI PCARD-02673 CHICK FIL A
,REPUBLICAN CONFERENCE,2015Q1,SUPPLIES AND MATERIALS,03-19,"CITI PCARD-ADOBE SYSTEMS, INC",01/29/15,02/28/15,SOFTWARE LESS THAN $500,370.07,2015,AP,Accounts payable,00783862,"CITI PCARD-ADOBE SYSTEMS, INC"
,REPUBLICAN CONFERENCE,2015Q1,SUPPLIES AND MATERIALS,03-19,CITI PCARD-CARMINE S,01/29/15,02/28/15,FOOD & BEVERAGE,217.53,2015,AP,Accounts payable,00783862,CITI PCARD-CARMINE S
,REPUBLICAN CONFERENCE,2015Q1,SUPPLIES AND MATERIALS,03-19,CITI PCARD-CORNER BAKERY,01/29/15,02/28/15,FOOD & BEVERAGE,156.75,2015,AP,Accounts payable,00783862,CITI PCARD-CORNER BAKERY
,REPUBLICAN CONFERENCE,2015Q1,SUPPLIES AND MATERIALS,03-19,CITI PCARD-FIVE GUYS--NATIONA,01/29/15,02/28/15,FOOD & BEVERAGE,102.08,2015,AP,Accounts payable,00783862,CITI PCARD-FIVE GUYS--NATIONA
,REPUBLICAN CONFERENCE,2015Q1,SUPPLIES AND MATERIALS,03-19,CITI PCARD-HILL COUNTRY BARBECUE,01/29/15,02/28/15,FOOD & BEVERAGE,81.00,2015,AP,Accounts payable,00783862,CITI PCARD-HILL COUNTRY BARBECUE
,REPUBLICAN CONFERENCE,2015Q1,SUPPLIES AND MATERIALS,03-19,CITI PCARD-NEW YORK TIMES DIGITAL,01/29/15,02/28/15,PUBLICATIONS/REFERENCE MAT'L,15.00,2015,AP,Accounts payable,00783862,CITI PCARD-NEW YORK TIMES DIGITAL
,REPUBLICAN CONFERENCE,2015Q1,SUPPLIES AND MATERIALS,03-19,CITI PCARD-PANERA BREAD,01/29/15,02/28/15,FOOD & BEVERAGE,252.44,2015,AP,Accounts payable,00783862,CITI PCARD-PANERA BREAD
,REPUBLICAN CONFERENCE,2015Q1,SUPPLIES AND MATERIALS,03-19,CITI PCARD-POTBELLY,01/29/15,02/28/15,FOOD & BEVERAGE,152.90,2015,AP,Accounts payable,00783862,CITI PCARD-POTBELLY
,REPUBLICAN CONFERENCE,2015Q1,SUPPLIES AND MATERIALS,03-19,CITI PCARD-QDOBA MEXICAN GRIL,01/29/15,02/28/15,FOOD & BEVERAGE,470.20,2015,AP,Accounts payable,00783862,CITI PCARD-QDOBA MEXICAN GRIL
,REPUBLICAN CONFERENCE,2015Q1,SUPPLIES AND MATERIALS,03-19,CITI PCARD-SAFEWAY STORE,01/29/15,02/28/15,FOOD & BEVERAGE,41.65,2015,AP,Accounts payable,00783862,CITI PCARD-SAFEWAY STORE
,REPUBLICAN CONFERENCE,2015Q1,SUPPLIES AND MATERIALS,03-19,CITI PCARD-ZORBA'S CAFE,01/29/15,02/28/15,FOOD & BEVERAGE,369.00,2015,AP,Accounts payable,00783862,CITI PCARD-ZORBA'S CAFE
,REPUBLICAN CONFERENCE,2015Q1,PERSONNEL COMPENSATION,"","ALGER,ABIGAIL S",01/01/15,01/02/15,DIGITAL DIRECTOR,500.00,2014,"","","","ALGER,ABIGAIL S"
,REPUBLICAN CONFERENCE,2015Q1,PERSONNEL COMPENSATION,"","BETZ, KIMBERLY S",01/01/15,01/02/15,POLICY DIRECTOR,833.33,2014,"","","","BETZ, KIMBERLY S"
,REPUBLICAN CONFERENCE,2015Q1,PERSONNEL COMPENSATION,"","DEUTSCH,JEREMY",01/01/15,01/02/15,CHIEF OF STAFF,694.44,2014,"","","","DEUTSCH,JEREMY"
,REPUBLICAN CONFERENCE,2015Q1,PERSONNEL COMPENSATION,"","DEUTSCH,JEREMY",10/01/14,10/30/14,CHIEF OF STAFF (OTHER COMPENSATION),124.98,2014,"","","","DEUTSCH,JEREMY"
,REPUBLICAN CONFERENCE,2015Q1,PERSONNEL COMPENSATION,"","DEUTSCH,JEREMY",01/01/15,01/01/15,CHIEF OF STAFF (OTHER COMPENSATION),41.56,2014,"","","","DEUTSCH,JEREMY"
,REPUBLICAN CONFERENCE,2015Q1,PERSONNEL COMPENSATION,"","DUPPLER,MARTHA C",01/01/15,01/02/15,COALITIONS DIRECTOR,472.22,2014,"","","","DUPPLER,MARTHA C"
,REPUBLICAN CONFERENCE,2015Q1,PERSONNEL COMPENSATION,"","GAITAN,WADI",01/01/15,01/02/15,PRESS SECRETARY,306.17,2014,"","","","GAITAN,WADI"
,REPUBLICAN CONFERENCE,2015Q1,PERSONNEL COMPENSATION,"","GILSON,LOUISA H",01/01/15,01/02/15,STAFF ASSISTANT,155.56,2014,"","","","GILSON,LOUISA H"
,REPUBLICAN CONFERENCE,2015Q1,PERSONNEL COMPENSATION,"","GRAVES,JOEL D",01/01/15,01/02/15,ASSISTANT DIGITAL DIRECTOR,236.11,2014,"","","","GRAVES,JOEL D"
,REPUBLICAN CONFERENCE,2015Q1,PERSONNEL COMPENSATION,"","HARRIS,AMBER E",01/01/15,01/02/15,FINANCE ASSISTANT,50.00,2014,"","","","HARRIS,AMBER E"
,REPUBLICAN CONFERENCE,2015Q1,PERSONNEL COMPENSATION,"","HODSON,NATHAN M",01/01/15,01/02/15,DIRECTOR OF COMMUNICATIONS,738.89,2014,"","","","HODSON,NATHAN M"
,REPUBLICAN CONFERENCE,2015Q1,PERSONNEL COMPENSATION,"","HODSON,NATHAN M",10/01/14,01/02/15,DIRECTOR OF COMMUNICATIONS (OTHER COMPENSATION),"5,901.00",2014,"","","","HODSON,NATHAN M"
,REPUBLICAN CONFERENCE,2015Q1,PERSONNEL COMPENSATION,"","LEVINER,EMILY E",01/01/15,01/02/15,POLICY ADVISOR,288.89,2014,"","","","LEVINER,EMILY E"
,REPUBLICAN CONFERENCE,2015Q1,PERSONNEL COMPENSATION,"","LITMAN,RIVA",01/01/15,01/02/15,DEPUTY COMM DIRECTOR/PRESS SEC,500.00,2014,"","","","LITMAN,RIVA"
,REPUBLICAN CONFERENCE,2015Q1,PERSONNEL COMPENSATION,"","MAGALLANES, NICOLAS",01/01/15,01/02/15,SHARED EMPLOYEE,428.57,2014,"","","","MAGALLANES, NICOLAS"
,REPUBLICAN CONFERENCE,2015Q1,PERSONNEL COMPENSATION,"","MAGALLANES, NICOLAS",01/01/15,01/02/15,SHARED EMPLOYEE (OTHER COMPENSATION),71.43,2014,"","","","MAGALLANES, NICOLAS"
,REPUBLICAN CONFERENCE,2015Q1,PERSONNEL COMPENSATION,"","MARK,REBECCA",01/01/15,01/02/15,SR. ADVISOR TECH POLICY/WOMEN,555.56,2014,"","","","MARK,REBECCA"
,REPUBLICAN CONFERENCE,2015Q1,PERSONNEL COMPENSATION,"","MURPHY,SHAUGHNESSY P",01/01/15,01/02/15,DIRECTOR OF MEMBER SERVICES,691.67,2014,"","","","MURPHY,SHAUGHNESSY P"
,REPUBLICAN CONFERENCE,2015Q1,PERSONNEL COMPENSATION,"","MURPHY,SHAUGHNESSY P",10/01/14,10/30/14,DIRECTOR OF MEMBER SERVICES (OTHER COMPENSATION),"1,848.00",2014,"","","","MURPHY,SHAUGHNESSY P"
,REPUBLICAN CONFERENCE,2015Q1,PERSONNEL COMPENSATION,"","REAGAN,AMANDA M",01/01/15,01/02/15,EXTERNAL RELATIONS COORDINATOR,277.78,2014,"","","","REAGAN,AMANDA M"
,REPUBLICAN CONFERENCE,2015Q1,PERSONNEL COMPENSATION,"","ROSS, JOHN E",01/01/15,01/02/15,FINANCE DIRECTOR,72.22,2014,"","","","ROSS, JOHN E"
,REPUBLICAN CONFERENCE,2015Q1,PERSONNEL COMPENSATION,"","SCAGNELLI,AUDREY",01/01/15,01/02/15,PRESS ASSISTANT,140.89,2014,"","","","SCAGNELLI,AUDREY"
,REPUBLICAN CONFERENCE,2015Q1,PERSONNEL COMPENSATION,"","SMENTEK,DAVID",12/01/14,01/02/15,POLICY COORDINATOR,666.67,2014,"","","","SMENTEK,DAVID"
,REPUBLICAN CONFERENCE,2015Q1,PERSONNEL COMPENSATION,"","STEVENS,PAMELA R",01/01/15,01/02/15,DIRECTOR OF MEDIA AFFAIRS,694.44,2014,"","","","STEVENS,PAMELA R"
,REPUBLICAN CONFERENCE,2015Q1,PERSONNEL COMPENSATION,"","SUNDAY,JESSICA M",01/01/15,01/02/15,SCHEDULER,175.61,2014,"","","","SUNDAY,JESSICA M"
,REPUBLICAN CONFERENCE,2015Q1,PERSONNEL COMPENSATION,"","THORNE, DRAY A",01/01/15,01/02/15,SYSTEMS ADMINISTRATOR,66.67,2014,"","","","THORNE, DRAY A"
,REPUBLICAN CONFERENCE,2015Q1,PERSONNEL COMPENSATION,"","WYCKOFF,SORELLE C",01/01/15,01/02/15,COMMUNICATIONS ASSISTANT,182.56,2014,"","","","WYCKOFF,SORELLE C"
,REPUBLICAN CONFERENCE,2015Q1,"RENT, COMMUNICATION, UTILITIES",01-26,PITTSBURGH INT'L TELECOMMUNICATIONS INC,12/24/14,12/24/14,RECORDING (OUTSIDE),600.00,2014,AP,Accounts payable,E0236554,PITTSBURGH INT'L TELECOMMUNICATIONS INC
,REPUBLICAN CONFERENCE,2015Q1,PRINTING AND REPRODUCTION,01-20,CITI PCARD-AGILE PRINTING CO,11/29/14,12/28/14,PRINTING & REPRODUCTION,"2,539.93",2014,AP,Accounts payable,00772401,CITI PCARD-AGILE PRINTING CO
,REPUBLICAN CONFERENCE,2015Q1,OTHER SERVICES,01-07,ODONNELL & ASSOC LTD,12/01/14,12/31/14,TRAINING,"2,500.00",2014,AP,Accounts payable,E0233175,ODONNELL & ASSOC LTD
,REPUBLICAN CONFERENCE,2015Q1,OTHER SERVICES,01-20,CITI PCARD-CHARIOTS FOR HIRE,11/29/14,12/28/14,NON-TECHNOLOGY SERVICE CONTR,750.00,2014,AP,Accounts payable,00772401,CITI PCARD-CHARIOTS FOR HIRE
,REPUBLICAN CONFERENCE,2015Q1,OTHER SERVICES,02-02,THE CONGRESSIONAL INSTITUTE INC,12/17/14,12/17/14,TRAINING,"1,081.00",2014,AP,Accounts payable,E0241730,THE CONGRESSIONAL INSTITUTE INC
,REPUBLICAN CONFERENCE,2015Q1,SUPPLIES AND MATERIALS,01-16,RIDGEWELLS CATERING,12/02/14,12/02/14,FOOD & BEVERAGE,687.00,2014,AP,Accounts payable,E0236629,RIDGEWELLS CATERING
,REPUBLICAN CONFERENCE,2015Q1,SUPPLIES AND MATERIALS,01-20,DEER PARK,11/30/14,11/30/14,WATER,148.79,2014,AP,Accounts payable,00769083,DEER PARK
,REPUBLICAN CONFERENCE,2015Q1,SUPPLIES AND MATERIALS,01-20,"CITI PCARD-ADOBE SYSTEMS, INC",11/29/14,12/28/14,SOFTWARE LESS THAN $500,370.07,2014,AP,Accounts payable,00772401,"CITI PCARD-ADOBE SYSTEMS, INC"
,REPUBLICAN CONFERENCE,2015Q1,SUPPLIES AND MATERIALS,01-20,CITI PCARD-AMAZON MKTPLACE PMTS,11/29/14,12/28/14,FOOD & BEVERAGE,98.45,2014,AP,Accounts payable,00772401,CITI PCARD-AMAZON MKTPLACE PMTS
,REPUBLICAN CONFERENCE,2015Q1,SUPPLIES AND MATERIALS,01-20,CITI PCARD-APL ITUNES.COM,11/29/14,12/28/14,PUBLICATIONS/REFERENCE MAT'L,3.99,2014,AP,Accounts payable,00772401,CITI PCARD-APL ITUNES.COM
,REPUBLICAN CONFERENCE,2015Q1,SUPPLIES AND MATERIALS,01-20,CITI PCARD-CHICK FIL A,11/29/14,12/28/14,FOOD & BEVERAGE,951.79,2014,AP,Accounts payable,00772401,CITI PCARD-CHICK FIL A
,REPUBLICAN CONFERENCE,2015Q1,SUPPLIES AND MATERIALS,01-20,CITI PCARD-COSI,11/29/14,12/28/14,FOOD & BEVERAGE,177.39,2014,AP,Accounts payable,00772401,CITI PCARD-COSI
,REPUBLICAN CONFERENCE,2015Q1,SUPPLIES AND MATERIALS,01-20,CITI PCARD-DOMINO'S,11/29/14,12/28/14,FOOD & BEVERAGE,381.74,2014,AP,Accounts payable,00772401,CITI PCARD-DOMINO'S
,REPUBLICAN CONFERENCE,2015Q1,SUPPLIES AND MATERIALS,01-20,CITI PCARD-HOTEL MONACO,11/29/14,12/28/14,FOOD & BEVERAGE,"1,493.94",2014,AP,Accounts payable,00772401,CITI PCARD-HOTEL MONACO
,REPUBLICAN CONFERENCE,2015Q1,SUPPLIES AND MATERIALS,01-20,CITI PCARD-NEW YORK TIMES DIGITAL,11/29/14,12/28/14,PUBLICATIONS/REFERENCE MAT'L,15.86,2014,AP,Accounts payable,00772401,CITI PCARD-NEW YORK TIMES DIGITAL
,REPUBLICAN CONFERENCE,2015Q1,SUPPLIES AND MATERIALS,01-20,CITI PCARD-POTBELLY,11/29/14,12/28/14,FOOD & BEVERAGE,488.16,2014,AP,Accounts payable,00772401,CITI PCARD-POTBELLY
,REPUBLICAN CONFERENCE,2015Q1,SUPPLIES AND MATERIALS,01-20,CITI PCARD-QDOBA MEXICAN GRIL,11/29/14,12/28/14,FOOD & BEVERAGE,257.50,2014,AP,Accounts payable,00772401,CITI PCARD-QDOBA MEXICAN GRIL
,REPUBLICAN CONFERENCE,2015Q1,SUPPLIES AND MATERIALS,01-22,DEER PARK,12/31/14,12/31/14,WATER,197.72,2014,AP,Accounts payable,00772422,DEER PARK
,REPUBLICAN CONFERENCE,2015Q1,SUPPLIES AND MATERIALS,02-19,CITI PCARD-COSI,12/29/14,01/02/15,FOOD & BEVERAGE,"1,121.88",2014,AP,Accounts payable,00775819,CITI PCARD-COSI
,REPUBLICAN CONFERENCE,2015Q1,PRINTING AND REPRODUCTION,03-24,SHARP ELECTRONICS CORPORATION,04/01/12,07/01/12,PRINTING & REPRODUCTION,"-1,388.22",2012,AR,Accounts receivable,AC-10501,SHARP ELECTRONICS CORPORATION
,REPUBLICAN CONFERENCE,2015Q1,PRINTING AND REPRODUCTION,03-24,SHARP ELECTRONICS CORPORATION,07/01/12,10/01/12,PRINTING & REPRODUCTION,-249.66,2012,AR,Accounts receivable,AC-10502,SHARP ELECTRONICS CORPORATION
,OFFICE OF THE DEMOCRATIC WHIP,2015Q1,SUPPLIES AND MATERIALS,03-16,"",07/24/13,07/24/13,OFFICE SUPPLIES (OUTSIDE),483.70,2013,GL,General ledger,GFT0047303,""
,CHIEF ADMIN OFCR OF THE HOUSE,2015Q1,EQUIPMENT,01-15,DELL MARKETING LP,12/01/14,12/01/14,MAINTENANCE / REPAIRS,"2,101,558.18",FISCAL YEAR 2015,AP,Accounts payable,00768956,DELL MARKETING LP
,CHIEF ADMIN OFCR OF THE HOUSE,2015Q1,PERSONNEL COMPENSATION,"","ABBOTT, JESSICA A",01/01/15,03/31/15,FINANCIAL ANALYST,"32,712.00",FISCAL YEAR 2015,"","","","ABBOTT, JESSICA A"
,CHIEF ADMIN OFCR OF THE HOUSE,2015Q1,PERSONNEL COMPENSATION,"","ABEL, TIMOTHY",01/01/15,03/31/15,SR TECHNICAL SUPPORT REP (A),"24,368.49",FISCAL YEAR 2015,"","","","ABEL, TIMOTHY"
,CHIEF ADMIN OFCR OF THE HOUSE,2015Q1,PERSONNEL COMPENSATION,"","ACUESTA,JULY J",01/01/15,03/31/15,SENIOR SYSTEMS ENGINEER,"27,815.42",FISCAL YEAR 2015,"","","","ACUESTA,JULY J"
,CHIEF ADMIN OFCR OF THE HOUSE,2015Q1,PERSONNEL COMPENSATION,"","ADDISON, TRACY",01/01/15,03/31/15,LOGISTICS & DIST SPEC (A),"11,799.99",FISCAL YEAR 2015,"","","","ADDISON, TRACY"
,CHIEF ADMIN OFCR OF THE HOUSE,2015Q1,PERSONNEL COMPENSATION,"","ADDISON, TRACY",12/01/14,12/31/14,LOGISTICS & DIST SPEC (A) (OVERTIME),"1,196.40",FISCAL YEAR 2015,"","","","ADDISON, TRACY"
,CHIEF ADMIN OFCR OF THE HOUSE,2015Q1,PERSONNEL COMPENSATION,"","ADELAKUN, DEEN A",01/01/15,03/31/15,SR TECH SOLUTIONS ENGINEER,"23,004.24",FISCAL YEAR 2015,"","","","ADELAKUN, DEEN A"
,CHIEF ADMIN OFCR OF THE HOUSE,2015Q1,PERSONNEL COMPENSATION,"","AGEE, MATTHEW P",01/01/15,03/31/15,RESOURCE MANAGER,"31,582.50",FISCAL YEAR 2015,"","","","AGEE, MATTHEW P"
,CHIEF ADMIN OFCR OF THE HOUSE,2015Q1,PERSONNEL COMPENSATION,"","AGEE, TINA M",01/01/15,03/31/15,DIRECTOR PHOTOGRAPHY,"27,988.26",FISCAL YEAR 2015,"","","","AGEE, TINA M"
,CHIEF ADMIN OFCR OF THE HOUSE,2015Q1,PERSONNEL COMPENSATION,"","AGNEW, ROSE M",01/01/15,03/31/15,SR PAYROLL & BENS GENERALIST,"20,732.25",FISCAL YEAR 2015,"","","","AGNEW, ROSE M"
,CHIEF ADMIN OFCR OF THE HOUSE,2015Q1,PERSONNEL COMPENSATION,"","AGNEW, ROSE M",12/01/14,02/28/15,SR PAYROLL & BENS GENERALIST (OVERTIME),"4,074.04",FISCAL YEAR 2015,"","","","AGNEW, ROSE M"
,CHIEF ADMIN OFCR OF THE HOUSE,2015Q1,PERSONNEL COMPENSATION,"","AHUJA, KALPANA A",01/01/15,03/31/15,DIRECTOR WEB SYSTEMS,"32,741.25",FISCAL YEAR 2015,"","","","AHUJA, KALPANA A"
,CHIEF ADMIN OFCR OF THE HOUSE,2015Q1,PERSONNEL COMPENSATION,"","AKINSEGUN, PATRICIA A",01/01/15,03/31/15,TELEPHONE SYSTEMS CONSULTANT,"23,004.24",FISCAL YEAR 2015,"","","","AKINSEGUN, PATRICIA A"
,CHIEF ADMIN OFCR OF THE HOUSE,2015Q1,PERSONNEL COMPENSATION,"","ALEXANDER, GORDON",01/01/15,03/31/15,TECH SOLUTIONS ENGINEER,"18,487.74",FISCAL YEAR 2015,"","","","ALEXANDER, GORDON"
,CHIEF ADMIN OFCR OF THE HOUSE,2015Q1,PERSONNEL COMPENSATION,"","ALLISON, KEVIN M",01/01/15,03/31/15,LOGISTICS & DIST SPEC (A),"13,775.01",FISCAL YEAR 2015,"","","","ALLISON, KEVIN M"
,CHIEF ADMIN OFCR OF THE HOUSE,2015Q1,PERSONNEL COMPENSATION,"","ALLISON, KEVIN M",12/01/14,01/31/15,LOGISTICS & DIST SPEC (A) (OVERTIME),"1,201.49",FISCAL YEAR 2015,"","","","ALLISON, KEVIN M"
,CHIEF ADMIN OFCR OF THE HOUSE,2015Q1,PERSONNEL COMPENSATION,"","ALSTON,MARK A",01/01/15,03/31/15,TECH SOLUTIONS ENGINEER,"18,092.25",FISCAL YEAR 2015,"","","","ALSTON,MARK A"
,CHIEF ADMIN OFCR OF THE HOUSE,2015Q1,PERSONNEL COMPENSATION,"","ALVEY, LISA M",01/01/15,03/31/15,FINANCIAL COUNSELOR,"21,092.49",FISCAL YEAR 2015,"","","","ALVEY, LISA M"
,CHIEF ADMIN OFCR OF THE HOUSE,2015Q1,PERSONNEL COMPENSATION,"","ANDERSEN, FREDERIC E",01/01/15,03/31/15,2ND ASST SUPERINTENDENT,"23,004.24",FISCAL YEAR 2015,"","","","ANDERSEN, FREDERIC E"
,CHIEF ADMIN OFCR OF THE HOUSE,2015Q1,PERSONNEL COMPENSATION,"","ANDERSON, DONTRELL",01/01/15,03/31/15,FINANCIAL COUNSELOR,"16,504.50",FISCAL YEAR 2015,"","","","ANDERSON, DONTRELL"
,CHIEF ADMIN OFCR OF THE HOUSE,2015Q1,PERSONNEL COMPENSATION,"","ANDREWS,THOMAS",01/01/15,03/31/15,VOICE & VIDEO BRANCH MGR (A),"34,620.51",FISCAL YEAR 2015,"","","","ANDREWS,THOMAS"
,CHIEF ADMIN OFCR OF THE HOUSE,2015Q1,PERSONNEL COMPENSATION,"","ANDREWS-MOBLEY, RACHELLE G",01/01/15,03/31/15,PRINCIPAL TECHNICAL TRAINER,"26,433.75",FISCAL YEAR 2015,"","","","ANDREWS-MOBLEY, RACHELLE G"
,CHIEF ADMIN OFCR OF THE HOUSE,2015Q1,PERSONNEL COMPENSATION,"","ANIMLEY,KINGSLEY T",01/01/15,02/28/15,PAYROLL & BENEFITS GENERALIST,"6,730.33",FISCAL YEAR 2015,"","","","ANIMLEY,KINGSLEY T"
,CHIEF ADMIN OFCR OF THE HOUSE,2015Q1,PERSONNEL COMPENSATION,"","ANIMLEY,KINGSLEY T",12/01/14,12/31/14,PAYROLL & BENEFITS GENERALIST (OVERTIME),201.16,FISCAL YEAR 2015,"","","","ANIMLEY,KINGSLEY T"
,CHIEF ADMIN OFCR OF THE HOUSE,2015Q1,PERSONNEL COMPENSATION,"","ANIMLEY,KINGSLEY T",02/01/15,02/28/15,PAYROLL & BENEFITS GENERALIST (OTHER COMPENSATION),"1,085.85",FISCAL YEAR 2015,"","","","ANIMLEY,KINGSLEY T"
,CHIEF ADMIN OFCR OF THE HOUSE,2015Q1,PERSONNEL COMPENSATION,"","ARMSTRONG,JANCIERA C",01/01/15,03/31/15,"MANAGER, ACCOUNTING","26,953.74",FISCAL YEAR 2015,"","","","ARMSTRONG,JANCIERA C"
,CHIEF ADMIN OFCR OF THE HOUSE,2015Q1,PERSONNEL COMPENSATION,"","ARTHUR, CAMILLA S",01/01/15,03/31/15,ASSISTANT CAO,"41,778.99",FISCAL YEAR 2015,"","","","ARTHUR, CAMILLA S"
,CHIEF ADMIN OFCR OF THE HOUSE,2015Q1,PERSONNEL COMPENSATION,"","ATCHISON, DARRYL A",01/01/15,03/31/15,DEPUTY CHIEF ENGINEER,"31,582.50",FISCAL YEAR 2015,"","","","ATCHISON, DARRYL A"
,CHIEF ADMIN OFCR OF THE HOUSE,2015Q1,PERSONNEL COMPENSATION,"","AWAN, OMAR",01/01/15,03/31/15,SR BUSINESS PROCESS APPL SPEC,"36,494.49",FISCAL YEAR 2015,"","","","AWAN, OMAR"
,CHIEF ADMIN OFCR OF THE HOUSE,2015Q1,PERSONNEL COMPENSATION,"","BAHAM,TODD",01/01/15,03/31/15,BROADCAST PRODUCTION TECHNICIA,"19,494.75",FISCAL YEAR 2015,"","","","BAHAM,TODD"
,CHIEF ADMIN OFCR OF THE HOUSE,2015Q1,PERSONNEL COMPENSATION,"","BAHAM,TODD",12/01/14,02/28/15,BROADCAST PRODUCTION TECHNICIA (OVERTIME),"1,682.48",FISCAL YEAR 2015,"","","","BAHAM,TODD"
,CHIEF ADMIN OFCR OF THE HOUSE,2015Q1,PERSONNEL COMPENSATION,"","BAILEY, DAVID E",01/01/15,03/31/15,SR TECHNICAL SUPPORT REP (A),"24,368.49",FISCAL YEAR 2015,"","","","BAILEY, DAVID E"
,CHIEF ADMIN OFCR OF THE HOUSE,2015Q1,PERSONNEL COMPENSATION,"","BAKER, DARRELL F",01/01/15,03/31/15,SENIOR NETWORK TECHNICIAN,"25,548.00",FISCAL YEAR 2015,"","","","BAKER, DARRELL F"
,CHIEF ADMIN OFCR OF THE HOUSE,2015Q1,PERSONNEL COMPENSATION,"","BANFIELD,KELLI C",01/01/15,03/31/15,BROADCAST ENGINEER/PROD SPEC,"21,641.25",FISCAL YEAR 2015,"","","","BANFIELD,KELLI C"
,CHIEF ADMIN OFCR OF THE HOUSE,2015Q1,PERSONNEL COMPENSATION,"","BANFIELD,KELLI C",12/01/14,02/28/15,BROADCAST ENGINEER/PROD SPEC. (OVERTIME),"1,059.69",FISCAL YEAR 2015,"","","","BANFIELD,KELLI C"
,CHIEF ADMIN OFCR OF THE HOUSE,2015Q1,PERSONNEL COMPENSATION,"","BANKS,BIANCA N",01/01/15,03/31/15,RETAIL INVENTORY SPECIALIST,"17,298.00",FISCAL YEAR 2015,"","","","BANKS,BIANCA N"
,CHIEF ADMIN OFCR OF THE HOUSE,2015Q1,PERSONNEL COMPENSATION,"","BARBEE, GLENN",01/01/15,03/31/15,NETWORK TECHNICIAN,"22,551.24",FISCAL YEAR 2015,"","","","BARBEE, GLENN"
,CHIEF ADMIN OFCR OF THE HOUSE,2015Q1,PERSONNEL COMPENSATION,"","BARBEE,DONELL G",01/01/15,03/31/15,RETAIL INVENTORY SPECIALIST,"10,298.76",FISCAL YEAR 2015,"","","","BARBEE,DONELL G"
,CHIEF ADMIN OFCR OF THE HOUSE,2015Q1,PERSONNEL COMPENSATION,"","BARBOUR, JUNE M",01/01/15,03/31/15,BROADCAST PRODUCTION TECHNICIA,"19,494.75",FISCAL YEAR 2015,"","","","BARBOUR, JUNE M"
,CHIEF ADMIN OFCR OF THE HOUSE,2015Q1,PERSONNEL COMPENSATION,"","BARBOUR, JUNE M",01/01/15,02/28/15,BROADCAST PRODUCTION TECHNICIA (OVERTIME),393.64,FISCAL YEAR 2015,"","","","BARBOUR, JUNE M"
,CHIEF ADMIN OFCR OF THE HOUSE,2015Q1,PERSONNEL COMPENSATION,"","BARCINIAK, DANA L",01/01/15,03/31/15,SENIOR PHOTOGRAPHER,"22,293.24",FISCAL YEAR 2015,"","","","BARCINIAK, DANA L"
,CHIEF ADMIN OFCR OF THE HOUSE,2015Q1,PERSONNEL COMPENSATION,"","BARCINIAK, DANA L",01/01/15,01/31/15,SENIOR PHOTOGRAPHER (OVERTIME),241.36,FISCAL YEAR 2015,"","","","BARCINIAK, DANA L"
,CHIEF ADMIN OFCR OF THE HOUSE,2015Q1,PERSONNEL COMPENSATION,"","BAREFOOT,JEFFREY",01/01/15,03/31/15,PRODUCTION/ENGINEER SPEC (TEMP,"8,303.68",FISCAL YEAR 2015,"","","","BAREFOOT,JEFFREY"
,CHIEF ADMIN OFCR OF THE HOUSE,2015Q1,PERSONNEL COMPENSATION,"","BARNABAE, MONICA M",01/01/15,03/31/15,DIRECTOR-HOUSE CHILD CARE CNTR,"27,469.74",FISCAL YEAR 2015,"","","","BARNABAE, MONICA M"
,CHIEF ADMIN OFCR OF THE HOUSE,2015Q1,PERSONNEL COMPENSATION,"","BARR,PAUL",01/01/15,03/31/15,RECEIVING/WAREHOUSE SPECIALIST,"12,359.01",FISCAL YEAR 2015,"","","","BARR,PAUL"
,CHIEF ADMIN OFCR OF THE HOUSE,2015Q1,PERSONNEL COMPENSATION,"","BARR,PAUL",12/01/14,01/31/15,RECEIVING/WAREHOUSE SPECIALIST (OVERTIME),"1,347.93",FISCAL YEAR 2015,"","","","BARR,PAUL"
,CHIEF ADMIN OFCR OF THE HOUSE,2015Q1,PERSONNEL COMPENSATION,"","BARRETT, ROBERT R",01/01/15,03/31/15,ACT DIR ENTERPRISE APP,"36,905.25",FISCAL YEAR 2015,"","","","BARRETT, ROBERT R"
,CHIEF ADMIN OFCR OF THE HOUSE,2015Q1,PERSONNEL COMPENSATION,"","BASILIO, TYRONE A",01/01/15,03/31/15,TECHNICAL SUPPORT REP,"19,894.50",FISCAL YEAR 2015,"","","","BASILIO, TYRONE A"
,CHIEF ADMIN OFCR OF THE HOUSE,2015Q1,PERSONNEL COMPENSATION,"","BATES, DEBORAH A",01/01/15,03/31/15,PRODUCTION/ENGINEER SPEC (TEMP,"10,764.03",FISCAL YEAR 2015,"","","","BATES, DEBORAH A"
,CHIEF ADMIN OFCR OF THE HOUSE,2015Q1,PERSONNEL COMPENSATION,"","BATH,GEORGE J",01/01/15,03/31/15,SENIOR ADVISOR,"42,102.75",FISCAL YEAR 2015,"","","","BATH,GEORGE J"
,CHIEF ADMIN OFCR OF THE HOUSE,2015Q1,PERSONNEL COMPENSATION,"","BEAUBIAN, TRACI R",01/01/15,03/31/15,CHIEF FINANCIAL OFFICER,"42,102.75",FISCAL YEAR 2015,"","","","BEAUBIAN, TRACI R"
,CHIEF ADMIN OFCR OF THE HOUSE,2015Q1,PERSONNEL COMPENSATION,"","BEIDEL, BERNARD E",01/01/15,03/31/15,"DIR, OFFICE OF EMPLOYEE ASSIST","42,102.75",FISCAL YEAR 2015,"","","","BEIDEL, BERNARD E"
,CHIEF ADMIN OFCR OF THE HOUSE,2015Q1,PERSONNEL COMPENSATION,"","BELL,FRANK E",01/01/15,03/31/15,SENIOR TECHNICAL ADVISOR,"33,993.00",FISCAL YEAR 2015,"","","","BELL,FRANK E"
,CHIEF ADMIN OFCR OF THE HOUSE,2015Q1,PERSONNEL COMPENSATION,"","BENN, PHILLIP F",01/01/15,03/31/15,ELECTRONICS TECHNICIAN (A),"23,460.75",FISCAL YEAR 2015,"","","","BENN, PHILLIP F"
,CHIEF ADMIN OFCR OF THE HOUSE,2015Q1,PERSONNEL COMPENSATION,"","BENN, PHILLIP F",01/01/15,02/28/15,ELECTRONICS TECHNICIAN (A) (OVERTIME),575.24,FISCAL YEAR 2015,"","","","BENN, PHILLIP F"
,CHIEF ADMIN OFCR OF THE HOUSE,2015Q1,PERSONNEL COMPENSATION,"","BERGER, DONALD W",01/01/15,03/31/15,TECHNICAL DIRECTOR (A),"23,114.75",FISCAL YEAR 2015,"","","","BERGER, DONALD W"
,CHIEF ADMIN OFCR OF THE HOUSE,2015Q1,PERSONNEL COMPENSATION,"","BERGER, DONALD W",12/01/14,02/28/15,TECHNICAL DIRECTOR (A) (OVERTIME),76.99,FISCAL YEAR 2015,"","","","BERGER, DONALD W"
,CHIEF ADMIN OFCR OF THE HOUSE,2015Q1,PERSONNEL COMPENSATION,"","BERRY,JOSEPH B",01/01/15,03/31/15,SYSTEMS ENGINEER,"22,098.51",FISCAL YEAR 2015,"","","","BERRY,JOSEPH B"
,CHIEF ADMIN OFCR OF THE HOUSE,2015Q1,PERSONNEL COMPENSATION,"","BEST, CHARLENE",01/01/15,03/31/15,MANAGER,"24,180.99",FISCAL YEAR 2015,"","","","BEST, CHARLENE"
,CHIEF ADMIN OFCR OF THE HOUSE,2015Q1,PERSONNEL COMPENSATION,"","BETHEA,LASHON L",01/01/15,03/31/15,TECHNICAL TRAINER,"25,548.00",FISCAL YEAR 2015,"","","","BETHEA,LASHON L"
,CHIEF ADMIN OFCR OF THE HOUSE,2015Q1,PERSONNEL COMPENSATION,"","BILLARD, MICHAEL A",01/01/15,03/31/15,COMMUNICATIONS SPEC,"25,548.00",FISCAL YEAR 2015,"","","","BILLARD, MICHAEL A"
,CHIEF ADMIN OFCR OF THE HOUSE,2015Q1,PERSONNEL COMPENSATION,"","BILLUPS, BRIAN E",01/01/15,03/31/15,NETWORK TECHNICIAN (A),"19,894.50",FISCAL YEAR 2015,"","","","BILLUPS, BRIAN E"
,CHIEF ADMIN OFCR OF THE HOUSE,2015Q1,PERSONNEL COMPENSATION,"","BLAKNEY, HAROLD",01/01/15,03/31/15,SENIOR SYSTEMS ENGINEER,"37,745.01",FISCAL YEAR 2015,"","","","BLAKNEY, HAROLD"
,CHIEF ADMIN OFCR OF THE HOUSE,2015Q1,PERSONNEL COMPENSATION,"","BOGAN, DAVID S",01/01/15,03/31/15,"SUPERVISOR, RETAIL INVENTORY","19,894.50",FISCAL YEAR 2015,"","","","BOGAN, DAVID S"
,CHIEF ADMIN OFCR OF THE HOUSE,2015Q1,PERSONNEL COMPENSATION,"","BOGER, KELLY M",01/01/15,03/31/15,ACCOUNT MANAGEMENT COUNSELOR,"20,294.76",FISCAL YEAR 2015,"","","","BOGER, KELLY M"
,CHIEF ADMIN OFCR OF THE HOUSE,2015Q1,PERSONNEL COMPENSATION,"","BOGER, KELLY M",12/01/14,02/28/15,ACCOUNT MANAGEMENT COUNSELOR (OVERTIME),"7,763.65",FISCAL YEAR 2015,"","","","BOGER, KELLY M"
,CHIEF ADMIN OFCR OF THE HOUSE,2015Q1,PERSONNEL COMPENSATION,"","BOOKER, CARLOS",01/01/15,03/31/15,SALES SPECIALIST,"10,599.99",FISCAL YEAR 2015,"","","","BOOKER, CARLOS"
,CHIEF ADMIN OFCR OF THE HOUSE,2015Q1,PERSONNEL COMPENSATION,"","BOONE, RUSSELL",01/01/15,03/31/15,TECHNICAL SUPPORT REP,"22,293.24",FISCAL YEAR 2015,"","","","BOONE, RUSSELL"
,CHIEF ADMIN OFCR OF THE HOUSE,2015Q1,PERSONNEL COMPENSATION,"","BOWERS,KAREN L",01/01/15,03/31/15,FINANCIAL COUNSELOR,"19,494.75",FISCAL YEAR 2015,"","","","BOWERS,KAREN L"
,CHIEF ADMIN OFCR OF THE HOUSE,2015Q1,PERSONNEL COMPENSATION,"","BOWLDING, SONIA R",01/01/15,03/31/15,REC/WAREHOUSE SPEC (A),"11,500.50",FISCAL YEAR 2015,"","","","BOWLDING, SONIA R"
,CHIEF ADMIN OFCR OF THE HOUSE,2015Q1,PERSONNEL COMPENSATION,"","BOWLDING, SONIA R",12/01/14,12/31/14,REC/WAREHOUSE SPEC (A) (OVERTIME),262.77,FISCAL YEAR 2015,"","","","BOWLDING, SONIA R"
,CHIEF ADMIN OFCR OF THE HOUSE,2015Q1,PERSONNEL COMPENSATION,"","BOWLES, JAMES A",01/01/15,03/31/15,JOURNEYMAN FURNITURE SPEC,"20,076.00",FISCAL YEAR 2015,"","","","BOWLES, JAMES A"
,CHIEF ADMIN OFCR OF THE HOUSE,2015Q1,PERSONNEL COMPENSATION,"","BOWLING-STOKES,CHAUNETTE L",01/01/15,03/31/15,MANAGEMENT ANALYST,"24,180.99",FISCAL YEAR 2015,"","","","BOWLING-STOKES,CHAUNETTE L"
,CHIEF ADMIN OFCR OF THE HOUSE,2015Q1,PERSONNEL COMPENSATION,"","BOWMAN,SHELIA",01/01/15,03/31/15,FINANCIAL COUNSELOR,"16,902.24",FISCAL YEAR 2015,"","","","BOWMAN,SHELIA"
,CHIEF ADMIN OFCR OF THE HOUSE,2015Q1,PERSONNEL COMPENSATION,"","BOYD, KRISTIE N",12/01/14,02/25/15,PHOTOGRAPHER/LAB TECH (TEMP),"10,221.00",FISCAL YEAR 2015,"","","","BOYD, KRISTIE N"
,CHIEF ADMIN OFCR OF THE HOUSE,2015Q1,PERSONNEL COMPENSATION,"","BOYD, PETRINA",01/01/15,03/31/15,SALES SPECIALIST,"11,669.76",FISCAL YEAR 2015,"","","","BOYD, PETRINA"
,CHIEF ADMIN OFCR OF THE HOUSE,2015Q1,PERSONNEL COMPENSATION,"","BOYD, PETRINA",12/01/14,12/31/14,SALES SPECIALIST (OVERTIME),8.44,FISCAL YEAR 2015,"","","","BOYD, PETRINA"
,CHIEF ADMIN OFCR OF THE HOUSE,2015Q1,PERSONNEL COMPENSATION,"","BOYLE, KEVIN J",01/01/15,03/31/15,SR BUSINESS PROCESS APPL SPEC,"39,621.51",FISCAL YEAR 2015,"","","","BOYLE, KEVIN J"
,CHIEF ADMIN OFCR OF THE HOUSE,2015Q1,PERSONNEL COMPENSATION,"","BRACKENS, ROBERT",01/01/15,03/31/15,BROADCAST PRODUCTION TECHNICIA,"21,946.09",FISCAL YEAR 2015,"","","","BRACKENS, ROBERT"
,CHIEF ADMIN OFCR OF THE HOUSE,2015Q1,PERSONNEL COMPENSATION,"","BRACKENS, ROBERT",12/01/14,02/28/15,BROADCAST PRODUCTION TECHNICIA (OVERTIME),706.54,FISCAL YEAR 2015,"","","","BRACKENS, ROBERT"
,CHIEF ADMIN OFCR OF THE HOUSE,2015Q1,PERSONNEL COMPENSATION,"","BRADY,JOHN R",01/01/15,03/31/15,JOURNEYMAN TEXTILE SPEC,"12,014.25",FISCAL YEAR 2015,"","","","BRADY,JOHN R"
,CHIEF ADMIN OFCR OF THE HOUSE,2015Q1,PERSONNEL COMPENSATION,"","BRADY,JOHN R",12/11/14,12/31/14,JOURNEYMAN TEXTILE SPEC (OVERTIME),463.22,FISCAL YEAR 2015,"","","","BRADY,JOHN R"
,CHIEF ADMIN OFCR OF THE HOUSE,2015Q1,PERSONNEL COMPENSATION,"","BRAXTON, BRANDON A",01/01/15,03/31/15,LOGISTICS & DIST SPEC (A),"11,200.74",FISCAL YEAR 2015,"","","","BRAXTON, BRANDON A"
,CHIEF ADMIN OFCR OF THE HOUSE,2015Q1,PERSONNEL COMPENSATION,"","BRAXTON, BRANDON A",12/01/14,12/31/14,LOGISTICS & DIST SPEC (A) (OVERTIME),543.82,FISCAL YEAR 2015,"","","","BRAXTON, BRANDON A"
,CHIEF ADMIN OFCR OF THE HOUSE,2015Q1,PERSONNEL COMPENSATION,"","BREWSTER III,JAMES E",01/01/15,03/31/15,LOGISTICS & DIST SPEC (A),"9,441.24",FISCAL YEAR 2015,"","","","BREWSTER III,JAMES E"
,CHIEF ADMIN OFCR OF THE HOUSE,2015Q1,PERSONNEL COMPENSATION,"","BREWSTER III,JAMES E",12/01/14,12/31/14,LOGISTICS & DIST SPEC (A) (OVERTIME),332.56,FISCAL YEAR 2015,"","","","BREWSTER III,JAMES E"
,CHIEF ADMIN OFCR OF THE HOUSE,2015Q1,PERSONNEL COMPENSATION,"","BREWSTER,CHRISTOPHER A",01/01/15,03/31/15,ADMINISTRATIVE COUNSEL,"42,102.75",FISCAL YEAR 2015,"","","","BREWSTER,CHRISTOPHER A"
,CHIEF ADMIN OFCR OF THE HOUSE,2015Q1,PERSONNEL COMPENSATION,"","BRIDGEFORTH, TOINETTA A",01/01/15,03/31/15,CONTRACTS SPECIALIST,"23,004.24",FISCAL YEAR 2015,"","","","BRIDGEFORTH, TOINETTA A"
,CHIEF ADMIN OFCR OF THE HOUSE,2015Q1,PERSONNEL COMPENSATION,"","BRISCOE, KEVIN",01/01/15,03/31/15,LOGISTICS & DIST SPEC (A),"11,200.74",FISCAL YEAR 2015,"","","","BRISCOE, KEVIN"
,CHIEF ADMIN OFCR OF THE HOUSE,2015Q1,PERSONNEL COMPENSATION,"","BRISCOE, KEVIN",12/01/14,12/31/14,LOGISTICS & DIST SPEC (A) (OVERTIME),677.11,FISCAL YEAR 2015,"","","","BRISCOE, KEVIN"
,CHIEF ADMIN OFCR OF THE HOUSE,2015Q1,PERSONNEL COMPENSATION,"","BRITT,SHANNON W",01/01/15,03/31/15,SR HUMAN RESOURCES GENERALIST,"18,697.26",FISCAL YEAR 2015,"","","","BRITT,SHANNON W"
,CHIEF ADMIN OFCR OF THE HOUSE,2015Q1,PERSONNEL COMPENSATION,"","BROBBEY-MENSAH, KWAME",01/01/15,03/31/15,SR INFO SYST. SECURITY ANALYST,"29,025.99",FISCAL YEAR 2015,"","","","BROBBEY-MENSAH, KWAME"
,CHIEF ADMIN OFCR OF THE HOUSE,2015Q1,PERSONNEL COMPENSATION,"","BROWN SR, DEMETRICE T",01/01/15,03/31/15,SUPERVISOR,"27,469.74",FISCAL YEAR 2015,"","","","BROWN SR, DEMETRICE T"
,CHIEF ADMIN OFCR OF THE HOUSE,2015Q1,PERSONNEL COMPENSATION,"","BROWN, ANNETTE G",01/01/15,03/31/15,SR SOFTWARE ENGINEER,"26,914.74",FISCAL YEAR 2015,"","","","BROWN, ANNETTE G"
,CHIEF ADMIN OFCR OF THE HOUSE,2015Q1,PERSONNEL COMPENSATION,"","BROWN, KEITH S",01/01/15,03/31/15,REC/WAREHOUSE SPEC (A),"14,418.75",FISCAL YEAR 2015,"","","","BROWN, KEITH S"
,CHIEF ADMIN OFCR OF THE HOUSE,2015Q1,PERSONNEL COMPENSATION,"","BROWN, KEITH S",12/01/14,02/28/15,REC/WAREHOUSE SPEC (A) (OVERTIME),"1,645.30",FISCAL YEAR 2015,"","","","BROWN, KEITH S"
,CHIEF ADMIN OFCR OF THE HOUSE,2015Q1,PERSONNEL COMPENSATION,"","BROWN, PAMELA L",01/01/15,03/31/15,CUSTOMER SOLUTIONS REP,"18,487.74",FISCAL YEAR 2015,"","","","BROWN, PAMELA L"
,CHIEF ADMIN OFCR OF THE HOUSE,2015Q1,PERSONNEL COMPENSATION,"","BROWN, PAMELA L",01/01/15,01/31/15,CUSTOMER SOLUTIONS REP. (OVERTIME),328.86,FISCAL YEAR 2015,"","","","BROWN, PAMELA L"
,CHIEF ADMIN OFCR OF THE HOUSE,2015Q1,PERSONNEL COMPENSATION,"","BROWN,DAVID D",01/01/15,03/31/15,FINANCIAL COUNSELOR,"16,504.50",FISCAL YEAR 2015,"","","","BROWN,DAVID D"
,CHIEF ADMIN OFCR OF THE HOUSE,2015Q1,PERSONNEL COMPENSATION,"","BROWN,JASON",01/01/15,03/31/15,BROADCAST PRODUCTION TECHNICIA,"19,494.75",FISCAL YEAR 2015,"","","","BROWN,JASON"
,CHIEF ADMIN OFCR OF THE HOUSE,2015Q1,PERSONNEL COMPENSATION,"","BROWN,JASON",12/01/14,02/28/15,BROADCAST PRODUCTION TECHNICIA (OVERTIME),966.90,FISCAL YEAR 2015,"","","","BROWN,JASON"
,CHIEF ADMIN OFCR OF THE HOUSE,2015Q1,PERSONNEL COMPENSATION,"","BROWN,KIMBERLY K",01/01/15,03/31/15,RESOURCE ANALYST,"17,298.00",FISCAL YEAR 2015,"","","","BROWN,KIMBERLY K"
,CHIEF ADMIN OFCR OF THE HOUSE,2015Q1,PERSONNEL COMPENSATION,"","BROWN,LAWRENCE",01/01/15,03/31/15,BROADCAST ENGINEER/PROD SPEC,"22,098.51",FISCAL YEAR 2015,"","","","BROWN,LAWRENCE"
,CHIEF ADMIN OFCR OF THE HOUSE,2015Q1,PERSONNEL COMPENSATION,"","BROWN,LAWRENCE",01/01/15,02/28/15,BROADCAST ENGINEER/PROD SPEC. (OVERTIME),286.85,FISCAL YEAR 2015,"","","","BROWN,LAWRENCE"
,CHIEF ADMIN OFCR OF THE HOUSE,2015Q1,PERSONNEL COMPENSATION,"","BRUMMELL,JENELLE L",01/01/15,03/31/15,PARALEGAL,"18,298.50",FISCAL YEAR 2015,"","","","BRUMMELL,JENELLE L"
,CHIEF ADMIN OFCR OF THE HOUSE,2015Q1,PERSONNEL COMPENSATION,"","BUCKLER, RICKY L",01/01/15,03/31/15,PURCHASING AGENT,"19,095.51",FISCAL YEAR 2015,"","","","BUCKLER, RICKY L"
,CHIEF ADMIN OFCR OF THE HOUSE,2015Q1,PERSONNEL COMPENSATION,"","BUCKLER, TROY D",01/01/15,03/31/15,PURCHASING AGENT,"16,491.99",FISCAL YEAR 2015,"","","","BUCKLER, TROY D"
,CHIEF ADMIN OFCR OF THE HOUSE,2015Q1,PERSONNEL COMPENSATION,"","BUFORD, MARCIA L",01/01/15,03/31/15,COMPUTER FAC OP SUPERVISOR,"26,914.74",FISCAL YEAR 2015,"","","","BUFORD, MARCIA L"
,CHIEF ADMIN OFCR OF THE HOUSE,2015Q1,PERSONNEL COMPENSATION,"","BURCH, KENNETH J",01/01/15,03/31/15,BUSINESS PROC APPLIC SPEC,"30,063.24",FISCAL YEAR 2015,"","","","BURCH, KENNETH J"
,CHIEF ADMIN OFCR OF THE HOUSE,2015Q1,PERSONNEL COMPENSATION,"","BUTLER, CLARENCE G",01/01/15,03/31/15,JOURNEYMAN FURNITURE SPEC,"15,802.50",FISCAL YEAR 2015,"","","","BUTLER, CLARENCE G"
,CHIEF ADMIN OFCR OF THE HOUSE,2015Q1,PERSONNEL COMPENSATION,"","BUTLER, CLARENCE G",12/01/14,12/31/14,JOURNEYMAN FURNITURE SPEC. (OVERTIME),361.06,FISCAL YEAR 2015,"","","","BUTLER, CLARENCE G"
,CHIEF ADMIN OFCR OF THE HOUSE,2015Q1,PERSONNEL COMPENSATION,"","BUTLER, JAMES F",01/01/15,03/31/15,PAYROLL & BENEFITS MANAGER,"26,004.00",FISCAL YEAR 2015,"","","","BUTLER, JAMES F"
,CHIEF ADMIN OFCR OF THE HOUSE,2015Q1,PERSONNEL COMPENSATION,"","CAIN, MOLLY J",01/01/15,03/31/15,5TH ASST SUPERINTENDENT,"15,802.50",FISCAL YEAR 2015,"","","","CAIN, MOLLY J"
,CHIEF ADMIN OFCR OF THE HOUSE,2015Q1,PERSONNEL COMPENSATION,"","CALLAWAY, ROBERT M",01/01/15,03/31/15,SR BROADCAST ENG./PROD SPEC,"24,636.00",FISCAL YEAR 2015,"","","","CALLAWAY, ROBERT M"
,CHIEF ADMIN OFCR OF THE HOUSE,2015Q1,PERSONNEL COMPENSATION,"","CANNON, DREW",01/01/15,03/31/15,4TH ASST SUPERINTENDENT,"18,092.25",FISCAL YEAR 2015,"","","","CANNON, DREW"
,CHIEF ADMIN OFCR OF THE HOUSE,2015Q1,PERSONNEL COMPENSATION,"","CANNON,SUSANNAH",01/01/15,03/13/15,CUSTOMER SOLUTIONS REP,"10,947.80",FISCAL YEAR 2015,"","","","CANNON,SUSANNAH"
,CHIEF ADMIN OFCR OF THE HOUSE,2015Q1,PERSONNEL COMPENSATION,"","CANNON,SUSANNAH",03/01/15,03/13/15,CUSTOMER SOLUTIONS REP. (OTHER COMPENSATION),347.01,FISCAL YEAR 2015,"","","","CANNON,SUSANNAH"
,CHIEF ADMIN OFCR OF THE HOUSE,2015Q1,PERSONNEL COMPENSATION,"","CARCAMO, ALICIA L",01/01/15,03/31/15,ACCOUNTING TECHNICIAN,"19,283.25",FISCAL YEAR 2015,"","","","CARCAMO, ALICIA L"
,CHIEF ADMIN OFCR OF THE HOUSE,2015Q1,PERSONNEL COMPENSATION,"","CARNNIA,CASEY",01/01/15,03/31/15,INTERNET SYSTEMS SPECIALIST,"19,894.50",FISCAL YEAR 2015,"","","","CARNNIA,CASEY"
,CHIEF ADMIN OFCR OF THE HOUSE,2015Q1,PERSONNEL COMPENSATION,"","CARR, JOSH D",01/01/15,03/31/15,SENIOR SYSTEMS ENGINEER,"25,548.00",FISCAL YEAR 2015,"","","","CARR, JOSH D"
,CHIEF ADMIN OFCR OF THE HOUSE,2015Q1,PERSONNEL COMPENSATION,"","CARRICO, RONALD",01/01/15,03/31/15,SR BUSINESS PROCESS APPL SPEC,"37,120.50",FISCAL YEAR 2015,"","","","CARRICO, RONALD"
,CHIEF ADMIN OFCR OF THE HOUSE,2015Q1,PERSONNEL COMPENSATION,"","CARSON,LAWRENCE T",01/01/15,03/31/15,SALES SPECIALIST,"10,298.76",FISCAL YEAR 2015,"","","","CARSON,LAWRENCE T"
,CHIEF ADMIN OFCR OF THE HOUSE,2015Q1,PERSONNEL COMPENSATION,"","CARTER JR, JOHN L",01/01/15,03/31/15,"MANAGER, FINISHING","25,275.24",FISCAL YEAR 2015,"","","","CARTER JR, JOHN L"
,CHIEF ADMIN OFCR OF THE HOUSE,2015Q1,PERSONNEL COMPENSATION,"","CARTER,DELISA D",01/01/15,03/31/15,SR. SOFTWARE SPECIALIST,"35,867.25",FISCAL YEAR 2015,"","","","CARTER,DELISA D"
,CHIEF ADMIN OFCR OF THE HOUSE,2015Q1,PERSONNEL COMPENSATION,"","CASSIDY, ED",01/01/15,03/31/15,CHIEF ADMINISTRATIVE OFFICER,"43,125.00",FISCAL YEAR 2015,"","","","CASSIDY, ED"
,CHIEF ADMIN OFCR OF THE HOUSE,2015Q1,PERSONNEL COMPENSATION,"","CAULK, ANDREW T",01/01/15,03/31/15,SUPERVISOR,"24,636.00",FISCAL YEAR 2015,"","","","CAULK, ANDREW T"
,CHIEF ADMIN OFCR OF THE HOUSE,2015Q1,PERSONNEL COMPENSATION,"","CHABOT, ELLIOT C",01/01/15,03/31/15,SR SYSTEMS ANALYST,"32,654.25",FISCAL YEAR 2015,"","","","CHABOT, ELLIOT C"
,CHIEF ADMIN OFCR OF THE HOUSE,2015Q1,PERSONNEL COMPENSATION,"","CHAMBERS, KEVIN N",01/01/15,03/31/15,SR CUSTOMER SOLUTIONS REP,"20,694.00",FISCAL YEAR 2015,"","","","CHAMBERS, KEVIN N"
,CHIEF ADMIN OFCR OF THE HOUSE,2015Q1,PERSONNEL COMPENSATION,"","CHAMBERS, KEVIN N",12/01/14,01/31/15,SR CUSTOMER SOLUTIONS REP. (OVERTIME),"3,199.21",FISCAL YEAR 2015,"","","","CHAMBERS, KEVIN N"
,CHIEF ADMIN OFCR OF THE HOUSE,2015Q1,PERSONNEL COMPENSATION,"","CHAMBERS,KEVINA D",01/01/15,03/31/15,ACCOUNTING TECHNICIAN,"12,703.50",FISCAL YEAR 2015,"","","","CHAMBERS,KEVINA D"
,CHIEF ADMIN OFCR OF THE HOUSE,2015Q1,PERSONNEL COMPENSATION,"","CHANG, SU-HWA",01/01/15,03/31/15,SENIOR SYSTEMS ENGINEER,"31,614.75",FISCAL YEAR 2015,"","","","CHANG, SU-HWA"
,CHIEF ADMIN OFCR OF THE HOUSE,2015Q1,PERSONNEL COMPENSATION,"","CHARGUALAF,JESSE",01/20/15,03/31/15,BROADCAST ENGINEER/PROD SPEC,"15,996.11",FISCAL YEAR 2015,"","","","CHARGUALAF,JESSE"
,CHIEF ADMIN OFCR OF THE HOUSE,2015Q1,PERSONNEL COMPENSATION,"","CHEN, SUSAN",01/01/15,03/31/15,FINANCIAL COUNSELOR,"16,504.50",FISCAL YEAR 2015,"","","","CHEN, SUSAN"
,CHIEF ADMIN OFCR OF THE HOUSE,2015Q1,PERSONNEL COMPENSATION,"","CICALE, MICHAEL P",01/01/15,03/31/15,SR CUSTOMER SOLUTIONS REP,"19,283.25",FISCAL YEAR 2015,"","","","CICALE, MICHAEL P"
,CHIEF ADMIN OFCR OF THE HOUSE,2015Q1,PERSONNEL COMPENSATION,"","CICALE, MICHAEL P",01/01/15,01/31/15,SR CUSTOMER SOLUTIONS REP. (OVERTIME),333.74,FISCAL YEAR 2015,"","","","CICALE, MICHAEL P"
,CHIEF ADMIN OFCR OF THE HOUSE,2015Q1,PERSONNEL COMPENSATION,"","CLAGGETT, TIMOTHY A",01/01/15,03/31/15,JOURNEYMAN TEXTILE SPEC,"19,283.25",FISCAL YEAR 2015,"","","","CLAGGETT, TIMOTHY A"
,CHIEF ADMIN OFCR OF THE HOUSE,2015Q1,PERSONNEL COMPENSATION,"","CLAGGETT, TIMOTHY A",12/01/14,12/31/14,JOURNEYMAN TEXTILE SPEC (OVERTIME),"1,138.18",FISCAL YEAR 2015,"","","","CLAGGETT, TIMOTHY A"
,CHIEF ADMIN OFCR OF THE HOUSE,2015Q1,PERSONNEL COMPENSATION,"","CLARK, MARION",01/01/15,03/31/15,SR TELECOMMUNICATIONS ADMIN,"18,092.25",FISCAL YEAR 2015,"","","","CLARK, MARION"
,CHIEF ADMIN OFCR OF THE HOUSE,2015Q1,PERSONNEL COMPENSATION,"","CLARK, MARION",11/01/14,02/28/15,SR TELECOMMUNICATIONS ADMIN (OVERTIME),"6,669.87",FISCAL YEAR 2015,"","","","CLARK, MARION"
,CHIEF ADMIN OFCR OF THE HOUSE,2015Q1,PERSONNEL COMPENSATION,"","CLARKE, JOHN P",01/01/15,03/31/15,SUPERVISOR,"22,098.51",FISCAL YEAR 2015,"","","","CLARKE, JOHN P"
,CHIEF ADMIN OFCR OF THE HOUSE,2015Q1,PERSONNEL COMPENSATION,"","COAKLEY,KRISTEN J",01/01/15,03/31/15,SR TELECOMMUNICATIONS ADMIN,"17,298.00",FISCAL YEAR 2015,"","","","COAKLEY,KRISTEN J"
,CHIEF ADMIN OFCR OF THE HOUSE,2015Q1,PERSONNEL COMPENSATION,"","COAKLEY,KRISTEN J",11/01/14,02/28/15,SR TELECOMMUNICATIONS ADMIN (OVERTIME),"5,378.05",FISCAL YEAR 2015,"","","","COAKLEY,KRISTEN J"
,CHIEF ADMIN OFCR OF THE HOUSE,2015Q1,PERSONNEL COMPENSATION,"","COBB, FAYE C",01/01/15,03/31/15,"DIR, BUDGET, POLICY & PLANNING","39,775.08",FISCAL YEAR 2015,"","","","COBB, FAYE C"
,CHIEF ADMIN OFCR OF THE HOUSE,2015Q1,PERSONNEL COMPENSATION,"","COLBERT, RAY C",01/01/15,03/31/15,SR BROADCAST ENG/PROD SPECLST,"24,180.99",FISCAL YEAR 2015,"","","","COLBERT, RAY C"
,CHIEF ADMIN OFCR OF THE HOUSE,2015Q1,PERSONNEL COMPENSATION,"","COLBERT, RAY C",12/01/14,02/28/15,SR BROADCAST ENG/PROD SPECLST (OVERTIME),"1,685.33",FISCAL YEAR 2015,"","","","COLBERT, RAY C"
,CHIEF ADMIN OFCR OF THE HOUSE,2015Q1,PERSONNEL COMPENSATION,"","COLLINS, JOHN B",01/01/15,03/31/15,BROADCAST PRODUCTION TECHNICIA,"23,916.00",FISCAL YEAR 2015,"","","","COLLINS, JOHN B"
,CHIEF ADMIN OFCR OF THE HOUSE,2015Q1,PERSONNEL COMPENSATION,"","COLLINS, JOHN B",12/01/14,01/31/15,BROADCAST PRODUCTION TECHNICIA (OVERTIME),"1,433.49",FISCAL YEAR 2015,"","","","COLLINS, JOHN B"
,CHIEF ADMIN OFCR OF THE HOUSE,2015Q1,PERSONNEL COMPENSATION,"","COLLINS,JOEL",01/01/15,03/31/15,SR INTERNET SYSTEMS SPECIALIST,"31,016.25",FISCAL YEAR 2015,"","","","COLLINS,JOEL"
,CHIEF ADMIN OFCR OF THE HOUSE,2015Q1,PERSONNEL COMPENSATION,"","CONNOLLY,ERIC",01/01/15,03/31/15,PHOTOGRAPHER,"15,117.24",FISCAL YEAR 2015,"","","","CONNOLLY,ERIC"
,CHIEF ADMIN OFCR OF THE HOUSE,2015Q1,PERSONNEL COMPENSATION,"","CONNOLLY,ERIC",12/01/14,01/31/15,PHOTOGRAPHER (OVERTIME),166.73,FISCAL YEAR 2015,"","","","CONNOLLY,ERIC"
,CHIEF ADMIN OFCR OF THE HOUSE,2015Q1,PERSONNEL COMPENSATION,"","COOK, ERIC H",01/01/15,03/31/15,NETWORK TECHNICIAN,"20,694.00",FISCAL YEAR 2015,"","","","COOK, ERIC H"
,CHIEF ADMIN OFCR OF THE HOUSE,2015Q1,PERSONNEL COMPENSATION,"","COOPER, RICHARD S",01/01/15,03/31/15,STAFF ACCOUNTANT (A),"25,548.00",FISCAL YEAR 2015,"","","","COOPER, RICHARD S"
,CHIEF ADMIN OFCR OF THE HOUSE,2015Q1,PERSONNEL COMPENSATION,"","CORNEJO, LUIS E",01/01/15,03/31/15,SENIOR SYSTEMS ENGINEER,"26,461.26",FISCAL YEAR 2015,"","","","CORNEJO, LUIS E"
,CHIEF ADMIN OFCR OF THE HOUSE,2015Q1,PERSONNEL COMPENSATION,"","COX, BRIDGET A",01/01/15,03/31/15,SENIOR SYSTEMS ANALYST,"30,235.91",FISCAL YEAR 2015,"","","","COX, BRIDGET A"
,CHIEF ADMIN OFCR OF THE HOUSE,2015Q1,PERSONNEL COMPENSATION,"","COYNE III, THOMAS E",01/01/15,03/31/15,ASSISTANT CAO,"42,102.75",FISCAL YEAR 2015,"","","","COYNE III, THOMAS E"
,CHIEF ADMIN OFCR OF THE HOUSE,2015Q1,PERSONNEL COMPENSATION,"","CRUDUP III, WILLIAM D",01/01/15,03/31/15,LOGISTICS & DIST SPEC (A),"12,772.84",FISCAL YEAR 2015,"","","","CRUDUP III, WILLIAM D"
,CHIEF ADMIN OFCR OF THE HOUSE,2015Q1,PERSONNEL COMPENSATION,"","CRUDUP III, WILLIAM D",12/01/14,01/31/15,LOGISTICS & DIST SPEC (A) (OVERTIME),"1,126.58",FISCAL YEAR 2015,"","","","CRUDUP III, WILLIAM D"
,CHIEF ADMIN OFCR OF THE HOUSE,2015Q1,PERSONNEL COMPENSATION,"","CUFF,LOREN D",01/01/15,03/31/15,INTERNET SYSTEMS SPECIALIST,"19,894.50",FISCAL YEAR 2015,"","","","CUFF,LOREN D"
,CHIEF ADMIN OFCR OF THE HOUSE,2015Q1,PERSONNEL COMPENSATION,"","CUFFEY, LAWRENCE",01/01/15,03/31/15,SR RECVNG AND WAREHOUSING SPEC,"18,207.24",FISCAL YEAR 2015,"","","","CUFFEY, LAWRENCE"
,CHIEF ADMIN OFCR OF THE HOUSE,2015Q1,PERSONNEL COMPENSATION,"","CUFFEY, LAWRENCE",12/01/14,12/31/14,SR RECVNG AND WAREHOUSING SPEC (OVERTIME),"1,612.01",FISCAL YEAR 2015,"","","","CUFFEY, LAWRENCE"
,CHIEF ADMIN OFCR OF THE HOUSE,2015Q1,PERSONNEL COMPENSATION,"","CUPRILL, CARLOS",01/01/15,03/31/15,SR TECHNICAL SUPPORT REP,"23,004.24",FISCAL YEAR 2015,"","","","CUPRILL, CARLOS"
,CHIEF ADMIN OFCR OF THE HOUSE,2015Q1,PERSONNEL COMPENSATION,"","CUTLER JR, BENJAMIN S",01/01/15,03/31/15,PAYROLL & BENEFITS ASSISTANT,"15,802.50",FISCAL YEAR 2015,"","","","CUTLER JR, BENJAMIN S"
,CHIEF ADMIN OFCR OF THE HOUSE,2015Q1,PERSONNEL COMPENSATION,"","CUTLER JR, BENJAMIN S",12/01/14,02/28/15,PAYROLL & BENEFITS ASSISTANT (OVERTIME),"2,958.83",FISCAL YEAR 2015,"","","","CUTLER JR, BENJAMIN S"
,CHIEF ADMIN OFCR OF THE HOUSE,2015Q1,PERSONNEL COMPENSATION,"","DAHL,RYAN S",01/01/15,03/31/15,MEDIA LOGISTICS COORDINATOR,"15,460.26",FISCAL YEAR 2015,"","","","DAHL,RYAN S"
,CHIEF ADMIN OFCR OF THE HOUSE,2015Q1,PERSONNEL COMPENSATION,"","DAHLSTROM, DARREN",01/01/15,03/31/15,JOURNEYMAN FURNITURE SPEC,"20,076.00",FISCAL YEAR 2015,"","","","DAHLSTROM, DARREN"
,CHIEF ADMIN OFCR OF THE HOUSE,2015Q1,PERSONNEL COMPENSATION,"","DAHLSTROM, DARREN",12/01/14,12/31/14,JOURNEYMAN FURNITURE SPEC. (OVERTIME),"1,433.44",FISCAL YEAR 2015,"","","","DAHLSTROM, DARREN"
,CHIEF ADMIN OFCR OF THE HOUSE,2015Q1,PERSONNEL COMPENSATION,"","DAVENPORT,KAREN V",01/01/15,03/31/15,FINANCIAL ANALYST,"22,551.24",FISCAL YEAR 2015,"","","","DAVENPORT,KAREN V"
,CHIEF ADMIN OFCR OF THE HOUSE,2015Q1,PERSONNEL COMPENSATION,"","DAVIS, JOHN J",01/01/15,03/31/15,BROADCAST PRODUCTION TECHNICIA,"23,004.24",FISCAL YEAR 2015,"","","","DAVIS, JOHN J"
,CHIEF ADMIN OFCR OF THE HOUSE,2015Q1,PERSONNEL COMPENSATION,"","DAVIS, JOHN J",12/01/14,01/31/15,BROADCAST PRODUCTION TECHNICIA (OVERTIME),66.03,FISCAL YEAR 2015,"","","","DAVIS, JOHN J"
,CHIEF ADMIN OFCR OF THE HOUSE,2015Q1,PERSONNEL COMPENSATION,"","DAVIS, STACHIA G",01/01/15,03/31/15,DIR MOD FURN & TRANSITION,"27,988.26",FISCAL YEAR 2015,"","","","DAVIS, STACHIA G"
,CHIEF ADMIN OFCR OF THE HOUSE,2015Q1,PERSONNEL COMPENSATION,"","DAVIS,SCOTT K",01/01/15,03/31/15,PAYROLL & BENEFITS GENERALIST,"16,902.24",FISCAL YEAR 2015,"","","","DAVIS,SCOTT K"
,CHIEF ADMIN OFCR OF THE HOUSE,2015Q1,PERSONNEL COMPENSATION,"","DAVIS,SCOTT K",12/01/14,01/31/15,PAYROLL & BENEFITS GENERALIST (OVERTIME),"4,984.73",FISCAL YEAR 2015,"","","","DAVIS,SCOTT K"
,CHIEF ADMIN OFCR OF THE HOUSE,2015Q1,PERSONNEL COMPENSATION,"","DAWKINS, JOANN",01/01/15,03/31/15,SR TELECOMM ADMIN,"16,836.99",FISCAL YEAR 2015,"","","","DAWKINS, JOANN"
,CHIEF ADMIN OFCR OF THE HOUSE,2015Q1,PERSONNEL COMPENSATION,"","DAWKINS, JOANN",11/01/14,02/28/15,SR TELECOMM ADMIN (OVERTIME),"3,671.12",FISCAL YEAR 2015,"","","","DAWKINS, JOANN"
,CHIEF ADMIN OFCR OF THE HOUSE,2015Q1,PERSONNEL COMPENSATION,"","DEAN, JOSEPH M",01/01/15,03/31/15,JOURNEYMAN TEXTILE SPEC,"20,694.00",FISCAL YEAR 2015,"","","","DEAN, JOSEPH M"
,CHIEF ADMIN OFCR OF THE HOUSE,2015Q1,PERSONNEL COMPENSATION,"","DEAN, JOSEPH M",12/01/14,12/31/14,JOURNEYMAN TEXTILE SPEC (OVERTIME),"4,629.67",FISCAL YEAR 2015,"","","","DEAN, JOSEPH M"
,CHIEF ADMIN OFCR OF THE HOUSE,2015Q1,PERSONNEL COMPENSATION,"","DEAVER,JAMES",01/01/15,03/31/15,SENIOR SYSTEMS ENGINEER,"32,712.00",FISCAL YEAR 2015,"","","","DEAVER,JAMES"
,CHIEF ADMIN OFCR OF THE HOUSE,2015Q1,PERSONNEL COMPENSATION,"","DELISLE,KALDON A",01/01/15,03/31/15,JOURNEYMAN FURNITURE SPEC,"14,432.49",FISCAL YEAR 2015,"","","","DELISLE,KALDON A"
,CHIEF ADMIN OFCR OF THE HOUSE,2015Q1,PERSONNEL COMPENSATION,"","DELISLE,KALDON A",12/01/14,12/31/14,JOURNEYMAN FURNITURE SPEC. (OVERTIME),"1,923.57",FISCAL YEAR 2015,"","","","DELISLE,KALDON A"
,CHIEF ADMIN OFCR OF THE HOUSE,2015Q1,PERSONNEL COMPENSATION,"","DELUCA, ALAN",01/01/15,03/31/15,COMPUTER FACILITIES OP MGR (A),"36,285.41",FISCAL YEAR 2015,"","","","DELUCA, ALAN"
,CHIEF ADMIN OFCR OF THE HOUSE,2015Q1,PERSONNEL COMPENSATION,"","DENT,RICHARD H",01/01/15,03/31/15,JOURNEYMAN TEXTILE SPEC,"13,043.49",FISCAL YEAR 2015,"","","","DENT,RICHARD H"
,CHIEF ADMIN OFCR OF THE HOUSE,2015Q1,PERSONNEL COMPENSATION,"","DENT,RICHARD H",12/01/14,12/31/14,JOURNEYMAN TEXTILE SPEC (OVERTIME),"1,415.58",FISCAL YEAR 2015,"","","","DENT,RICHARD H"
,CHIEF ADMIN OFCR OF THE HOUSE,2015Q1,PERSONNEL COMPENSATION,"","DERRICK, SCOTT",01/01/15,03/31/15,GRAPHICS & DESKTOP PUBL SPEC,"23,460.75",FISCAL YEAR 2015,"","","","DERRICK, SCOTT"
,CHIEF ADMIN OFCR OF THE HOUSE,2015Q1,PERSONNEL COMPENSATION,"","DICKIE, JAMES",01/01/15,03/31/15,ENGINEERING OPS MANAGER,"31,016.25",FISCAL YEAR 2015,"","","","DICKIE, JAMES"
,CHIEF ADMIN OFCR OF THE HOUSE,2015Q1,PERSONNEL COMPENSATION,"","DIEFFENDERFER, GARY L",01/01/15,03/31/15,SR. APPLICATION DBA SPECIALIST,"32,712.00",FISCAL YEAR 2015,"","","","DIEFFENDERFER, GARY L"
,CHIEF ADMIN OFCR OF THE HOUSE,2015Q1,PERSONNEL COMPENSATION,"","DOBBINS, MARK",01/01/15,03/31/15,"MANAGER, PURCHASING","23,916.00",FISCAL YEAR 2015,"","","","DOBBINS, MARK"
,CHIEF ADMIN OFCR OF THE HOUSE,2015Q1,PERSONNEL COMPENSATION,"","DOLPH,EMILY M",01/01/15,03/31/15,ADA AIDE,"14,659.33",FISCAL YEAR 2015,"","","","DOLPH,EMILY M"
,CHIEF ADMIN OFCR OF THE HOUSE,2015Q1,PERSONNEL COMPENSATION,"","DOLPH,EMILY M",01/01/15,02/28/15,ADA AIDE (OVERTIME),509.92,FISCAL YEAR 2015,"","","","DOLPH,EMILY M"
,CHIEF ADMIN OFCR OF THE HOUSE,2015Q1,PERSONNEL COMPENSATION,"","DOODY,ERICA",01/01/15,03/31/15,ADMINISTRATIVE SPECIALIST,"10,956.61",FISCAL YEAR 2015,"","","","DOODY,ERICA"
,CHIEF ADMIN OFCR OF THE HOUSE,2015Q1,PERSONNEL COMPENSATION,"","DOODY,ERICA",01/01/15,02/28/15,ADMINISTRATIVE SPECIALIST (OVERTIME),359.06,FISCAL YEAR 2015,"","","","DOODY,ERICA"
,CHIEF ADMIN OFCR OF THE HOUSE,2015Q1,PERSONNEL COMPENSATION,"","DOOLEY,GENEVA",01/01/15,03/31/15,SENIOR SOFTWARE SPECIALIST,"32,712.00",FISCAL YEAR 2015,"","","","DOOLEY,GENEVA"
,CHIEF ADMIN OFCR OF THE HOUSE,2015Q1,PERSONNEL COMPENSATION,"","DOZIER, BRIAN A",01/01/15,03/31/15,INVENTORY ADMINISTRATOR,"15,460.26",FISCAL YEAR 2015,"","","","DOZIER, BRIAN A"
,CHIEF ADMIN OFCR OF THE HOUSE,2015Q1,PERSONNEL COMPENSATION,"","DUENAS, JOSEPH E",01/01/15,03/31/15,TECHNICAL SUPPORT REP,"19,095.51",FISCAL YEAR 2015,"","","","DUENAS, JOSEPH E"
,CHIEF ADMIN OFCR OF THE HOUSE,2015Q1,PERSONNEL COMPENSATION,"","DUNKLIN, KELDA Y",01/01/15,03/31/15,SR TECHNICAL SUPPORT REP,"26,914.74",FISCAL YEAR 2015,"","","","DUNKLIN, KELDA Y"
,CHIEF ADMIN OFCR OF THE HOUSE,2015Q1,PERSONNEL COMPENSATION,"","DURAN, ROLANDO",01/01/15,03/31/15,ELECTRONICS TECHNICIAN (A),"23,004.24",FISCAL YEAR 2015,"","","","DURAN, ROLANDO"
,CHIEF ADMIN OFCR OF THE HOUSE,2015Q1,PERSONNEL COMPENSATION,"","DURAN, ROLANDO",02/01/15,02/28/15,ELECTRONICS TECHNICIAN (A) (OVERTIME),243.31,FISCAL YEAR 2015,"","","","DURAN, ROLANDO"
,CHIEF ADMIN OFCR OF THE HOUSE,2015Q1,PERSONNEL COMPENSATION,"","EAGLIN,HOPE J",03/16/15,03/31/15,SENIOR SECURITY ANALYST,"4,578.29",FISCAL YEAR 2015,"","","","EAGLIN,HOPE J"
,CHIEF ADMIN OFCR OF THE HOUSE,2015Q1,PERSONNEL COMPENSATION,"","EGERSON, TROY H",01/01/15,03/31/15,JOURNEYMAN TEXTILE SPEC,"18,885.51",FISCAL YEAR 2015,"","","","EGERSON, TROY H"
,CHIEF ADMIN OFCR OF THE HOUSE,2015Q1,PERSONNEL COMPENSATION,"","EGERSON, TROY H",12/01/14,12/31/14,JOURNEYMAN TEXTILE SPEC (OVERTIME),"1,564.18",FISCAL YEAR 2015,"","","","EGERSON, TROY H"
,CHIEF ADMIN OFCR OF THE HOUSE,2015Q1,PERSONNEL COMPENSATION,"","ELIAS, ANDREW C",01/01/15,03/31/15,DEPUTY DIRECTOR,"30,063.24",FISCAL YEAR 2015,"","","","ELIAS, ANDREW C"
,CHIEF ADMIN OFCR OF THE HOUSE,2015Q1,PERSONNEL COMPENSATION,"","ELLIN, JAMES B",01/01/15,03/31/15,SR NETWORK SYSTEMS ENGINEER,"30,453.99",FISCAL YEAR 2015,"","","","ELLIN, JAMES B"
,CHIEF ADMIN OFCR OF THE HOUSE,2015Q1,PERSONNEL COMPENSATION,"","ELLIOTT, RONALD",01/01/15,03/31/15,SR INFO SYST. SECURITY ANALYST,"25,700.00",FISCAL YEAR 2015,"","","","ELLIOTT, RONALD"
,CHIEF ADMIN OFCR OF THE HOUSE,2015Q1,PERSONNEL COMPENSATION,"","ELLIS,FRANKLIN M",01/01/15,03/31/15,SR SYSTEMS SUPPORT ENGINEER,"22,809.75",FISCAL YEAR 2015,"","","","ELLIS,FRANKLIN M"
,CHIEF ADMIN OFCR OF THE HOUSE,2015Q1,PERSONNEL COMPENSATION,"","ELLIS-GREGG, SHARON",01/01/15,03/31/15,PAYROLL & BENEFITS ASSISTANT,"14,418.75",FISCAL YEAR 2015,"","","","ELLIS-GREGG, SHARON"
,CHIEF ADMIN OFCR OF THE HOUSE,2015Q1,PERSONNEL COMPENSATION,"","ELLIS-GREGG, SHARON",12/01/14,02/28/15,PAYROLL & BENEFITS ASSISTANT (OVERTIME),"2,048.27",FISCAL YEAR 2015,"","","","ELLIS-GREGG, SHARON"
